Workbook

Sheet INDEX
A1: COURSE INDEX
B2: FORM
B3: INDEX | C3: Comments by Panel of Assessors
B4: MPU2163
B5: MPU2143
B6: MGT1123
B7: MGT 1113
B8: CMM 1513
B9: ELS 1212
B10: MPU2232
B11: MPU2212
B12: MPU2222
B13: MPU 2422
B14: MGT 1313
B15: MGT 1713
B16: MGT1213
B17: ELS 2222
B18: MPU2312
B19: MGT 1723
B20: MGT1133
B21: GSC 1231
B22: GSC 1221
B23: GSC 1211
B24: GSC 1111
B25: GSC 1511
B26: GSC 1411
B27: GSC 1321
B28: GSC 1311
B29: ELS 2232
B30: MPU2422
B31: MPU2412
B32: MGT 2223
B33: MGT2333
B34: MGT 2343
B35: MGT
B36: MGT 2163
B37: MGT 2153
B38: MGT 3233
B39: MGT 3173
B40: MGT 3613
B41: MGT 3183
B42: CMM 3523
B43: MGT 2323
B44: MGT3193
B45: MGT 3186

Sheet FORM
B2: 1 | C2: Name of Course | AK2: 1 | AL2: 1
C3: Course Code | AJ3: √ | AK3: 2 | AL3: 2
B4: 2 | C4: Synopsis | U4: =D4 ->  | AK4: 3 | AL4: 3
B5: 3 | C5: Name (s) of Academic Staff | AK5: 4 | AL5: 4
B6: 4 | C6: Semester | D6: Semester | E6: 4 | F6: Year | G6: 2 | AK6: 5
B7: 5 | C7: Credit Value | D7: 3 | AK7: 6
B8: 6 | C8: Pre-requisite / Co-requisite (if any) | AK8: 7
B9: 7 | C9: Course Learning Outcomes (CLO): At the end of the course the students will be able to: | AK9: 8
C10: (example) - explain the basic principles of immunisation (C2, PLO1) | AK10: 9
C11: CLO1 | D11: Apply the concept and the theories of Android programming including application user interface design, key elements and ability to choose suitable element such as Layout Type, View, Image, Activity, Framework and Resource in integrated development environment (IDE) for Android application development. (C4, PLO1) | U11: =D11 -> Apply the concept and the theories of Android programming including application user interface design, key elements and ability to choose suitable element such as Layout Type, View, Image, Activity, Framework and Resource in integrated development environment (IDE) for Android application development. (C4, PLO1) | AK11: 10
C12: CLO2 | D12: Display the ability to apply the App Widgets, Intent, Home Screen Widget and creating the distributable file in Android to solve given problems. (P4, PLO2) | U12: Display the ability to apply the App Widgets, Intent, Home Screen Widget and creating the distributable file in Android to solve given problems. (P4, PLO2) | AK12: 11
C13: CLO3 | D13: Solve problem on an assigned project by constructing Android application that demonstrates the concept creating the user interface with dates, time, alert box, input validation and SQLite database for persistent data within a given time frame. (P3, CTPS3, PLO3)
C14: CLO4 | D14: Work in a team to develop an Android application (A3,TS3, PLO5) | AK14: 12
B15: 8 | C15: Mapping of the Course Learning Outcomes to the Programme Learning Outcomes, Teaching Methods and Assessment:
C16: Course Learning Outcomes (CLO) | D16: Programme Learning Outcomes (PLO) | P16: Teaching Methods | S16: Assessment
D17: PLO1 | E17: PLO2 | F17: PLO3 | G17: PLO4 | H17: PLO5 | I17: PLO6 | J17: PLO7 | K17: PLO8 | L17: PLO9 | M17: PLO10 | N17: PLO11 | O17: PLO12
C18: CLO1 | D18: √ | P18: Lecture | Discussion | S18: Quiz | Test | Final Examination | U18: =S18 -> Quiz | Test | Final Examination
C19: CLO2 | E19: √ | P19: Lecture | Discussion | S19: Quiz | Test | Final Examinationt
C20: CLO3 | F20: √ | P20: Discussion | Presentation | S20: Presentation | Final Examination
C21: CLO4 | H21: √ | P21: Discussion | Presentation | S21: Assignment | Final Examination
C22: (The description must be read together with standards 2.1.2, 2.2.1 and 2.2.2 in Area 2 - pages 16 & 18)
B23: 9 | C23: Transferable skills (if applicable) | G23: 1 | H23: Self-Management and Learning
C24: (Skills learned in the course of study which can be useful and utilised in other settings) | G24: 2 | H24: Communication and Teamwork
G25: 3 | H25: Problem Solving and Information Technology
B26: 10 | C26: Distribution of Students Learning Time (SLT)
C27: Course Content Outline | G27: CLO | I27: Teaching and Learning Activities | T27: SLT
I28: Guided learning (F2F) | Q28: Guided Learning (NF2F) eg: e-learning | S28: Independent learning (NF2F)
I29: L | K29: T | M29: P | O29: O
C30: 1.0 Concepts of Islamic Financial System 1.1 Islamic Economic System 1.2 Islamic Financial System 1.3 Prohibited Elements in Muamalat | G30: CLO 2 | I30: 2 | K30: 2 | M30: 0 | S30: 4 | T30: 8
C31: 2.0 Concepts and System of Riba’ 2.1 Definition of Riba 2.2 Ribawi Item and Illah 2.3 Classification of Riba’ 2.4 Concept of Riba’ in Bay’ and Qard Contracts 2.5 Riba in Conventional Bank | G31: CLO 1 | I31: 2 | K31: 2 | O31: 0 | S31: 4 | T31: 8 | U31: =C31 -> 2.0 Concepts and System of Riba’ 2.1 Definition of Riba 2.2 Ribawi Item and Illah 2.3 Classification of Riba’ 2.4 Concept of Riba’ in Bay’ and Qard Contracts 2.5 Riba in Conventional Bank
C32: 3.0 Islamic Financial System 3.1 Islamic Banking 3.2 Consept and Theory of Islamic Banking 3.3 Model of Islamic Banking | G32: CLO 3 | I32: 4 | K32: 4 | S32: 8 | T32: 16 | U32: 3.0 Islamic Financial System 3.1 Islamic Banking 3.2 Consept and Theory of Islamic Banking 3.3 Model of Islamic Banking
C33: 4.0 Syariah Principles in Islamic Financial Financing I 4.1 Sale-Based Contracts | G33: CLO 1 | I33: 4 | K33: 4 | S33: 8 | T33: 16 | U33: 4.0 Syariah Principles in Islamic Financial Financing I 4.1 Sale-Based Contracts
C34: 5.0 Syariah Principles in Islamic Financial Financing II 5.1 Loan Financing | G34: CLO 3 | I34: 2 | K34: 2 | S34: 4 | T34: 8 | U34: 5.0 Syariah Principles in Islamic Financial Financing II 5.1 Loan Financing
C35: 6.0 Syariah Principles in Islamic Financial Financing III 6.1 Equity-Based Contracts | G35: CLO 2 | I35: 2 | K35: 2 | S35: 4 | T35: 8 | U35: 6.0 Syariah Principles in Islamic Financial Financing III 6.1 Equity-Based Contracts
C36: 7.0 Islamic Bank Products 7.1 Financial Instruments 7.2 Equity Market | G36: CLO 2 | I36: 2 | K36: 2 | S36: 4 | T36: 8 | U36: 7.0 Islamic Bank Products 7.1 Financial Instruments 7.2 Equity Market
C37: 8.0 Non Islamic Bank Products 8.1 Financial Instruments 8.2 Equity Market | G37: CLO 2 | I37: 2 | K37: 2 | S37: 4 | T37: 8 | U37: 8.0 Non Islamic Bank Products 8.1 Financial Instruments 8.2 Equity Market
C38: 9.0 Islamic Institutions 9.1 Tabung Haji 9.2 Bank Islam 9.3 Baitul Mal 9.4 al-Rahn Scheme | G38: CLO 2 | I38: 2 | K38: 2 | M38: 2 | S38: 4 | T38: 10 | U38: 9.0 Islamic Institutions 9.1 Tabung Haji 9.2 Bank Islam 9.3 Baitul Mal 9.4 al-Rahn Scheme
C39: 10.0 Takaful 10.1 Introduction 10.2 Definition of Insurance and Takaful 10.3 Types of Takaful converage 10.4 Opinions of scholars regarding Takaful Insurance and Re-Insurance | G39: CLO 2 | I39: 2 | K39: 2 | M39: 2 | S39: 4 | T39: 10 | U39: 10.0 Takaful 10.1 Introduction 10.2 Definition of Insurance and Takaful 10.3 Types of Takaful converage 10.4 Opinions of scholars regarding Takaful Insurance and Re-Insurance
C40: Total | T40: 100 | U40: Total
C42: Continuous Assessment | L42: Percentage (%) | N42: F2F | Q42: NF2F | T42: SLT
C43: 1 | D43: Assignment 1 | L43: 10 | N43: 1 | Q43: 3 | T43: 4
C44: 2 | D44: Assignment 2 | L44: 10 | N44: 1 | Q44: 2 | T44: 3 | U44: =D44 -> Assignment 2
C45: 3 | D45: Test 1 | L45: 10 | N45: 1 | Q45: 2 | T45: 3 | U45: Test 1
C46: 4 | D46: Test 2 | L46: 10 | N46: 1 | Q46: 2 | T46: 3 | U46: Test 2
C47: 5 | T47: 0
C48: Total | T48: 13
C50: Final Assessment | L50: Percentage (%) | N50: F2F | Q50: NF2F | T50: SLT
C51: 1 | D51: Final Examination | L51: 60 | N51: 2.5 | Q51: 4.5 | T51: 7
C52: 2 | T52: 0 | U52: =D52 -> 
C53: 3 | T53: 0
C54: 4 | T54: 0
C55: 5 | T55: 0
T56: 7 | U56: =D56 -> 
C58: **Please tick (ü) in this course is Latihan Industri / Clinical Placement / Practicum / WBL using 2 weeks; 1 credit formula | T58: 120
C59: L= Lecture, T=Tutorial, P=Practical, O=Others, F2F=Face to Face, NF2F=None Face to Face
C60: *Indicate the CLO based on the CLO's numbering in item 8
B61: 11 | C61: Identify special requirement to deliver the course (e.g: software, nursery, computer lab, simulation room, etc) | H61: None
U62: =H62 -> 
B63: 12 | C63: References: | H63: Dr. Mukmin Abd. Ghani (1999), ‘ Sistem Kewangan Islam dan Aplikasi di Malaysia’ . Kuala Lumpur: Jabatan Kemajuan Islam Malaysia.
C64: (include required and further readings, and should be the most current) | H64: Mohd Fadzli Yusof (1996), ‘Takaful Sistem Insurans Islam’. Kuala Lumpur: Utusan Publications & Distributors Sdn. Bhd. Mohd Ma’sum Billah (2003), Islamic Insurance [Takaful]’.Selangor: Ilmiah Publishers Sdn. Bhd. Nor Muhamad Yacop (1995), ‘Pengenalan Kepada Sistem Kewangan Islam’. Kuala Lumpur: Utusan Publications & Distributors Sdn. Bhd. Dr. Sobri Salamon (1989), ‘Ekonomi Islam: Pengenalan Sistem dan Kemungkinan’. Selangor: Al-Rahmaniah. | U64: =H64 -> Mohd Fadzli Yusof (1996), ‘Takaful Sistem Insurans Islam’. Kuala Lumpur: Utusan Publications & Distributors Sdn. Bhd. Mohd Ma’sum Billah (2003), Islamic Insurance [Takaful]’.Selangor: Ilmiah Publishers Sdn. Bhd. Nor Muhamad Yacop (1995), ‘Pengenalan Kepada Sistem Kewangan Islam’. Kuala Lumpur: Utusan Publications & Distributors Sdn. Bhd. Dr. Sobri Salamon (1989), ‘Ekonomi Islam: Pengenalan Sistem dan Kemungkinan’. Selangor: Al-Rahmaniah.
B65: 13 | C65: Other additional Information | H65: Last updated : 16 April 2018 | U65: Last updated : 16 April 2018

Sheet PEOPLO
A1: Objektif Program (PEO) :
A3: 1. Menghasilkan eksekutif yang memiliki pengetahuan dan kompeten dalam bidang Pengurusan Perniagaan, berpandangan luas dan mampu membuat keputusan secara bijaksana.
A4: 2. Menghasilkan graduan yang beretika dan bersedia berkhidmat kepada masyarakat.
A5: 3. Menghasilkan graduan yang berupaya berdikari dan terlibat dalam bidang keusahawanan
A6: 4. Menghasilkan graduan yang sentiasa berusaha untuk meneruskan pembelajaran sepanjang hayat.
A7: 5. Menghasilkan graduan yang mempunyai ciri-ciri kepimpinan dan mampu berkomunikasi secara efektif dalam pelbagai lapangan dan lapisan.
A9: Hasil Pembelajaran Program (PLO) :
A11: 1. Menggunakan pengetahuan dalam bidang Pengurusan Perniagaan ke dalam profesion yang diceburi.
A12: 2. Mengaplikasi kemahiran sistem komputer dan ICT dalam bidang Pengurusan Perniagaan.
A13: 3. Menyesuaikan diri dan bekerjasama dalam pasukan secara efektif
A14: 4. Menunjukkan etika dan moral yang tinggi sebagai seorang profesional serta bersedia berkhidmat kepada masyarakat
A15: 5. Berkomunikasi secara berkesan
A16: 6. Menonjolkan ciri-ciri kepimpinan yang berwibawa
A17: 7. Berfikir secara kritis dalam mengenalpasti dan menyelesaikan masalah
A18: 8. Meningkatkan pengetahuan dan kemahiran semasa secara berterusan
A19: 9. Mengurus dan menunjukkan ciri-ciri keusahawanan
A21: PLO : DIPLOMA PENGURUSAN PERNIAGAAN
A23: PLO 1 | B23: Knowledge & Understanding | C23: Apply the management knowledge and entrepreneurship skills in business related activities
A24: PLO2 | B24: Cognitive Skills | C24: Identify and solve problems related to business practices using appropriate principles and methods
A25: PLO3 | B25: Practical Skills | C25: Demonstrate business skills using appropriate techniques to perform required tasks
A26: PLO4 | B26: Interpersonal Skills | C26: Interact effectively as an individual or as a part of a team undertaking a range of different team roles
A27: PLO5 | B27: Communication Skills | C27: Communicate clearly and effectively in orally and writing the ideas, information, problem and solution to others
A28: PLO6 | B28: Digital Skills | C28: Use a range of information, media and technology applications to support study or work
A29: PLO7 | B29: Numeracy Skills | C29: Demonstrate skills to use and interpret complex numerical and graphic or visual data
A30: PLO8 | B30: Leadership, Autonomy and Responsibility | C30: Ability to lead and manage diverse teams effectively
A31: PLO9 | B31: Personal Skills | C31: Recognise self-improvement initiatives and possibilities in academic and career development
A32: PLO10 | B32: Entrepreneurial Skills | C32: Demonstrate and awareness business practices and technopreneurial competences
A33: PLO11 | B33: Ethics & Professionalism | C33: Demonstrate professionalism in accordance with social, ethical and legal

Sheet MAPPING DPP
A1: Jadual 2.1: Pemetaan Programme Learning Outcome (PLO) kepada Programme Educational Objectives (PEO)
A3: Programme Learning Outcome (PLO) | B3: Programme Educational Objectives
B4: PEO 1 | C4: PEO 2 | D4: PEO 3 | E4: PEO 4 | F4: PEO 5
A5: PLO1 | B5: ✓
A6: PLO2 | B6: ✓
A7: PLO3 | C7: ✓
A8: PLO4 | C8: ✓
A9: PLO5 | F9: ✓
A10: PLO6 | F10: ✓
A11: PLO7 | D11: ✓
A12: PLO8 | E12: ✓
A13: PLO9 | D13: ✓
A16: Jadual 2.2: Pemetaan Programme Learning Outcome (PLO) kepada domain KKM
B18: Pengetahuan | C18: Kemahiran Praktikal | D18: Kemahiran dan Tanggungjawab Sosial | E18: Nilai, Sikap dan Profesionalisme | F18: Kemahiran Komunikasi, Kepimpinan dan Kerja Berpasukan | G18: Kemahiran Penyelesaian Masalah & Kemahiran Saintifik | H18: Kemahiran Pengurusan Maklumat & Pembelajanran Sepanjnag Hayat | I18: Kemahiran Mengurus & Keusahawanan
A19: PLO1 | B19: ✓
A20: PLO2 | C20: ✓ | H20: ✓
A21: PLO3 | F21: ✓
A22: PLO4 | D22: ✓ | E22: ✓
A23: PLO5 | F23: ✓
A24: PLO6 | F24: ✓
A25: PLO7 | G25: ✓
A26: PLO8 | D26: ✓ | H26: ✓
A27: PLO9 | I27: ✓
A31: Jadual 2.3 : Pemetaan Kursus kepada PLO
A33: Courses | B33: Programme Learning Outcome (PLO)
B34: PLO 1 | C34: PLO 2 | D34: PLO 3 | E34: PLO 4 | F34: PLO 5 | G34: PLO 6 | H34: PLO 7 | I34: PLO 8 | J34: PLO 9
A35: MPU 2143 Bahasa Melayu Komunikasi | B35: ✓ | C35: ✓ | E35: ✓
A36: ELS 1212 English Communicative Skill 1 | B36: ✓
A37: MPU 2163 Pengajian Malaysia 2 | B37: ✓ | E37: ✓ | H37: ✓
A38: PST 1011 Pesat 1 | D38: ✓ | E38: ✓ | I38: ✓
A39: MGT 1213 Pengenalan Perniagaan | B39: ✓ | I39: ✓
A40: CSC 1113 Pengenalan kpd Aplikasi Komputer & Perkakasan | B40: ✓ | C40: ✓ | D40: ✓
A41: MGT 1613 Mikroekonomi | B41: ✓ | D41: ✓
A42: GSC 1xx1 Ko-Kurikulum | B42: ✓ | D42: ✓ | H42: ✓
A43: ELS 2222 English Communicative Skills II | B43: ✓ | F43: ✓ | H43: ✓
A44: MPU 22x2 MPU 2 (Kemahiran Insaniah) | B44: ✓ | F44: ✓ | H44: ✓ | I44: ✓
A45: PST 1021 Pesat 2 | D45: ✓ | E45: ✓ | H45: ✓
A46: ACT 1xx3 Perakaunan Kewangan | B46: ✓ | C46: ✓ | D46: ✓
A47: MGT 1113 Prinsip Pengurusan | B47: ✓ | G47: ✓ | H47: ✓
A48: MGT 2623 Makroekonomi | B48: ✓ | D48: ✓
A49: MGT 1313 Matematik Perniagaan | B49: ✓ | H49: ✓
A50: ELS 2232 English Communicative Skills III | B50: ✓ | C50: ✓ | I50: ✓
A51: MPU 2312 Islam & Pembentukan Masyarakat Malaysia | B51: ✓ | E51: ✓ | I51: ✓
A52: PST 2041 Pesat 3 | D52: ✓ | E52: ✓
A53: MTH 2313 Statistik Perniagaan | B53: ✓ | H53: ✓ | I53: ✓
A54: MGT 2513 Tabiat Organisasi | B54: ✓ | H54: ✓
A55: MGT 3233 Etika Perniagaan | B55: ✓ | C55: ✓ | D55: ✓
A56: MGT 2413 Prinsip Pemasaran | B56: ✓ | D56: ✓
A57: MPU 24x2 MPU 4 (Khidmat Masyarakat) | B57: ✓ | D57: ✓
A58: PST 3051 Pesat 4 | D58: ✓ | E58: ✓ | H58: ✓
A59: ACT 3223 Perakaunan Pengurusan | B59: ✓ | C59: ✓ | D59: ✓
A60: MGT 3123 Pengurusan Operasi | B60: ✓ | H60: ✓
A61: MGT 2223 Keusahawanan | B61: ✓ | H61: ✓ | J61: ✓
A62: MGT 2323 Pengenalan Kewangan | B62: ✓ | D62: ✓ | H62: ✓
A63: MGT 2xx3 Pemasaran Servis | B63: ✓ | D63: ✓ | H63: ✓
A64: PST 3061 Pesat 5 | D64: ✓ | E64: ✓ | H64: ✓
A65: CSC 3153 E-Perniagaan | B65: ✓ | D65: ✓ | F65: ✓
A66: LAW 3123 Undang-undang Perniagaan | B66: ✓
A67: MGT 3423 Komunikasi Perniagaan | B67: ✓ | F67: ✓ | H67: ✓
A68: MGT 3523 Pengurusan Sumber Manusia | B68: ✓ | H68: ✓
A69: MGT 3333 Pengenalan kepada Pelaburan | B69: ✓ | D69: ✓ | H69: ✓
A70: MGT 3243 Perniagaan Antarabangsa | B70: ✓ | H70: ✓ | I70: ✓
A71: ALI 3006 Latihan Industri | B71: ✓ | F71: ✓ | H71: ✓
A72: MPU 2212 Kemahiran Kerja Berpasukan | C72: ✓ | D72: ✓ | F72: ✓
A73: MPU 2222 Kemahiran Kepimpinan | B73: ✓ | G73: ✓
A74: MPU 2232 Pengurusan Awam | B74: ✓ | E74: ✓ | F74: ✓
A75: MPU 2413 Kepimpinan Kelab dan Persatuan | B75: ✓ | D75: ✓ | H75: ✓
A76: MPU 2422 Pengurusan Acara | B76: ✓ | D76: ✓ | G76: ✓

Sheet STRUKTUR BARU DPP 2019
A1: KOLEJ TEKNOLOGI DARULNAIM
A2: KURIKULUM DIPLOMA PENGURUSAN PERNIAGAAN (DPP)
A3: SEM I / II / III, SESI 2019 / 2020
A5: TARIKH KEMASUKAN : ___ / ___ /20 ___ , TARIKH LI: ___ / __ / 202__ | H5: BIL KREDIT (SPM) : ...... | L5: BM (SPM) : ….... | O5: MATE (SPM) : ….....
A7: BIL | B7: KOD | C7: NAMA KURSUS | D7: KRD | E7: 1 | F7: 2 | G7: SP | H7: 3 | I7: 4 | J7: SP | K7: 5 | L7: 6 | M7: 7 | N7: 8 | O7: 9 | P7: 10 | Q7: PRA SYARAT
A8: F | B8: BHM 0103 | C8: Bahasa Melayu Pengukuhan | D8: 3
B9: ELS 0104 | C9: Foundation English | D9: 4
B10: MTH 0203 | C10: Matematik Asas | D10: 3
B11: ELS 1212 | C11: English Communicative Skill 1 | D11: 2
B12: MPU 2163 | C12: Pengajian Malaysia | D12: 3
B13: DPP 1113 | C13: Prinsip Pengurusan | D13: 3
B14: CMM 1513 | C14: Pengenalan Aplikasi Komputer & Perkakasan | D14: 3
A15: 1 | B15: DPP 1123 | C15: Pengenalan Perniagaan | D15: 3
B16: DPP 1713 | C16: Mikroekonomi | D16: 3
B17: GSC 1xx1 | C17: Ko-Kurikulum | D17: 1
B18: PST 1010 | C18: Pesat 1 | D18: 0
B19: ELS 2222 | C19: English Communicative Skills II* | D19: 2 | Q19: ELS 1212
B20: MPU 22x2 | C20: MPU 2 (Kemahiran Insaniah) | D20: 2
A21: 2 | B21: DPP 1313 | C21: Perakaunan Kewangan | D21: 3
B22: DPP 1133 | C22: Tabiat Organisasi | D22: 3
B23: DPP 1723 | C23: Makroekonomi* | D23: 3 | Q23: MGT 1713
B24: DPP 1213 | C24: Matematik Perniagaan | D24: 3
B25: PST 1020 | C25: Pesat 2 | D25: 0 | Q25: PST 1010
B26: ELS 2232 | C26: English Communicative Skills III* | D26: 2 | Q26: ELS 2222
B27: MPU 2312 | C27: Islam & Pembentukan Masya. Mal. | D27: 2
B28: DPP 2223 | C28: Statistik Perniagaan | D28: 3
A29: 3 | B29: DPP 2143 | C29: Etika Perniagaan | D29: 3
B30: DPP 2513 | C30: Prinsip Pemasaran | D30: 3
B31: DPP 2XX3 | C31: Elektif 1 | D31: 3
B32: PST 2030 | C32: Pesat 3* | D32: 0 | Q32: PST 1020
B33: MPU 24x2 | C33: MPU 4 (Khidmat Masyarakat) | D33: 2
B34: DPP 2323 | C34: Perakaunan Pengurusan* | D34: 3 | Q34: MGT 1313
A35: 4 | B35: DPP 3233 | C35: Pengurusan Operasi | D35: 3
B36: DPP 2163 | C36: Keusahawanan | D36: 3
B37: DPP 2333 | C37: Pengenalan Kewangan* | D37: 3 | Q37: MGT 1213
B38: DPP 2xx3 | C38: Elektif 2 | D38: 3
B39: PST 2040 | C39: Pesat 4* | D39: 0 | Q39: PST 2030
B40: CMM 3523 | C40: E-Perniagaan | D40: 3
B41: DPP 3173 | C41: Undang-undang Perniagaan | D41: 3
B42: DPP 3183 | C42: Komunikasi Perniagaan | D42: 3
A43: 5 | B43: DPP 3613 | C43: Pengurusan Sumber Manusia | D43: 3
B44: DPP 3343 | C44: Pengenalan kepada Pelaburan | D44: 3
B45: DPP 3193 | C45: Perniagaan Antarabangsa | D45: 3
B46: PST 3050 | C46: Pesat 5* | D46: 0 | Q46: PST 2040
A47: 6 | B47: ALI 3xx6 | C47: Latihan Industri | D47: 6
C48: JUMLAH KREDIT | D48: 91
A49: KEPUTUSAN | C49: KREDIT PINDAH
A50: SEMESTER SEMASA | C50: JUMLAH KREDIT DAPAT
A51: ( Result for | C51: JUMLAH KREDIT KIRA
A52: Current Semester) | C52: JUMLAH MATA NILAI
C53: GPA
C54: JUMLAH KREDIT DAPAT
A55: KEPUTUSAN | C55: JUMLAH KREDIT KIRA
A56: KESELURUHAN | C56: JUMLAH MATA NILAI
A57: SEMESTER | C57: CPA
A58: (Result for All Semester) | C58: STATUS
B60: *Pilihan Elektif | F60: *Pilihan KURSUS WAJIB MQA
A61: 1 | B61: MGT 2523 | C61: Pemasaran Servis (baru) | F61: 1 | G61: MPU 2212 | I61: Kemahiran Kerja Berpasukan | O61: kemahiran Insaniah
A62: 2 | B62: MGT 2153 | C62: Pengurusan Teknologi (baru) | F62: 2 | G62: MPU 2222 | I62: Kemahiran kepimpinan
A63: 3 | B63: CMM 1113 | C63: Art and Fundamental Design | F63: 3 | G63: MPU 2232 | I63: Pengucapan Awam
A64: 4 | B64: MGT 2343 | C64: Sistem Kewangan Islam | F64: 4 | G64: MPU 2242 | I64: Kemahiran Berfikir & Penyelesaian Masalah
F65: 5 | G65: MPU 2412 | I65: Kepimpinan Kelab, Persatuan dan Organisasi | O65: Khidmat Masyarakat
F66: 6 | G66: MPU 2422 | I66: Pengurusan Acara
F68: 5 | G68: MPU 2412 | I68: Kepimpinan Kelab, Persatuan dan Organisasi | O68: Khidmat Masyarakat
F69: 6 | G69: MPU 2422 | I69: Pengurusan Acara

Sheet STRUKTUR LAMA DPP
A1: KOLEJ TEKNOLOGI DARULNAIM
A2: KURIKULUM DIPLOMA PENGURUSAN PERNIAGAAN (DPP)
A3: SEM I / II / III, SESI 2017/ 2018
A5: TARIKH KEMASUKAN : ___ / ___ /20 ___ , TARIKH LI: ___ / __ / 202__ | H5: BIL KREDIT (SPM) : ...... | L5: BM (SPM) : ….... | O5: MATE (SPM) : ….....
A7: BIL | B7: KOD | C7: NAMA KURSUS | D7: KRD | E7: 1 | F7: 2 | G7: SP | H7: 3 | I7: 4 | J7: SP | K7: 5 | L7: 6 | M7: 7 | N7: 8 | O7: 9 | P7: 10 | Q7: PRA SYARAT
A8: F | B8: BHM 0103 | C8: Bahasa Melayu Pengukuhan | D8: 3
B9: ELS 0104 | C9: Foundation English I | D9: 4
B10: ELS 0203 | C10: Foudation English II | D10: 3
B11: MTH 0203 | C11: Matematik Asas | D11: 3
B12: ELS 1112 | C12: Basic English Skill | D12: 2
B13: MPU2163 / MPU2143 | C13: Pengajian Malaysia / Bahasa Melayu Komunikasi 2 | D13: 3
B14: KTW 1112 | C14: Pendidikan Islam Asas 1 | D14: 2
B15: MGT 1213 | C15: Pengenalan Perniagaan | D15: 3
A16: 1 | B16: MGT 1113 | C16: Prinsip Pengurusan | D16: 3
B17: MTH 1113 | C17: Matematik Kuantitatif | D17: 3
B18: CSC 1113 | C18: Pengenalan kpd Aplikasi Komputer & Perkakasan | D18: 3
B19: ELS 1212 | C19: English Communicative Skill 1 | D19: 2 | Q19: ELS 1112
B20: MPU22X2 | C20: MPU 2 (Kemahiran Insaniah) | D20: 2
A21: 2 | B21: KTW 1122 | C21: Pendidikan Islam Asas II | D21: 2
B22: ACT 1113 | C22: Perakaunan Kewangan I | D22: 3
B23: MGT 1613 | C23: Mikroekonomi | D23: 3
B24: MGT 1313 | C24: Matematik Perniagaan* | D24: 3 | Q24: MTH 1113
B25: ELS 2222 | C25: English Communicative Skills II | D25: 2 | Q25: ELS 1212
B26: MPU2312 | C26: Islam dan Pembentukan Masyarakat Malaysia | D26: 2
B27: MGT 2623 | C27: Makroekonomi | D27: 3
A28: 3 | B28: ACT 2123 | C28: Perakaunan Kewangan II* | D28: 3 | Q28: ACT 1113
B29: MGT 2513 | C29: Tabiat Organisasi | D29: 3
B30: GSC ….. | C30: Ko-Kurikulum | D30: 1
B31: ELS 2232 | C31: English Communicative Skills III | D31: 2 | Q31: ELS 2222
B32: MPU24X2 | C32: MPU 4 (Khidmat Masyarakat) | D32: 2
A33: 4 | B33: KTW 2132 | C33: Pendidikan Islam Pengukuhan | D33: 2
B34: MTH 2313 | C34: Statistik Perniagaan | D34: 3
B35: MGT 2323 | C35: Pengenalan Kewangan* | D35: 3 | Q35: MGT 1313
B36: MGT 2413 | C36: Prinsip Pemasaran | D36: 3
B37: MGT 2223 | C37: Keusahawanan* | D37: 3 | Q37: MGT 1213
B38: MGT 3233 | C38: Etika Perniagaan | D38: 3
B39: MGT 3123 | C39: Pengurusan Operasi & Pengeluaran | D39: 3
B40: LAW 3123 | C40: Undang-undang Perniagaan | D40: 3
A41: 5 | B41: MGT 3523 | C41: Pengurusan Sumber Manusia* | D41: 3 | Q41: MGT 2513
B42: MGT 3423 | C42: Komunikasi Perniagaan | D42: 3
B43: CSC 3153 | C43: E-Perniagaan | D43: 3
B44: ACT 3223 | C44: Perakaunan Pengurusan & Kawalan* | D44: 3 | Q44: ACT 2123
B45: MGT 3243 | C45: Perniagaan Antarabangsa | D45: 3
A46: 6 | B46: MGT 3333 | C46: Pengurusan Pelaburan | D46: 3
B47: ALI 3000 | C47: Latihan Industri | D47: 0
C48: JUMLAH KREDIT | D48: 93
A49: KEPUTUSAN | C49: KREDIT PINDAH
A50: SEMESTER SEMASA | C50: JUMLAH KREDIT DAPAT
A51: ( Result for | C51: JUMLAH KREDIT KIRA
A52: Current Semester) | C52: JUMLAH MATA NILAI
C53: GPA
C54: JUMLAH KREDIT DAPAT
A55: KEPUTUSAN | C55: JUMLAH KREDIT KIRA
A56: KESELURUHAN | C56: JUMLAH MATA NILAI
A57: SEMESTER | C57: CPA
A58: (Result for All Semester) | C58: STATUS
F60: *Pilihan KURSUS WAJIB MQA
F63: 1 | G63: MPU 2163 | I63: Pengajian Malaysia | O63: 3
G64: MPU 2143 | I64: Bahasa Melayu Komunikasi 2 | O64: 3
F65: 2 | G65: MPU 2212 | I65: Kemahiran Kerja Berpasukan | O65: 2
G66: MPU 2212 | I66: Kemahiran Kerja Berpasukan | O66: 2
G67: MPU 2212 | I67: Kemahiran Kerja Berpasukan | O67: 2
G68: MPU 2222 | I68: Kemahiran kepimpinan | O68: 2
G69: MPU 2232 | I69: Pengucapan Awam | O69: 2
G70: MPU 2242 | I70: Kemahiran Berfikir & Penyelesaian Masalah | O70: 2
F71: 3 | G71: MPU 2312 | I71: Islam dan Pembentukan Masyarakat | O71: 2
F72: 4 | G72: MPU 2412 | I72: Kepimpinan Kelab, Persatuan dan Organisasi | O72: 2
G73: MPU 2422 | I73: Pengurusan Acara | O73: 2

Sheet PROG.SPEC
A1: PROGRAMME SPECIFICATIONS
A3: 1. Programme Name | C3: Diploma in Business Management
A4: 2. Final Award | C4: Diploma in Business Management
A5: 3. Awarding Institution | C5: KTD
A6: 4. Teaching Instittion | C6: KTD
A7: 5. Professional or Statutory Body of Accreditation | C7: MQA
A8: 6. Code of Programme
A9: 7. Language(s) of Institution | C9: Bahasa Melayu and/or English
A10: 8. Mode of Study (Conventional, distance learning, etc) | C10: Conventional
A11: 9. Mode of Operation (Franchise, self-govern, etc) | C11: Self-governing
A12: 10. Study Scheme (Full time/Part time) | C12: Full-time
A13: 11. Study Duration | C13: Full-time
C14: Minimum : 6 semester (3 years)
C15: Maximum : 12 semester (6 years)
A16: Type of Semester | B16: No. of Semesters | C16: No. of weeks per semester
B17: Full-time | C17: Full-time
A18: Normal | B18: 6 | C18: 14
A19: Short | B19: 0 | C19: 0
A20: 12. Entry Requirement | B20: i. General University Requirements
B21: a. Malaysian
B22: b. Obtain Sijil Pelajaran Malaysia (SPM) with at least Three (3) credits (Grade C) of any subjects
A25: 13. Programme Educational Objectives:
A27: 1. Produce knowledgeable and competent executive in Business Management with vision and wise decision making
A28: 2. Produce ethical graduate and willing to serve for community
A29: 3. Produce independent graduate and involve in entreprenuership
A30: 4. Produce graduate that are continuosly life long learning
A31: 5. Produce graduate with leadership features and able to communicate effectivey in various field and layers
A33: 14. Programme Learning Outcomes (PLO)
A34: (a) Technical Knowledge and Competencies
A35: Programme | B35: Intended Learning | C35: Teaching and | D35: Assessment
A36: Learning Outcomes (PLO) | B36: Outcomes | C36: Learning Methods
A38: PLO1 | B38: Incorporate knowledge of mathematics, management, accounting, and humanities in the development of an assistant executive. [C3] | C38: Lectures, Tutorials, Directed Reading, Internet Searching, Active Cooperative Learning | D38: Quizzes, Tests, Assignments, Presentations
A39: Ability to apply knowledge of management and technology
A44: PLO2 | B44: Exercise appropriate management techniques, skills and approach for an organization related to manufacturing and service industries [P4] | C44: Lectures, Tutorials, Computer Practical Classes, Cooperative Learning and group projects | D44: Quizzes, Tests, Assignments and reports, Examinations, and group projects
A45: Ability to use theories, techniques, skills and approach related to management and technology
A48: (b) Generic Skills
A49: Programme | B49: Intended Learning | C49: Teaching and | D49: Assessment
A50: Learning Outcomes (PLO) | B50: Outcomes | C50: Learning Methods
A51: PLO3 | B51: Work collaboratively as part of a team undertaking a range of different team roles. [A3, TS3] | C51: Individual Assignments, group/mini projects, cooperative learning and discussion | D51: Project or Assignment reports and Presentation
A52: Team working
A56: PLO4 | B56: Demonstrate an understanding of professional and practice ethical values. [A3, EM2] | C56: Individual Assignment , mini/ group projects and laboratory works. | D56: Project or Assignment reports
A57: Ethics
A61: PLO5 | B61: Communicate clearly and effectively in oral and/or written forms. [P3, CS3] | C61: Individual Assignments and group projects | D61: Project or Assignment reports and Presentation
A62: Communication Skill
A66: PLO6 | B66: Demonstrate leadership quality. [A3, LS2] | C66: Individual Assignment , mini/ group projects and laboratory works. | D66: Project or Assignment reports
A67: Leadership
A70: PLO7 | B70: Identify and analyse problems as well as propose alternative solutions. [P3, CTPS3] | C70: Project based learning, Active and Cooperative Learning and Case Studies. | D70: Quizzes, Tests, Assignments, Presentations and Examinations.
A71: Critical Thinking and
A72: Problem Solving
A75: PLO8 | B75: Acquire and manage relevant information from various sources as well as new ideas. [A3, LL2] | C75: Individual and group projects, directed reading,cooperative learning and discussion | D75: Project or Assignment reports
A76: Lifelong Learning
A80: PLO9 | B80: Recognize and identify business types and opportunities.[P3, KK1] | C80: Group projects, directed reading, internet searching, lectures, active and cooperative learning | D80: Project or Assignment reports
A81: Entrepreneurship
A85: 15. Total credit hours to graduate 93 credit hours
A86: 16. Programme structures and features, curriculum and award requirements
A87: The programme is offered in full-time mode and based on a 2 Semester Academic Year with several
A88: courses being delivered and assessed in each Semester. Assessment is based on coursework,
A89: final examination and practical training.
A91: Assessment (Refer to KTD’s Academic Regulations):
A92: Final Examination (not more than 50)% and coursework (not more than 60%)
A93: Passing marks for all courses is 45%.
A94: Skill acquisition: 100% Industrial Training including industrial report.
A96: Award requirements:
A97: Students should achieve a total of 93 credit hours with minimum CPA of 2.00
A99: 17. Our uniqueness
A100: a) The students will be exposed with PESAT module for every semester to prepare them to be a good murabbi. leader and muslim. It is in line with KTD's motto; Professional, Competent and Ethical. Student will also be exposed with a contemporary issues related to Investment, financial system and instruments and corporate administration. They will also have some practical experience in handling transactions of financial instruments and setting up companies.
A102: 18. Career Prospects and Career Paths
A104: Diploma of Business Management holders’ can work as an assistant admnistrative officer, line supervisor and assistant executive (administrative and finance).
A106: The candidates may also continue to further their study in various disciplines such as Bachelor of Business Management, Bachelor of Business Administration (Human Resources, Marketing and Operation Management), Bachelor of Economiccs, Bachelor of Information Technology and Education (Management)
A108: 19. KTD Diploma++ Programme
A110: Career and Guidance Talk
A112: 20. Facilities available
A114: i. Computer Laboratory
A117: 21. Support for Students and Their Learning
A118: Personal support
A119: Academic Advisor
A120: Counseling
A122: Infrastructure support
A123: Internet access
A125: Financial support
A126: Perbadanan Tabung Pendidikan Tinggi Negara (PTPTN)
A127: Yayasan Negeri
A128: Pusat Zakat Negeri

Sheet JAD SPESIFIKASI KURSUS DPP
B1: Jadual 1: Jadual Klasifikasi Kursus Program Diploma Pengurusan Perniagaan (DPP)
B3: Bil. | C3: Klasifikasi Kursus | D3: Nilai Kredit yang dicadangkan MQA | E3: Struktur Kurikulum Semasa Akreditasi Penuh | G3: Struktur Kurikulum Terkini | I3: Struktur Kurikulum Baru (2019)
D4: Peratusan (%) | E4: Nilai Kredit | F4: Peratusan (%) | G4: Nilai Kredit | H4: Peratusan (%) | I4: Nilai Kredit | J4: Peratusan (%)
B5: 1 | C5: Kursus wajib MQA | D5: 15-20% | E5: 14 - 18 | F5: 0.0978 | G5: 9 | H5: 0.0978 | I5: 16 | J5: 0.176
B6: 2 | C6: Teras | D6: 40 - 80% | E6: 36 - 72 | F6: 0.3804 | G6: 84 | H6: 0.903 | I6: 63 | J6: 0.692
B7: 4 | C7: Kursus Elektif | D7: 0 - 15% | E7: 0 - 14 | G7: 0 | I7: 6 | J7: 0.066
B8: 5 | C8: Latihan Industri | D8: 0 - 10% | E8: 0 - 9 | G8: 0 | I8: 6 | J8: 0.066
B9: Jumlah Nilai Kredit | D9: 100 | E9: 0 | F9: 100 | G9: 93 | H9: 100 | I9: 91 | J9: 100

Sheet ELS 1212
B2: Back | C2: Name of Course | D2: English Communicatative Skills 1 | AK2: 1 | AL2: 1
C3: Course Code | D3: ELS 1212 | AJ3: √ | AK3: 2 | AL3: 2
B4: 2 | C4: Synopsis | D4: This course exposes students to knowledge in communicating in English language by using the appropriate methodology. Skills and talent can be polished to be an effective communicator in verbal and non-verbal communication which utilises four main skills; writing, reading, listening and speaking in academic and non-academic environment. | U4: =D4 -> This course exposes students to knowledge in communicating in English language by using the appropriate methodology. Skills and talent can be polished to be an effective communicator in verbal and non-verbal communication which utilises four main skills; writing, reading, listening and speaking in academic and non-academic environment. | AK4: 3 | AL4: 3
B5: 3 | C5: Name (s) of Academic Staff | D5: Sharmin Alam | AK5: 4 | AL5: 4
B6: 4 | C6: Semester | D6: Semester | E6: 1 | F6: Year | G6: 1 | AK6: 5
B7: 5 | C7: Credit Value | D7: =IF(AJ59=40,1,(IF(AJ59=80,2,(IF(AJ59=120,3,(IF(AJ59=160,4,IF(AJ59=200,5,IF(AJ59=240,6,""))))))))) ->  | AK7: 6
B8: 6 | C8: Pre-requisite / Co-requisite (if any) | AK8: 7
B9: 7 | C9: Course Learning Outcomes (CLO): At the end of the course the students will be able to: | AK9: 8
C10: (example) - explain the basic principles of immunisation (C2, PLO1) | AK10: 9
C11: CLO1 | D11: Apply writing, reading, listening and speaking with correct use of grammar.(C3, PLO1) | U11: =D11 -> Apply writing, reading, listening and speaking with correct use of grammar.(C3, PLO1) | AK11: 10
C12: CLO2 | D12: Extract information from listening texts, express opinion and relay information confidently and correctly. (C3, CTPS3,PLO2) | U12: Extract information from listening texts, express opinion and relay information confidently and correctly. (C3, CTPS3,PLO2) | AK12: 11
C13: CLO3 | D13: Prepare oral disscussion on given topic in group within time frame. (P2, A2, PLO4)
AK14: 12
B15: 8 | C15: Mapping of the Course Learning Outcomes to the Programme Learning Outcomes, Teaching Methods and Assessment:
C16: Course Learning Outcomes (CLO) | D16: Programme Learning Outcomes (PLO) | P16: Teaching Methods | S16: Assessment
D17: PLO1 | E17: PLO2 | F17: PLO3 | G17: PLO4 | H17: PLO5 | I17: PLO6 | J17: PLO7 | K17: PLO8 | L17: PLO9 | M17: PLO10 | N17: PLO11 | O17: PLO12
C18: CLO1 | D18: √ | P18: Lecture | S18: Test |Final Exam | U18: =S18 -> Test |Final Exam
C19: CLO2 | E19: √ | P19: Lecture | S19: Test
C20: CLO3 | G20: √ | P20: Lecture | Discussion | S20: Presentation
C21: CLO4 | P21: | Presentation | S21: Demonstration
C22: (The description must be read together with standards 2.1.2, 2.2.1 and 2.2.2 in Area 2 - pages 16 & 18)
B23: 9 | C23: Transferable skills (if applicable) | G23: 1 | H23: Knowledge
C24: (Skills learned in the course of study which can be useful and utilised in other settings) | G24: 2 | H24: Cognitive Skill
G25: 3 | H25: Interpersonal Skill
B26: 10 | C26: Distribution of Students Learning Time (SLT)
C27: Course Content Outline | G27: CLO | I27: Teaching and Learning Activities | T27: SLT
I28: Guided learning (F2F) | Q28: Guided Learning (NF2F) eg: e-learning | S28: Independent learning (NF2F)
I29: L | K29: T | M29: P | O29: O
C30: Free Writing in Journal Book | G30: CLO 1 | I30: 2 | S30: 1 | T30: =SUM(I30:S30) -> 3
C31: Briefing of Course Outline Grammar 1.1 Parts of Speech 1.2 Sentence Patterns 1.3 Tenses | G31: CLO 1 | I31: 2 | S31: 1 | T31: 3 | U31: =C31 -> Briefing of Course Outline Grammar 1.1 Parts of Speech 1.2 Sentence Patterns 1.3 Tenses
C32: Writing 2.1 Sentence Writing 2.2 Essay Format 2.3Essay Writing - Argumentative - Comparison & Contrast | G32: CLO 1 | I32: 4 | S32: 2 | T32: 6 | U32: Writing 2.1 Sentence Writing 2.2 Essay Format 2.3Essay Writing - Argumentative - Comparison & Contrast
C33: Writing 2.1 Sentence Writing 2.2 Essay Format 2.3Essay Writing - Argumentative - Comparison & Contrast | G33: CLO 1 | I33: 4 | S33: 2 | T33: 6 | U33: Writing 2.1 Sentence Writing 2.2 Essay Format 2.3Essay Writing - Argumentative - Comparison & Contrast
C34: Reading 3.1 Skimming & Scanning 3.2 Information Transfer 3.3 Contextual Clues 3.4 Making Inferences 3.5 Making Predictions | G34: CLO 3 | I34: 4 | S34: 2 | T34: 6 | U34: Reading 3.1 Skimming & Scanning 3.2 Information Transfer 3.3 Contextual Clues 3.4 Making Inferences 3.5 Making Predictions
C35: Reading 3.1 Skimming & Scanning 3.2 Information Transfer 3.3 Contextual Clues 3.4 Making Inferences 3.5 Making Predictions | G35: CLO 2 | I35: 4 | S35: 2 | T35: 6 | U35: Reading 3.1 Skimming & Scanning 3.2 Information Transfer 3.3 Contextual Clues 3.4 Making Inferences 3.5 Making Predictions
C36: Listening 4.1 General & Specific Ideas 4.2 Note-Taking | G36: CLO 3 | I36: 4 | S36: 2 | T36: 6 | U36: Listening 4.1 General & Specific Ideas 4.2 Note-Taking
C37: Listening 4.1 General & Specific Ideas 4.2 Note-Taking | G37: CLO 3 | I37: 4 | S37: 2 | T37: 6 | U37: Listening 4.1 General & Specific Ideas 4.2 Note-Taking
C38: Speaking 4.1 Impromptu Speech Activities 4.2 Persuasive Speech 4.3 Group Discussion – Persuasion & Negotiation | G38: CLO 4 | I38: 4 | S38: 2 | T38: 6 | U38: Speaking 4.1 Impromptu Speech Activities 4.2 Persuasive Speech 4.3 Group Discussion – Persuasion & Negotiation
C39: Speaking 5.1 Impromptu Speech Activities 5.2 Persuasive Speech 5.3 Group Discussion – Persuasion & Negotiation | G39: CLO 4 | I39: 4 | S39: 2 | T39: 6 | U39: Speaking 5.1 Impromptu Speech Activities 5.2 Persuasive Speech 5.3 Group Discussion – Persuasion & Negotiation
C40: Speaking 5.1 Impromptu Speech Activities 5.2 Persuasive Speech 5.3 Group Discussion – Persuasion & Negotiation | G40: CLO 4 | I40: 2 | S40: 2 | T40: 4 | U40: Speaking 5.1 Impromptu Speech Activities 5.2 Persuasive Speech 5.3 Group Discussion – Persuasion & Negotiation
C41: Total | T41: =SUM(T30:T40) -> 58 | U41: Total
C43: Continuous Assessment | L43: Percentage (%) | N43: F2F | Q43: NF2F | T43: SLT
C44: 1 | D44: Listening Test | L44: 10 | N44: 0.5 | Q44: 1.5 | T44: =SUM(N44:S44) -> 2
C45: 2 | D45: Writing Assignment | L45: 15 | N45: 1.5 | Q45: 3 | T45: 4.5 | U45: =D45 -> Writing Assignment
C46: 3 | D46: Reading Test | L46: 10 | N46: 1.5 | Q46: 2 | T46: 3.5 | U46: Reading Test
C47: 4 | D47: Persuasive Speech | L47: 10 | N47: 1.5 | Q47: 2 | T47: 3.5 | U47: Persuasive Speech
C48: 5 | D48: Journal Writing | L48: 5 | Q48: 0.5 | T48: 0.5 | U48: Journal Writing
C49: Total | T49: =SUM(T44:T48) -> 14
C51: Final Assessment | L51: Percentage (%) | N51: F2F | Q51: NF2F | T51: SLT
C52: 1 | D52: Final Examination | L52: 50 | N52: 2 | Q52: 6 | T52: =SUM(N52:S52) -> 8
C53: 2 | T53: 0 | U53: =D53 -> 
C54: 3 | T54: 0
C55: 4 | T55: 0
C56: 5 | T56: 0
T57: =SUM(T52:T56) -> 8 | U57: =D57 -> 
C59: **Please tick (ü) in this course is Latihan Industri / Clinical Placement / Practicum / WBL using 2 weeks; 1 credit formula | T59: =+T41+T49+T57 -> 80
C60: L= Lecture, T=Tutorial, P=Practical, O=Others, F2F=Face to Face, NF2F=None Face to Face
C61: *Indicate the CLO based on the CLO's numbering in item 8
B62: 11 | C62: Identify special requirement to deliver the course (e.g: software, nursery, computer lab, simulation room, etc) | H62: None
U63: =H63 -> 
B64: 12 | C64: References: | H64: 1. Azar, B.S., Hagen, S.A. (2011). Fundamentals of English Grammar – 4th Edition.USA :Pearson Longman.
C65: (include required and further readings, and should be the most current) | H65: 2. Seng, E.S.K. (2013). Practical English. Malaysia : Cengage Learning 3. Curzan, A., Adams, M.A. (2013) How English Work: A Linguistics Introduction. Pearson | U65: =H65 -> 2. Seng, E.S.K. (2013). Practical English. Malaysia : Cengage Learning 3. Curzan, A., Adams, M.A. (2013) How English Work: A Linguistics Introduction. Pearson
B66: 13 | C66: Other additional Information | H66: Last updated : 24 November 2019 | U66: Last updated : 24 November 2019

Sheet ELS 2222
B2: Back | C2: Name of Course | D2: English Communicative Skills II | AK2: 1 | AL2: 1
C3: Course Code | D3: ELS 2222 | AJ3: √ | AK3: 2 | AL3: 2
B4: 2 | C4: Synopsis | D4: This course exposes students to basic research skills and also report writing in the context of Market Survey Project. They will be able to conduct basic data collection and data analysis as a result of the project. They will be able toapply the project if they were to start an entrepreneurship effort. | U4: =D4 -> This course exposes students to basic research skills and also report writing in the context of Market Survey Project. They will be able to conduct basic data collection and data analysis as a result of the project. They will be able toapply the project if they were to start an entrepreneurship effort. | AK4: 3 | AL4: 3
B5: 3 | C5: Name (s) of Academic Staff | D5: Sharmin Alam | AK5: 4 | AL5: 4
B6: 4 | C6: Semester | D6: Semester | E6: 2 | F6: Year | G6: 1 | AK6: 5
B7: 5 | C7: Credit Value | D7: =IF(AJ57=40,1,(IF(AJ57=80,2,(IF(AJ57=120,3,(IF(AJ57=160,4,IF(AJ57=200,5,IF(AJ57=240,6,""))))))))) ->  | AK7: 6
B8: 6 | C8: Pre-requisite / Co-requisite (if any) | D8: English Communicative Skills I | AK8: 7
B9: 7 | C9: Course Learning Outcomes (CLO): At the end of the course the students will be able to: | AK9: 8
C10: (example) - explain the basic principles of immunisation (C2, PLO1) | AK10: 9
C11: CLO1 | D11: Practice business english in research methodology to develop business proposal (C3, CTPS3, PLO2) | U11: =D11 -> Practice business english in research methodology to develop business proposal (C3, CTPS3, PLO2) | AK11: 10
C12: CLO2 | D12: Prepare final report and presentation based on business report within time frame. (P2, A2, PLO4) | U12: Prepare final report and presentation based on business report within time frame. (P2, A2, PLO4) | AK12: 11
C13: CLO3 | D13: Summarize and paraphase given audio texts. (C2, A3, PLO5)
C14: CLO4
C15: Mapping of the Course Learning Outcomes to the Programme Learning Outcomes, Teaching Methods and Assessment: | AK15: 12
B16: 8 | C16: Course Learning Outcomes (CLO) | D16: Programme Learning Outcomes (PLO) | P16: Teaching Methods | S16: Assessment
D17: PLO1 | E17: PLO2 | F17: PLO3 | G17: PLO4 | H17: PLO5 | I17: PLO6 | J17: PLO7 | K17: PLO8 | L17: PLO9 | M17: PLO10 | N17: PLO11 | O17: PLO12
C18: CLO1 | E18: √ | P18: Lecture | Discussion | S18: Assignment| Final Examination
C19: CLO2 | G19: √ | P19: Practice Exercises | S19: Assignment| Final Examination | U19: =S18 -> Assignment| Final Examination
C20: CLO3 | H20: √ | P20: Practice Exercises | S20: Listening Test | V20: |
C22: (The description must be read together with standards 2.1.2, 2.2.1 and 2.2.2 in Area 2 - pages 16 & 18)
C23: Transferable skills (if applicable) | G23: 1 | H23: Knowledge and understanding skill
C24: (Skills learned in the course of study which can be useful and utilised in other settings) | G24: 2 | H24: Interpersonal skill, Teamwork skill
B25: 9 | G25: 3 | H25: Communication skill
C26: Distribution of Students Learning Time (SLT)
C27: Course Content Outline | G27: CLO | I27: Teaching and Learning Activities | T27: SLT
B28: 10 | I28: Guided learning (F2F) | Q28: Guided Learning (NF2F) eg: e-learning | S28: Independent learning (NF2F)
I29: L | K29: T | M29: P | O29: O
C30: 1.0 Introduction to course 1.1 Revision on sentence structures and paragraph writing | G30: CLO1 | I30: 2 | M30: 2 | S30: 2 | T30: =SUM(I30:S30) -> 6
C31: 2.0 Market Survey Project 2.1 Introduction to Market Survey 2.2 Example of Market Survey | G31: CLO4 | I31: 2 | M31: 2 | S31: 3 | T31: 7
C32: 3.0 Project Proposal 3.1 Background Information on product 3.2 Unique Selling points 3.3 Survey Objectives | G32: CLO4 | I32: 2 | M32: 2 | Q32: 2 | S32: 3 | T32: 9
C33: 4.0 Survey Questionnaire 4.01 writing questions (QuASM Formula) 4.02 Types of questions in Questionnaire | G33: CLO3 | I33: 2 | M33: 2 | Q33: 2 | S33: 3 | T33: 9 | U33: =C31 -> 2.0 Market Survey Project 2.1 Introduction to Market Survey 2.2 Example of Market Survey
C34: 5.0 Report Comprehension 5.01 Types of reports 5.02 Skimming and scanning report 5.03 Identifying main points and supporting details 5.1 Information transfer (texts to diagrams and vice versa) | G34: CLO3 | I34: 2 | M34: 2 | Q34: 2 | S34: 2 | T34: 8 | U34: 3.0 Project Proposal 3.1 Background Information on product 3.2 Unique Selling points 3.3 Survey Objectives
C35: 6.0 Project Report 6.1 Analysing Data 6.2 Passive and Active Sentences 6.3 Writing Data Analysis 6.4 Conclusion 6.5 Recommendations | G35: CLO4 | I35: 2 | M35: 3 | Q35: 5 | S35: 4 | T35: 14 | U35: 4.0 Survey Questionnaire 4.01 writing questions (QuASM Formula) 4.02 Types of questions in Questionnaire
C36: 7.0 Listening 7.1 Listening to summarize 7.2 Listening to paraphase | G36: CLO2 | I36: 2 | M36: 2 | S36: 2 | T36: 6 | U36: =C35 -> 6.0 Project Report 6.1 Analysing Data 6.2 Passive and Active Sentences 6.3 Writing Data Analysis 6.4 Conclusion 6.5 Recommendations
C37: 8.0 Report Presentations 8.1 Structure in presentations 8.2 Visual aids in presentations | G37: CLO2 | I37: 2 | M37: 2 | Q37: 2 | S37: 3 | T37: 9 | U37: =#REF! -> #REF!
T38: 0 | U38: =C36 -> 7.0 Listening 7.1 Listening to summarize 7.2 Listening to paraphase
C39: Total | T39: =SUM(T30:T38) -> 68 | U39: 8.0 Report Presentations 8.1 Structure in presentations 8.2 Visual aids in presentations
C41: Continuous Assessment | L41: Percentage (%) | N41: F2F | Q41: NF2F | T41: SLT | U41: Total
C42: 1 | D42: Project Proposal | L42: 10 | N42: 1 | Q42: 1 | T42: =SUM(N42:S42) -> 2
C43: 2 | D43: Project Report | L43: 10 | N43: 1 | Q43: 1 | T43: 2
C44: 3 | D44: Project Presentation | L44: 10 | Q44: 1 | T44: 1
C45: 4 | D45: Report Comprehension Test | L45: 10 | N45: 1 | Q45: 1 | U45: =D43 -> Project Report
C46: 5 | D46: Listening Test | L46: 10 | N46: 1 | Q46: 1 | T46: =SUM(N46:S46) -> 2 | U46: Project Presentation
C47: Total | T47: =SUM(T42:T46) -> 7 | U47: Report Comprehension Test
U48: Listening Test
C49: Final Assessment | L49: Percentage (%) | N49: F2F | Q49: NF2F | T49: SLT
C50: 1 | D50: Final Examination | L50: 50 | N50: 2.5 | Q50: 2.5 | T50: =SUM(N50:S50) -> 5
C51: 2 | T51: 0
C52: 3 | T52: 0
C53: 4 | T53: 0 | U53: =D51 -> 
C54: 5 | T54: 0
T55: =SUM(T50:T54) -> 5
C57: **Please tick (ü) in this course is Latihan Industri / Clinical Placement / Practicum / WBL using 2 weeks; 1 credit formula | T57: =+T39+T47+T55 -> 80 | U57: =D55 -> 
C58: L= Lecture, T=Tutorial, P=Practical, O=Others, F2F=Face to Face, NF2F=None Face to Face
C59: *Indicate the CLO based on the CLO's numbering in item 8
C60: Identify special requirement to deliver the course (e.g: software, nursery, computer lab, simulation room, etc) | H60: None
B62: 11 | C62: References: | H62: Norazman Abdul Majid, Masdinah Alauyah Md. Yusoff, Tina Abdullah, et.al. (2010). Academic Report Writing: From Research to Presentation. (Updated 2nd ed.). Petaling Jaya: Prentice Hall.
H63: Pfeiffer, W.S., Keller C.H.Jr,. (2000). Proposal Writing: The Art of Friendly and Winning Persuasion. New Jersey : Prentice Hall.
H64: Rajeswary A. Sargunan, Evelyn Khor, Khatijah Samsudin, & Rema Menon. (2010). Report Writing for Business and Professional Purposes: An Introduction. (2nd ed.). Shah Alam: Mc Graw Hill.
C65: (include required and further readings, and should be the most current) | H65: Jordan, R.R (2007) Academic Writing Course: Skill in English. (3rd ed.) England: Longman | U65: =H61 -> 
B66: 12 | C66: Other additional Information | H66: Last updated : 24th November 2019
U67: =H65 -> Jordan, R.R (2007) Academic Writing Course: Skill in English. (3rd ed.) England: Longman

Sheet ELS 2232
B2: Back | C2: Name of Course | D2: English Communicative Skills III | AK2: 1 | AL2: 1
C3: Course Code | D3: ELS 2232 | AJ3: √ | AK3: 2 | AL3: 2
B4: 2 | C4: Synopsis | D4: This course prepares students with communicating and writing skills in their job search. It also expose students to the process of finding work after graduating. Also, apply the professionalism and ethics in the workplace among students. | U4: =D4 -> This course prepares students with communicating and writing skills in their job search. It also expose students to the process of finding work after graduating. Also, apply the professionalism and ethics in the workplace among students. | AK4: 3 | AL4: 3
B5: 3 | C5: Name (s) of Academic Staff | D5: Sharmin Alam | AK5: 4 | AL5: 4
B6: 4 | C6: Semester | D6: Semester | E6: 1 | F6: Year | G6: 2 | AK6: 5
B7: 5 | C7: Credit Value | D7: =IF(AZ51=40,1,(IF(AZ51=80,2,(IF(AZ51=120,3,(IF(AZ51=160,4,IF(AZ51=200,5,IF(AZ51=240,6,""))))))))) ->  | AK7: 6
B8: 6 | C8: Pre-requisite / Co-requisite (if any) | D8: ELS 2222 | AK8: 7
B9: 7 | C9: Course Learning Outcomes (CLO): At the end of the course the students will be able to: | AK9: 8
C10: (example) - explain the basic principles of immunisation (C2, PLO1) | AK10: 9
C11: CLO1 | D11: Apply comprehensive reading, speakind and listening, and formal writing in job search. (C3, PLO1) | U11: =D11 -> Apply comprehensive reading, speakind and listening, and formal writing in job search. (C3, PLO1) | AK11: 10
C12: CLO2 | D12: Prepare curriculum vitae, job application letter, and various documents related to career. (A3, C3, PLO9) | U12: Prepare curriculum vitae, job application letter, and various documents related to career. (A3, C3, PLO9) | AK12: 11
C13: CLO3 | D13: Demonstrate the ability of profesionnal skill with positive attitude and good ethics during the interview for their career path. (A3, EM1, EM2, PLO11)
C14: Mapping of the Course Learning Outcomes to the Programme Learning Outcomes, Teaching Methods and Assessment: | AK14: 12
B15: 8 | C15: Course Learning Outcomes (CLO) | D15: Programme Learning Outcomes (PLO) | P15: Teaching Methods | S15: Assessment
D16: PLO1 | E16: PLO2 | F16: PLO3 | G16: PLO4 | H16: PLO5 | I16: PLO6 | J16: PLO7 | K16: PLO8 | L16: PLO9 | M16: PLO10 | N16: PLO11 | O16: PLO12
C17: CLO1 | D17: √ | P17: Lecture | Discussion | S17: Final Examination
C18: CLO2 | L18: √ | P18: Practice Exercises | S18: Assignment | Presentation | Project | U18: =S17 -> Final Examination
C19: CLO3 | N19: √ | P19: Practice Exercises | S19: Oral Test | V19: |
C21: (The description must be read together with standards 2.1.2, 2.2.1 and 2.2.2 in Area 2 - pages 16 & 18)
C22: Transferable skills (if applicable) | G22: 1 | H22: Knowledge and understanding skill
C23: (Skills learned in the course of study which can be useful and utilised in other settings) | G23: 2 | H23: Personal Skill, LifeLong Learning
B24: 9 | G24: 3 | H24: Ethics and profesionnalism skill
C25: Distribution of Students Learning Time (SLT)
C26: Course Content Outline | G26: CLO | I26: Teaching and Learning Activities | T26: SLT
B27: 10 | I27: Guided learning (F2F) | Q27: Guided Learning (NF2F) eg: e-learning | S27: Independent learning (NF2F)
I28: L | K28: T | M28: P | O28: O
C29: 1.0 Reading 1.1 Analyzing job advertisements 1.2 Components of job advertisements 1.3 Job Searching skills 1.4 Online 1.5 Printed Media | G29: CLO1 | I29: 3 | M29: 2 | S29: 7 | T29: =SUM(I29:S29) -> 12
C30: 2.0 Speaking & Listening 2.1 Interview 2.2 Career information searching techniques 2.3 Presentation of career planning 2.4 Job interview- common questions in job interview, tips and techniques of an effective job interview, job interview Do's and Don'ts | G30: CLO3 | I30: 3 | M30: 2 | O30: 0 | S30: 10 | T30: 15
C31: 3.0 Writing 3.1 Letter of inquiry 3.2 Letter of complaint 3.3 Job Application letter 3.4 Curriculum vitae 3.5 Office memorandum 3.6 Report | G31: CLO2 | I31: 3 | M31: 2 | Q31: 8 | S31: 7 | T31: 20
C32: Total | T32: =SUM(T29:T31) -> 47 | U32: =#REF! -> #REF!
U33: #REF!
C34: Continuous Assessment | L34: Percentage (%) | N34: F2F | Q34: NF2F | T34: SLT | U34: =C32 -> Total
C35: 1 | D35: Assignment - Job scan | L35: 10 | Q35: 5 | T35: =SUM(N35:S35) -> 5
C36: 2 | D36: Presentation - Career plan | L36: 5 | N36: 2 | Q36: 4 | T36: 6
C37: 3 | D37: Assignment - Resume writing | L37: 5 | Q37: 5 | T37: 5
C38: 4 | D38: Assignment - Application letter | L38: 10 | N38: 2 | Q38: 5 | U38: =D36 -> Presentation - Career plan
C39: 5 | D39: Oral Test - Job Interview | L39: 10 | N39: 2
C40: 6 | D40: Final Project | L40: 10 | N40: 2 | Q40: 5 | T40: =SUM(N40:S40) -> 7 | U40: =D37 -> Assignment - Resume writing
C41: Total | T41: =SUM(T35:T40) -> 23 | U41: Assignment - Application letter
U42: =D40 -> Final Project
C43: Final Assessment | L43: Percentage (%) | N43: F2F | Q43: NF2F | T43: SLT
C44: 1 | D44: Final Examination | L44: 50 | N44: 2.5 | Q44: 7.5 | T44: =SUM(N44:S44) -> 10
T45: 0
T46: 0
T47: 0 | U47: =D45 -> 
T48: 0
T49: =SUM(T44:T48) -> 10
C51: **Please tick (ü) in this course is Latihan Industri / Clinical Placement / Practicum / WBL using 2 weeks; 1 credit formula | T51: =+T32+T41+T49 -> 80 | U51: =D49 -> 
C52: L= Lecture, T=Tutorial, P=Practical, O=Others, F2F=Face to Face, NF2F=None Face to Face
C53: *Indicate the CLO based on the CLO's numbering in item 8
C54: Identify special requirement to deliver the course (e.g: software, nursery, computer lab, simulation room, etc) | H54: None
B56: 11 | C56: References: | H56: Jonny et.al. (2010) English for Proffessional Communication Business and Commerce Singapore: Cengage Learning Asia Pte Ltd
H57: Taylor, S, (2005) Communication For Business, A Practical Approach, 4th Edition England: Pearson Education Ltd.
H58: Samsiah Abdul Hamid & Rosyati Abdul Rashid, (2012) Mastering English For Employment, Cengage Learning Asia Pte Ltd.
B59: 12 | H59: Fiona Talbot, ,( 2016) How to Write Effective Business English, Kogan Page LTD, United Kingdom.
C60: Other additional Information | H60: Last updated : 24th November 2019 | U60: =#REF! -> #REF!

Sheet MPU2163
B2: Back | C2: Name of Course | D2: Pengajian Malaysia | AK2: 1 | AL2: 1
C3: Course Code | D3: MPU2163 | AJ3: √ | AK3: 2 | AL3: 2
B4: 2 | C4: Synopsis | D4: Kursus ini membincangkan tentang persejarahan Malaysia secara komprehensif dan interaktif dari zaman Prasejarah hingga kini. Perbincangan juga mencakupi aspek sistem dan struktur perlembagaan, rancangan pembangunan serta isu-isu semasa berkaitan hubungan dengan masyarakat dan pembangunan insan serta alam sekitar. | U4: =D4 -> Kursus ini membincangkan tentang persejarahan Malaysia secara komprehensif dan interaktif dari zaman Prasejarah hingga kini. Perbincangan juga mencakupi aspek sistem dan struktur perlembagaan, rancangan pembangunan serta isu-isu semasa berkaitan hubungan dengan masyarakat dan pembangunan insan serta alam sekitar. | AK4: 3 | AL4: 3
B5: 3 | C5: Name (s) of Academic Staff | D5: Noor Enaida Tutan Khamin | AK5: 4 | AL5: 4
B6: 4 | C6: Semester | D6: Semester | E6: 1 | F6: Year | G6: 1 | AK6: 5
B7: 5 | C7: Credit Value | D7: =IF(AJ60=40,1,(IF(AJ60=80,2,(IF(AJ60=120,3,(IF(AJ60=160,4,IF(AJ60=200,5,IF(AJ60=240,6,""))))))))) ->  | AK7: 6
B8: 6 | C8: Pre-requisite / Co-requisite (if any) | AK8: 7
B9: 7 | C9: Course Learning Outcomes (CLO): At the end of the course the students will be able to: | AK9: 8
C10: (example) - explain the basic principles of immunisation (C2, PLO1) | AK10: 9
C11: CLO1 | D11: Menerangkan aspek sejarah negara dan bangsa, perlembagaan negara, dan perkembangan masyarakat dalam aspek sosial budaya, politik dan ekonomi. (C2, PLO1) | U11: =D11 -> Menerangkan aspek sejarah negara dan bangsa, perlembagaan negara, dan perkembangan masyarakat dalam aspek sosial budaya, politik dan ekonomi. (C2, PLO1) | AK11: 10
C12: CLO2 | D12: Membincangkan cabaran dan cara menangani permasalahan berkaitan kenegaraan ke arah peningkatan patriotisme. (A2, C2, PLO2) | U12: Membincangkan cabaran dan cara menangani permasalahan berkaitan kenegaraan ke arah peningkatan patriotisme. (A2, C2, PLO2) | AK12: 11
C13: CLO3 | D13: Membentuk semangat patriotisme, nasionalisme dan kesukarelawan melalui aktiviti bersama. (A3, P2, PLO11)
AK14: 12
B15: 8
C16: Course Learning Outcomes (CLO) | D16: Programme Learning Outcomes (PLO) | P16: Teaching Methods | S16: Assessment
D17: PLO1 | E17: PLO2 | F17: PLO3 | G17: PLO4 | H17: PLO5 | I17: PLO6 | J17: PLO7 | K17: PLO8 | L17: PLO9 | M17: PLO10 | N17: PLO11 | O17: PLO12
C18: CLO1 | D18: √ | P18: Lecture | Discussion | S18: Quiz| Test | Final Examination | U18: =S18 -> Quiz| Test | Final Examination
C19: CLO2 | E19: √ | P19: Activities|Discussion | S19: Assignment
C20: CLO3 | N20: √ | P20: Activities | S20: Assignment
C22: (The description must be read together with standards 2.1.2, 2.2.1 and 2.2.2 in Area 2 - pages 16 & 18)
B23: 9 | C23: Transferable skills (if applicable) | G23: 1 | H23: Pengetahuan
C24: (Skills learned in the course of study which can be useful and utilised in other settings) | G24: 2 | H24: Kemahiran berfikir dan penyelesaian masalah
G25: 3 | H25: Etika dan moral
C26: Distribution of Students Learning Time (SLT)
C27: Course Content Outline | G27: CLO | I27: Teaching and Learning Activities | T27: SLT
I28: Guided learning (F2F) | Q28: Guided Learning (NF2F) eg: e-learning | S28: Independent learning (NF2F)
I29: L | K29: T | M29: P | O29: O
C30: BAHAGIAN 1: SEJARAH DAN POLITIK 1.0 Pengenalan 1.1.1 Kesultanan Melaka 1.1.2 Kesultanan Johor 1.1.3 Pengasas Kesultanan-kesultanan Melayu Lain 1.2. Penjajahan Kuasa Asing 1.2.1 Penjajahan Portugis 1.2.2 Penjajahan Belanda 1.2.3 Penjajahan British 1.3 Sabah dan Sarawak Sehingga 1941 1.3.1 Sabah 1.3.2 Sarawak | G30: CLO 1 | I30: 1 | K30: 2 | S30: 2 | T30: =SUM(I30:S30) -> 5
C31: 1.4 Kemerdekaan 1.4.1 Reaksi Masyarakat Tempatan terhadap Penjajahan British 1.4.2 Pendudukan Jepun 1.4.3 Perjuangan Kemerdekaan 1.4.4 Perjuanagan dan Idea-idea Semangat Kebangsaan Melalui Akhbar dan Majalah 1.4.5 Gerakan Berpersatuan 1.4.6 Kesatuan Malaya (Malayan Union) 1.4.7 Persekutuan Tanah Melayu (PTM) 1.4.8 Kemunculan Parti-parti Politik di Tanah Melayu Selepas Perang Dunia Kedua 1.4.9 Rundingan Kemerdekaan 1.5 Pembentukann Malaysia 1.5.1 Latarbelakang Pembentukan Malaysia 1.5.2 Faktor-faktor Penubuhan Malaysia 1.5.3 Reaksi Sabah, Sarawak, Brunei dan Singapura 1.5.4 Reaksi Indonesia dan Filipina 1.5.5 Proses pembentukan Malaysia 1.5.6 Isu Brunei dan Singapura 1.6 Kesimpulan | G31: CLO 1 | I31: 2 | K31: 2 | S31: 2 | T31: 6 | U31: =C31 -> 1.4 Kemerdekaan 1.4.1 Reaksi Masyarakat Tempatan terhadap Penjajahan British 1.4.2 Pendudukan Jepun 1.4.3 Perjuangan Kemerdekaan 1.4.4 Perjuanagan dan Idea-idea Semangat Kebangsaan Melalui Akhbar dan Majalah 1.4.5 Gerakan Berpersatuan 1.4.6 Kesatuan Malaya (Malayan Union) 1.4.7 Persekutuan Tanah Melayu (PTM) 1.4.8 Kemunculan Parti-parti Politik di Tanah Melayu Selepas Perang Dunia Kedua 1.4.9 Rundingan Kemerdekaan 1.5 Pembentukann Malaysia 1.5.1 Latarbelakang Pembentukan Malaysia 1.5.2 Faktor-faktor Penubuhan Malaysia 1.5.3 Reaksi Sabah, Sarawak, Brunei dan Singapura 1.5.4 Reaksi Indonesia dan Filipina 1.5.5 Proses pembentukan Malaysia 1.5.6 Isu Brunei dan Singapura 1.6 Kesimpulan
C32: BAHAGIAN 2 : PERLEMBAGAAN MALAYSIA 2.0 Perlembagaan Malaysia 2.1. Definisi Malaysia 2.2. Sejarag Penggubalan Perlembagaan 2.2.1 Peranan Perlembagaan 2.2.2 Pembentukan Perlembagaan 2.3 Keluhuran Perlembagaan 2.3.1 Undang-undang Utama Perlembagaan 2.3.2 Ketertinggian Perlembagaan 2.3.3 Pindaan Perlembagaan 2.3.4 Perlembagaan Persekutuan dan Negeri | G32: CLO 1 | I32: 2 | K32: 2 | S32: 4 | T32: 8 | U32: BAHAGIAN 2 : PERLEMBAGAAN MALAYSIA 2.0 Perlembagaan Malaysia 2.1. Definisi Malaysia 2.2. Sejarag Penggubalan Perlembagaan 2.2.1 Peranan Perlembagaan 2.2.2 Pembentukan Perlembagaan 2.3 Keluhuran Perlembagaan 2.3.1 Undang-undang Utama Perlembagaan 2.3.2 Ketertinggian Perlembagaan 2.3.3 Pindaan Perlembagaan 2.3.4 Perlembagaan Persekutuan dan Negeri
C33: 2.4 Peruntukan Penting dalam Perlembagaan 2.4.1 Bahasa Melayu 2.4.2 Pemerintahan Beraja 2.4.3 Islam sebagai Agama Persekutuan dan Kedudukan Agama-agama Lain 2.4.4 Kewarganegaraan 2.4.5 Kedudukan Istemewa Orang Melayu, Bumiputera dan Hak Kaum-kaum Lain 2.4.6 Individu di Sisi Perlembagaan 2.5 Kesimpulan | G33: CLO 1 | I33: 2 | K33: 2 | S33: 4 | T33: 8 | U33: 2.4 Peruntukan Penting dalam Perlembagaan 2.4.1 Bahasa Melayu 2.4.2 Pemerintahan Beraja 2.4.3 Islam sebagai Agama Persekutuan dan Kedudukan Agama-agama Lain 2.4.4 Kewarganegaraan 2.4.5 Kedudukan Istemewa Orang Melayu, Bumiputera dan Hak Kaum-kaum Lain 2.4.6 Individu di Sisi Perlembagaan 2.5 Kesimpulan
C34: BAHAGIAN 3 : SISTEM DAN STRUKTUR PENTADBIRAN 3.0 Pengenalan 3.1. Konsep Federalisme 3.2. Demokrasi Berparlimen di Malaysia 3.2.1 Maksud Demokrasi Berparlimen 3.2.2 Ciri-ciri Negara Demokrasi Berparlimen 3.3 Komponen Utama Kerajaan Malaysia 3.3.1 Yang di-Pertuan Agong (YDPA) 3.3.2 Badan Pentadbiran/Pelaksana (Eksekutif) 3.3.3 Badan Perundangan (Legislatif) 3.3.4 Badan Kehakiman (Judisiari) 3.4 Kesimpulan | G34: CLO 1 | I34: 2 | K34: 2 | S34: 2 | T34: 6 | U34: BAHAGIAN 3 : SISTEM DAN STRUKTUR PENTADBIRAN 3.0 Pengenalan 3.1. Konsep Federalisme 3.2. Demokrasi Berparlimen di Malaysia 3.2.1 Maksud Demokrasi Berparlimen 3.2.2 Ciri-ciri Negara Demokrasi Berparlimen 3.3 Komponen Utama Kerajaan Malaysia 3.3.1 Yang di-Pertuan Agong (YDPA) 3.3.2 Badan Pentadbiran/Pelaksana (Eksekutif) 3.3.3 Badan Perundangan (Legislatif) 3.3.4 Badan Kehakiman (Judisiari) 3.4 Kesimpulan
C35: BAHAGIAN 4 : KEMASYARAKATAN DAN PERPADUAN 4.0 Pengenalan 4.1. Kom[osisi dan Taburan Pendudukan Sebelum Merdeka 4..1.1 Kaum Melayu 4.1.2 Kaum Cina 4.1.3 Kaum India 4.2 Komposisi dan Taburan Penduduk Selepas Merdeka | G35: CLO 1 | I35: 2 | K35: 2 | S35: 2 | T35: 6 | U35: BAHAGIAN 4 : KEMASYARAKATAN DAN PERPADUAN 4.0 Pengenalan 4.1. Kom[osisi dan Taburan Pendudukan Sebelum Merdeka 4..1.1 Kaum Melayu 4.1.2 Kaum Cina 4.1.3 Kaum India 4.2 Komposisi dan Taburan Penduduk Selepas Merdeka
C36: 4.3 Perpaduan Negara dan Integrasi Nasional 4.3.1 Cabaran Membina Negara Bangsa 4.3.2 Rusuhan Kaum 13 Mei 1969 4.3.3 Usaha Kearah Perpaduan dan Integrasi Nasional 4.4 Rukun Negara sebagai Satu Strategi pemantapan Perpaduan 4.4.1 Latar Belakang Rukun Negara 4.4.2 Objektif Rukunn Negara 4.4.3 Prinsip-prinsip Rukun Negara 4.5 Kesimpulan | G36: CLO 1 | I36: 2 | K36: 2 | S36: 5 | T36: 9 | U36: 4.3 Perpaduan Negara dan Integrasi Nasional 4.3.1 Cabaran Membina Negara Bangsa 4.3.2 Rusuhan Kaum 13 Mei 1969 4.3.3 Usaha Kearah Perpaduan dan Integrasi Nasional 4.4 Rukun Negara sebagai Satu Strategi pemantapan Perpaduan 4.4.1 Latar Belakang Rukun Negara 4.4.2 Objektif Rukunn Negara 4.4.3 Prinsip-prinsip Rukun Negara 4.5 Kesimpulan
C37: BAHAGIAN 5 : PEMBANGUNAN NEGARA 5.0 Pengenalan 5.1 Rancangan Pembangunan Lima Tahun 5.2 Rancangan Pembangunan Jangka Panjang 5.2.1 Dasar Ekonomi Baru (DEB) 5.2.2 Dasar Pembangunan Nasional (DPN) 5.2.3 Dasar Wawasan Negara (DWN) 5.2.4 wawasan 2020 5.2.5 Transformati Nasional 2050 (TN50) 5.3 Dasar Ekonomi 5.3.1 Dasar Pertanian Negara 5.3.2 Dasar Perindustrian Negara 5.3.3 Pelan Induk Perindustrian Negara 5.3.4 Model Ekonomi Baru | G37: CLO 1 | I37: 2 | K37: 2 | S37: 3 | T37: 7 | U37: BAHAGIAN 5 : PEMBANGUNAN NEGARA 5.0 Pengenalan 5.1 Rancangan Pembangunan Lima Tahun 5.2 Rancangan Pembangunan Jangka Panjang 5.2.1 Dasar Ekonomi Baru (DEB) 5.2.2 Dasar Pembangunan Nasional (DPN) 5.2.3 Dasar Wawasan Negara (DWN) 5.2.4 wawasan 2020 5.2.5 Transformati Nasional 2050 (TN50) 5.3 Dasar Ekonomi 5.3.1 Dasar Pertanian Negara 5.3.2 Dasar Perindustrian Negara 5.3.3 Pelan Induk Perindustrian Negara 5.3.4 Model Ekonomi Baru
C38: 5.4 Dasar Sosial 5.4.1 Perkembangan Pendidikan Malaysia dan Dasar Pendidikan Kebangsaan 5.4.2 Dasar Kebdayaan Kebangsaan 5.4.3 Dasar Sosial Negara 5.4.4 dasar Wanita Negara 5.4.5 Dasar Keluarga Negara 5.4.6 Pelan Tindakan Pembangunan Belia 5.4.7 Pelan Integriti Nasional 5.4.8 Dasar Penerapan Nilai-nilai Islam 5.4.9 1 Malaysia | G38: CLO 1 | I38: 4 | K38: 2 | S38: 3 | T38: 9 | U38: 5.4 Dasar Sosial 5.4.1 Perkembangan Pendidikan Malaysia dan Dasar Pendidikan Kebangsaan 5.4.2 Dasar Kebdayaan Kebangsaan 5.4.3 Dasar Sosial Negara 5.4.4 dasar Wanita Negara 5.4.5 Dasar Keluarga Negara 5.4.6 Pelan Tindakan Pembangunan Belia 5.4.7 Pelan Integriti Nasional 5.4.8 Dasar Penerapan Nilai-nilai Islam 5.4.9 1 Malaysia
C39: 5.5 Dasar Luar 5.5.1 Latar Belakang Hubungan Luar Malaysia 5.5.2 Pertubuhan Negara-negara Asia Tenggara (ASEAN) 5.5.3 Pertubuhan Negara-negara Islam 5.5.4 Pertubuhan negara-negara Bekas jajahan British (KOMANWEL) 5.5.5 Pertubuhan Bangsa-bangsa Bersatu (PBB) 5.5.6 Pergerakan Negara-negara Berkecuali (NAM) 5.5.7 Kerjasama Selatan-Selatan (KSS) 5.5.8 Kerjasama Ekonomi Asia Timur (EAEC) 5.5.9 Organization for Economic Coorperation (Developing/D-8) 5.6 Kesimpulan | G39: CLO 1 | I39: 4 | K39: 4 | S39: 4 | T39: 12 | U39: 5.5 Dasar Luar 5.5.1 Latar Belakang Hubungan Luar Malaysia 5.5.2 Pertubuhan Negara-negara Asia Tenggara (ASEAN) 5.5.3 Pertubuhan Negara-negara Islam 5.5.4 Pertubuhan negara-negara Bekas jajahan British (KOMANWEL) 5.5.5 Pertubuhan Bangsa-bangsa Bersatu (PBB) 5.5.6 Pergerakan Negara-negara Berkecuali (NAM) 5.5.7 Kerjasama Selatan-Selatan (KSS) 5.5.8 Kerjasama Ekonomi Asia Timur (EAEC) 5.5.9 Organization for Economic Coorperation (Developing/D-8) 5.6 Kesimpulan
C40: BAGAHIAN 6 : AGAMA 6.0 Pengenalan 6.1 Kepentingan Beragama 6.2 Agama di Malaysia 6.2.1 Islam 6.2.2 Buddha 6.2.3 Konfusianisme 6.2.4 Taoisme 6.2.5 Hindu 6.2.6 Kristian | G40: CLO 1 | I40: 2 | K40: 2 | S40: 2 | T40: 6
C41: 6.3 Kedudukan Agama dalam Perlembagaan Persekutuan 6.3.1 Peruntukan Berhubung Agama 6.3.2 Rasional Perkara 3 dan Perkara 11 6.4 Agama dan Masyarakat 6.4.1 Institusi/Pertubuhan Keagamaan 6.4.2 Perayaan dan Hari Penting bagi Masyarakat di Malaysia 6.5 Kesimpulan | G41: CLO 2 | I41: 2 | K41: 2 | S41: 5 | T41: 9 | U41: =C41 -> 6.3 Kedudukan Agama dalam Perlembagaan Persekutuan 6.3.1 Peruntukan Berhubung Agama 6.3.2 Rasional Perkara 3 dan Perkara 11 6.4 Agama dan Masyarakat 6.4.1 Institusi/Pertubuhan Keagamaan 6.4.2 Perayaan dan Hari Penting bagi Masyarakat di Malaysia 6.5 Kesimpulan
C42: Total | T42: =SUM(T30:T41) -> 91 | U42: Total
C44: Continuous Assessment | L44: Percentage (%) | N44: F2F | Q44: NF2F | T44: SLT
C45: 1 | D45: Assignment (2) | L45: 20 | Q45: 12 | T45: =SUM(N45:S45) -> 12
C46: 2 | D46: Quiz (2) | L46: 20 | N46: 1 | Q46: 2 | T46: 3 | U46: =D46 -> Quiz (2)
C47: 3 | D47: Test | L47: 10 | N47: 2 | Q47: 4 | T47: 6 | U47: Test
C48: 4 | T48: 0
C49: 5 | T49: 0
C50: Total | T50: =SUM(T45:T49) -> 21
C52: Final Assessment | L52: Percentage (%) | N52: F2F | Q52: NF2F | T52: SLT
C53: 1 | D53: Final Examination | L53: 50 | N53: 2.5 | Q53: 5.5 | T53: =SUM(N53:S53) -> 8
C54: 2 | T54: 0 | U54: =D54 -> 
C55: 3 | T55: 0
C56: 4 | T56: 0
C57: 5 | T57: 0
T58: =SUM(T53:T57) -> 8 | U58: =D58 -> 
C60: **Please tick (ü) in this course is Latihan Industri / Clinical Placement / Practicum / WBL using 2 weeks; 1 credit formula | T60: =+T42+T50+T58 -> 120
C61: L= Lecture, T=Tutorial, P=Practical, O=Others, F2F=Face to Face, NF2F=None Face to Face
C62: *Indicate the CLO based on the CLO's numbering in item 8
B63: 11 | C63: Identify special requirement to deliver the course (e.g: software, nursery, computer lab, simulation room, etc) | H63: None
U64: =H64 -> 
B65: 12 | C65: References: | H65: Mardiana Nordin & Hasnah Hussin. (2019). Pengajian Malaysia. Petaling Jaya. Fajar Bakti Sdn. Bhd.
C66: (include required and further readings, and should be the most current) | H66: Hairol Anuar Mak Din. (2006). Pengajian Malaysia: Kenegaraan & Patriotisme. Bangi: Kolej Universiti Islam Antarabangsa Selangor. | U66: =H66 -> Hairol Anuar Mak Din. (2006). Pengajian Malaysia: Kenegaraan & Patriotisme. Bangi: Kolej Universiti Islam Antarabangsa Selangor.
B67: 13 | C67: Other additional Information | H67: Last updated : 24 November 2019 | U67: Last updated : 24 November 2019

Sheet MPU2143
B2: Back | C2: Name of Course | D2: Bahasa Melayu Komunikasi 2
C3: Course Code | D3: MPU2143
B4: 2 | C4: Synopsis | D4: Kursus ini menekankan supaya pelajar antarabangsa di Malaysia dapat menguasai kemahiran asas Bahasa Melayu, kecekapan untuk berkomunikasi bagi melahirkan pendapat dan perasaan samaada secara lisan ataupun penulisan. Kursus ini mendedahkan kepada pelajar tentang penggunaan tatabahasa asas digabungjalinkan dalam kemahiran berbahasa melalui pelbagai latihan dan kegiatan interaktif. Pada akhir pembelajaran, pelajar boleh berinteraksi menggunakan Bahasa Melayu mudah dan dapat membaca serta memahami ayat Bahasa Melayu mudah. Disamping itu, pelajar juga boleh menulis karangan pendek berkaitan kehidupan seharian.
B5: 3 | C5: Name (s) of Academic Staff | D5: Noor Enaida Binti Tutan Khamin
B6: 4 | C6: Semester | D6: Semester | E6: 1 | F6: Year | G6: 1
B7: 5 | C7: Credit Value | D7: =IF(T56=40,1,(IF(T56=80,2,(IF(T56=120,3,(IF(T56=160,4,IF(T56=200,5,IF(T56=240,6,""))))))))) -> 3
B8: 6 | C8: Pre-requisite / Co-requisite (if any)
B9: 7 | C9: Course Learning Outcomes (CLO): At the end of the course the students will be able to:
C10: (example) - explain the basic principles of immunisation (C2, PLO1)
C11: CLO1 | D11: Mengetahui sistem bunyi, sistem ejaan rumi, kosa kata dan tatabahasa Melayu. (C2, PLO1)
C12: CLO2 | D12: Membaca dan memahami bahan-bahan bacaan yang mudah. (P4, PLO2)
C13: CLO3 | D13: Mendengar, memahami dan bertutur dalam pelbagai situasi harian. (CS3, PLO4)
B14: 8 | C14: Mapping of the Course Learning Outcomes to the Programme Learning Outcomes, Teaching Methods and Assessment:
C15: Course Learning Outcomes (CLO) | D15: Programme Learning Outcomes (PLO) | P15: Teaching Methods | S15: Assessment
D16: PLO1 | E16: PLO2 | F16: PLO3 | G16: PLO4 | H16: PLO5 | I16: PLO6 | J16: PLO7 | K16: PLO8 | L16: PLO9 | M16: PLO10 | N16: PLO11 | O16: PLO12
C17: CLO1 | D17: √ | P17: Lecture | Discussion | S17: Assignment | Test | Final Examination
C18: CLO2 | E18: √ | P18: Lecture | Activities | S18: Assignment
C19: CLO3 | G19: √ | P19: Lecture | Activities | Presentation | S19: Project | Final Examination
C20: (The description must be read together with standards 2.1.2, 2.2.1 and 2.2.2 in Area 2 - pages 16 & 18)
B21: 9 | C21: Transferable skills (if applicable) | G21: 1 | H21: Self-Management and Learning
C22: (Skills learned in the course of study which can be useful and utilised in other settings) | G22: 2 | H22: Communication and Teamwork
G23: 3 | H23: Problem Solving and Information Technology
B24: 10 | C24: Distribution of Students Learning Time (SLT)
C25: Course Content Outline | G25: CLO | I25: Teaching and Learning Activities | T25: SLT
I26: Guided learning (F2F) | Q26: Guided Learning (NF2F) eg: e-learning | S26: Independent learning (NF2F)
I27: L | K27: T | M27: P | O27: O
C28: 1.0 Bunyi Dan Sebutan 1.1 Vokal Dan Diftong 1.2 Konsonan Dan Gugusan Konsonan 1.3 Nombor | G28: CLO 1 | I28: 2 | K28: 2 | S28: 4 | T28: =SUM(I28:S28) -> 8
C29: 2.0 Saya, Kawan Dan Keluarga 2.1 Diri Saya 2.2 Saya Dan Kawan Saya 2.3 Kawan Dan Keluarga | G29: CLO 1 | I29: 2 | K29: 2 | S29: 4 | T29: 8
C30: 3.0 Persekitaran 3.1 Aktiviti Seharian 3.2 Tempat Tinggal Saya 3.3 Di Kafeteria 3.4 Berbelanja | G30: CLO 3 | I30: 2 | K30: 2 | S30: 4 | T30: 8
C31: 4.0 Situasi Perbualan 4.1 Perbualan Di Telefon 4.2 Perbualan Di Kaunter 4.3 Perbualan Di Kedai dan Restoran | G31: CLO 2 | I31: 2 | K31: 2 | S31: 4 | T31: 8
C32: 5.0 Percutian 5.1 Tempat Menarik 5.2 Perjalanan 5.3 Inap Desa | G32: CLO 3 | I32: 2 | K32: 2 | S32: 4 | T32: 8
C33: 6.0 Tradisi Dan Budaya 6.1. Adat Dan Adab Masyarakat Melayu 6.2. Kesenian Malaysia 6.3. Perayaan | G33: CLO 3 | I33: 4 | K33: 4 | S33: 5 | T33: 13
C34: 7.0 Pendapat 7.1. Memberi Pendapat 7.2. Membuat Perbandingan 7.3. Membuat Aduan | G34: CLO 2 | I34: 4 | K34: 4 | S34: 5 | T34: 13
C35: 8.0 Perbincangan 8.1. Ciri-Ciri Perbincangan Yang Baik 8.2. Tanggungjawab Ketua / Pengerusi 8.3 Tanggungjawab Ahli Perbincangan | G35: CLO 3 | I35: 4 | K35: 4 | S35: 5 | T35: 13
C36: 9.0 Pengucapan Umum 9.1 Kata Kunci Ucapan Umum 9.2 Ciri-Ciri Penyampaian Yang Baik | G36: CLO3 | I36: 2 | K36: 2 | S36: 4 | T36: 8
C37: 10. Projek (Perancangan Majlis) 10.1. Maklumat Tentang Majlis 10.2 Atur Cara Majlis 10.3 Penubuhan Jawatankuasa 10.4 Juruacara | G37: CLO 2 | I37: 4 | K37: 4 | S37: 5 | T37: 13
C38: Total | T38: =SUM(T28:T37) -> 100
C40: Continuous Assessment | L40: Percentage (%) | N40: F2F | Q40: NF2F | T40: SLT
C41: 1 | D41: Assignment 1 | L41: 10 | Q41: 3 | T41: =SUM(N41:S41) -> 3
C42: 2 | D42: Assignment 2 | L42: 20 | Q42: 3 | T42: 3
C43: 3 | D43: Test 1 | L43: 10 | N43: 1.5 | Q43: 2 | T43: 3.5
C44: 4 | D44: Test 2 | L44: 10 | N44: 1.5 | Q44: 2 | T44: 3.5
C45: 5 | T45: 0
C46: Total | T46: =SUM(T41:T45) -> 13
C48: Final Assessment | L48: Percentage (%) | N48: F2F | Q48: NF2F | T48: SLT
C49: 1 | D49: Final Examination | L49: 50 | N49: 2.5 | Q49: 4.5 | T49: =SUM(N49:S49) -> 7
C50: 2 | T50: 0
C51: 3 | T51: 0
C52: 4 | T52: 0
C53: 5 | T53: 0
T54: =SUM(T49:T53) -> 7
C56: **Please tick (ü) in this course is Latihan Industri / Clinical Placement / Practicum / WBL using 2 weeks; 1 credit formula | T56: =+T38+T46+T54 -> 120
C57: L= Lecture, T=Tutorial, P=Practical, O=Others, F2F=Face to Face, NF2F=None Face to Face
C58: *Indicate the CLO based on the CLO's numbering in item 8
B59: 11 | C59: Identify special requirement to deliver the course (e.g: software, nursery, computer lab, simulation room, etc) | H59: None
B61: 12 | C61: References: | H61: Zarina Othman, Roosfa Hashim & Rusdi Abdullah. Cetakan 2. (2015). Modul Komunikasi Bahasa Melayu Antarabangsa. Bangi Selangor: Penerbit Universiti Kebangsaan Malaysia.
H62: Zarina Othman, Roosfa Hashim & Rusdi Abdullah. (2012). Modul Komunikasi Bahasa Melayu Antarabangsa. Bangi Selangor: Penerbit Universiti Kebangsaan Malaysia.
C63: (include required and further readings, and should be the most current) | H63: Othman Puteh, Talib Abdullah & L. Shirley. (2011). Kamus Bergambar Generasi Baharu KSSR. (Edisi Keenam). Shah Alam Selangor: Oxford Fajar Sdn. Bhd.
B64: 13 | C64: Other additional Information | H64: Kemaskini pada : 14 Mei 2019

Sheet MPU2422
B2: Back | C2: Name of Course | D2: Pengurusan Acara | AK2: 1 | AL2: 1
C3: Course Code | D3: MPU2422 | AJ3: √ | AK3: 2 | AL3: 2
B4: 2 | C4: Synopsis | D4: Kursus ini direkabentuk untuk memberikan pelajar satu pengalaman untuk menjalankan program yang berkait dengan kursus yang diambil. Pelajar akan dipandu untuk mengenalpasti keperluan atau masalah, merancang, menyelaras sesuatu program sebelum, semasa dan selepas sesuatu program itu dijalankan. | U4: =D4 -> Kursus ini direkabentuk untuk memberikan pelajar satu pengalaman untuk menjalankan program yang berkait dengan kursus yang diambil. Pelajar akan dipandu untuk mengenalpasti keperluan atau masalah, merancang, menyelaras sesuatu program sebelum, semasa dan selepas sesuatu program itu dijalankan. | AK4: 3 | AL4: 3
B5: 3 | C5: Name (s) of Academic Staff | D5: Noor Enaida binti Tutan Khamin | AK5: 4 | AL5: 4
B6: 4 | C6: Semester | D6: Semester | E6: 5 | F6: Year | G6: 2 | AK6: 5
B7: 5 | C7: Credit Value | D7: =IF(AJ53=40,1,(IF(AJ53=80,2,(IF(AJ53=120,3,(IF(AJ53=160,4,IF(AJ53=200,5,IF(AJ53=240,6,""))))))))) ->  | AK7: 6
B8: 6 | C8: Pre-requisite / Co-requisite (if any) | AK8: 7
B9: 7 | C9: Course Learning Outcomes (CLO): At the end of the course the students will be able to: | AK9: 8
C10: (example) - explain the basic principles of immunisation (C2, PLO1) | AK10: 9
C11: CLO1 | D11: Mengaplikasikan teori pengurusan acara dan sumber yang cekap dan berkesan. (P3, PLO3) | U11: =D11 -> Mengaplikasikan teori pengurusan acara dan sumber yang cekap dan berkesan. (P3, PLO3) | AK11: 10
C12: CLO2 | D12: Mengaplikasikan kemahiran kepimpinan dan bekerja secara berpasukan. (A3, TS3, PLO4) | U12: Mengaplikasikan kemahiran kepimpinan dan bekerja secara berpasukan. (A3, TS3, PLO4) | AK12: 11
C13: CLO3 | D13: Mengenalpasti dan mengurus maklumat dari pelbagai sumber bagi melaksanakan sesuatu acara (A3, LLS3, PLO6)
B14: 8 | C14: Mapping of the Course Learning Outcomes to the Programme Learning Outcomes, Teaching Methods and Assessment:
C15: Course Learning Outcomes (CLO) | D15: Programme Learning Outcomes (PLO) | P15: Teaching Methods | S15: Assessment
D16: PLO1 | E16: PLO2 | F16: PLO3 | G16: PLO4 | H16: PLO5 | I16: PLO6 | J16: PLO7 | K16: PLO8 | L16: PLO9 | M16: PLO10 | N16: PLO11 | O16: PLO12
C17: CLO1 | F17: √ | P17: Kuliah | Perbincangan | S17: Assignment | U17: =S17 -> Assignment
C18: CLO2 | G18: √ | P18: Kuliah | Aktiviti pelajar | S18: Assignment
C19: CLO3 | I19: √ | P19: Kuliah | Aktiviti Pelajar | Pembentangan | S19: Projek
C20: (The description must be read together with standards 2.1.2, 2.2.1 and 2.2.2 in Area 2 - pages 16 & 18)
B21: 9 | C21: Transferable skills (if applicable) | G21: 1 | H21: Pemikiran kreatif
C22: (Skills learned in the course of study which can be useful and utilised in other settings) | G22: 2 | H22: Komunikasi secara lisan
G23: 3 | H23: Pengurusan masa
B24: 10 | C24: Distribution of Students Learning Time (SLT)
C25: Course Content Outline | G25: CLO | I25: Teaching and Learning Activities | T25: SLT
I26: Guided learning (F2F) | Q26: Guided Learning (NF2F) eg: e-learning | S26: Independent learning (NF2F)
I27: L | K27: T | M27: P | O27: O
C28: 1.0 Panduan penyediaan kertas kerja dan kelulusan | G28: CLO 2 | I28: 0.5 | K28: 1 | M28: 0 | O28: 1 | S28: 5 | T28: =SUM(I28:S28) -> 7.5
C29: 2.0 Perancangan dan perbentangan program | G29: CLO 1 | I29: 0.5 | K29: 1 | O29: 1 | S29: 5 | T29: 7.5 | U29: =C29 -> 2.0 Perancangan dan perbentangan program
C30: 3.0 Pengurusan dan pemasaran acara | G30: CLO 3 | I30: 0.5 | K30: 1 | O30: 1 | S30: 5 | T30: 7.5 | U30: 3.0 Pengurusan dan pemasaran acara
C31: 4.0 Perancangan kewangan dan pembiayaan sesuatu acara | G31: CLO 1 | I31: 1 | K31: 2 | O31: 1 | S31: 5 | T31: 9 | U31: 4.0 Perancangan kewangan dan pembiayaan sesuatu acara
C32: 5.0 Pengurusan sumber manusia dalam menyelaras acara | G32: CLO 3 | I32: 0.5 | K32: 2 | O32: 1 | S32: 5 | T32: 8.5 | U32: 5.0 Pengurusan sumber manusia dalam menyelaras acara
C33: 6.0 Kepentingan logistik dalam pengurusan acara | G33: CLO 2 | I33: 0.5 | K33: 2 | O33: 1 | S33: 5 | T33: 8.5 | U33: 6.0 Kepentingan logistik dalam pengurusan acara
C34: 7.0 Klasifikasi elemen pementasan (staging) dan pemilihan tempat | G34: CLO 2 | I34: 0.5 | K34: 2 | O34: 1 | S34: 5 | T34: 8.5 | U34: 7.0 Klasifikasi elemen pementasan (staging) dan pemilihan tempat
C35: Total | T35: =SUM(T28:T34) -> 57 | U35: Total
C37: Continuous Assessment | L37: Percentage (%) | N37: F2F | Q37: NF2F | T37: SLT
C38: 1 | D38: Laporan projek | L38: 45 | N38: 1.5 | Q38: 3 | T38: =SUM(N38:S38) -> 4.5
C39: 2 | D39: Pembentangan | L39: 15 | N39: 1 | Q39: 3 | T39: 4 | U39: =D39 -> Pembentangan
C40: 3 | D40: Penglibatan dalam projek | L40: 20 | N40: 3 | Q40: 5 | T40: 8 | U40: Penglibatan dalam projek
C41: 4 | D41: Tugasan 1 (outing) | L41: 10 | N41: 1.5 | Q41: 2 | T41: 3.5 | U41: Tugasan 1 (outing)
C42: 5 | D42: Tugasan 2 | L42: 10 | N42: 1 | Q42: 2 | T42: 3 | U42: Tugasan 2
C43: Total | T43: =SUM(T38:T42) -> 23
C45: Final Assessment | L45: Percentage (%) | N45: F2F | Q45: NF2F | T45: SLT
C46: 1 | T46: =SUM(N46:S46) -> 0
C47: 2 | T47: 0 | U47: =D47 -> 
C48: 3 | T48: 0
C49: 4 | T49: 0
C50: 5 | T50: 0
T51: =SUM(T46:T50) -> 0 | U51: =D51 -> 
C53: **Please tick (ü) in this course is Latihan Industri / Clinical Placement / Practicum / WBL using 2 weeks; 1 credit formula | T53: =+T35+T43+T51 -> 80
C54: L= Lecture, T=Tutorial, P=Practical, O=Others, F2F=Face to Face, NF2F=None Face to Face
C55: *Indicate the CLO based on the CLO's numbering in item 8
B56: 11 | C56: Identify special requirement to deliver the course (e.g: software, nursery, computer lab, simulation room, etc) | H56: None
U57: =H57 -> 
B58: 12 | C58: References: | H58: Panduan Pengurusan Majlis dan Acara (2014), Edisi Pertama. Jabatan Perdana Menteri.
C59: (include required and further readings, and should be the most current) | H59: Wilson, J. P. (2012). International Human Resource Development: Learning, Education and training for Individuals and Organisations. Kogan Page. Stephan P.Robbins (2011). Fundamentals of Management. Pearson Prentice Hall. Charles Bladen, James Kennell (2012). Events Management An Introduction. Routledge. Sidek Mohd Noah. (2002). Perkembangan kerjaya: Teori & praktis. Serdang: Universiti Putra Malaysia. Wilson, J. P. (2005). Human resource development: Learning and training for individuals and | U59: =H59 -> Wilson, J. P. (2012). International Human Resource Development: Learning, Education and training for Individuals and Organisations. Kogan Page. Stephan P.Robbins (2011). Fundamentals of Management. Pearson Prentice Hall. Charles Bladen, James Kennell (2012). Events Management An Introduction. Routledge. Sidek Mohd Noah. (2002). Perkembangan kerjaya: Teori & praktis. Serdang: Universiti Putra Malaysia. Wilson, J. P. (2005). Human resource development: Learning and training for individuals and
B60: 13 | C60: Other additional Information | H60: Kemaskini pada : 24 November 2019 | U60: Kemaskini pada : 24 November 2019

Sheet MPU2312
B2: Back | C2: Name of Course | D2: ISLAM DAN PEMBENTUKAN MASYARAKAT MALAYSIA | AK2: 1 | AL2: 1
C3: Course Code | D3: MPU 2312 | AJ3: √ | AK3: 2 | AL3: 2
B4: 2 | C4: Synopsis | D4: Kursus ini membincangkan tentang Islam dan konsep-konsep asas yang tertumpu kepada Islam sebagai cara hidup. Dalam bahagian Islam sebagai peradaban dan tamadun merangkumi tajuk-tajuk konsep peradaban dan tamadun, keunikan dan keistimewaan tamadun Islam, faktor kejayaan dan kemerosotan tamadun Islam, sumbangan tamadun Islam, dan seni dan keindahan Islam. Bahagian Institusi Islam merangkumi tajuk-tajuk kekeluargaan dan kemasyarakatan, pendidikan, pemerintahan dan pentadbiran, perundangan, dan ekonomi dan kewangan. Bahagian yang terakhir adalah mengenai Islam dan cabaran semasa di Malaysia. | U4: =D4 -> Kursus ini membincangkan tentang Islam dan konsep-konsep asas yang tertumpu kepada Islam sebagai cara hidup. Dalam bahagian Islam sebagai peradaban dan tamadun merangkumi tajuk-tajuk konsep peradaban dan tamadun, keunikan dan keistimewaan tamadun Islam, faktor kejayaan dan kemerosotan tamadun Islam, sumbangan tamadun Islam, dan seni dan keindahan Islam. Bahagian Institusi Islam merangkumi tajuk-tajuk kekeluargaan dan kemasyarakatan, pendidikan, pemerintahan dan pentadbiran, perundangan, dan ekonomi dan kewangan. Bahagian yang terakhir adalah mengenai Islam dan cabaran semasa di Malaysia. | AK4: 3 | AL4: 3
B5: 3 | C5: Name (s) of Academic Staff | D5: Wan Muhammad Silmi Hamzah | AK5: 4 | AL5: 4
B6: 4 | C6: Semester | D6: Semester | E6: 3 | F6: Year | G6: 2 | AK6: 5
B7: 5 | C7: Credit Value | D7: =IF(AJ57=40,1,(IF(AJ57=80,2,(IF(AJ57=120,3,(IF(AJ57=160,4,IF(AJ57=200,5,IF(AJ57=240,6,""))))))))) ->  | AK7: 6
B8: 6 | C8: Pre-requisite / Co-requisite (if any) | AK8: 7
B9: 7 | C9: Course Learning Outcomes (CLO): At the end of the course the students will be able to: | AK9: 8
C10: (example) - explain the basic principles of immunisation (C2, PLO1) | AK10: 9
C11: CLO1 | D11: Menerangkan Islam sebagai sebuah peradaban dan tamadun yang menyumbang kepada pembangunan ummah. (C2, PLO1) | U11: =D11 -> Menerangkan Islam sebagai sebuah peradaban dan tamadun yang menyumbang kepada pembangunan ummah. (C2, PLO1) | AK11: 10
C12: CLO2 | D12: Menghubungkaitkan konsep dan teori peradaban Islam dengan era globalisasi. (C3, PLO2) | U12: Menghubungkaitkan konsep dan teori peradaban Islam dengan era globalisasi. (C3, PLO2) | AK12: 11
C13: CLO3 | D13: Membincangkan cabaran dan cara menangani permasalahan yang dihadapi oleh masyarakat majmuk Malaysia. (A3, C3, PLO4)
C14: CLO4 | AK14: 12
B15: 8 | C15: Mapping of the Course Learning Outcomes to the Programme Learning Outcomes, Teaching Methods and Assessment:
C16: Course Learning Outcomes (CLO) | D16: Programme Learning Outcomes (PLO) | P16: Teaching Methods | S16: Assessment
D17: PLO1 | E17: PLO2 | F17: PLO3 | G17: PLO4 | H17: PLO5 | I17: PLO6 | J17: PLO7 | K17: PLO8 | L17: PLO9 | M17: PLO10 | N17: PLO11 | O17: PLO12
C18: CLO1 | D18: √ | P18: Lecture | Discussion | S18: Assignment | Quiz | Test | Final Examination | U18: =S18 -> Assignment | Quiz | Test | Final Examination
C19: CLO2 | E19: √ | P19: Lecture | Discussion | S19: Assignment | Quiz | Test | Final Examination
C20: CLO3 | G20: √ | P20: Lecture | Discussion | Presentation | S20: Assignment | Final Examination
C21: CLO4
C22: (The description must be read together with standards 2.1.2, 2.2.1 and 2.2.2 in Area 2 - pages 16 & 18)
B23: 9 | C23: Transferable skills (if applicable) | G23: 1 | H23: Pengetahuan
C24: (Skills learned in the course of study which can be useful and utilised in other settings) | G24: 2 | H24: Etika dan moral
G25: 3 | H25: Pengetahuan berterusan
B26: 10 | C26: Distribution of Students Learning Time (SLT)
C27: Course Content Outline | G27: CLO | I27: Teaching and Learning Activities | T27: SLT
I28: Guided learning (F2F) | Q28: Guided Learning (NF2F) eg: e-learning | S28: Independent learning (NF2F)
I29: L | K29: T | M29: P | O29: O
C30: Islam dan Konsep-Konsep Asas Islam sebagai cara hidup  Pengertian Islam, iman dan ihsan  Konsep Islam sebagai al-Din  Islam Dalam Perlembagaan Malaysia  Asas-asas syariat Islam:-  Akidah: Rububiah, Uluhiyah, Asma’ wa sifat  Syariah: Ibadah, muamalah, munakahat, dan jinayat  Akhlak: hubungan dengan Allah, manusia dan alam  Maqasid al-Shari’ah (tujuan-tujuan syariah):  Dharurriat al-Khamsah  Tasawwur Islam: keistimewaan dan ciri-ciri:  Rabbani (ketuhanan)  Thabat wa al-Murunah (tetap dan anjal)  Waq’iyyah (realistik)  Tawazun (keseimbangan)  Syumul (menyeluruh)  ’Alamiyyah (sejagat)  Wasatiyyah (kesederhanaan)  Pandangan semester alam:  Pandangan Islam mengenai konsep tuhan, manusia, dan alam  Konsep hak dan tanggungjawab  Konsep ilmu  Pengkelasan ilmu, sumber pengetahuan dan hierarki ilmuan  Konsep nilai:  Sumber-sumber nilai (Al-Quran, hadis qudsi, sunnah, ’uruf dan ’adah)  Hierarki nilai (mahmudah, makhruzah, mazmumah)  Pelaksanaan nilai dalam kehidupan  Konsep jihad dalam Islam:  Pengertian  Jenis-jenis  Unsur-unsur: hijrah, perjuangan, pengorbanan, syahid dan sebagainya.  Kepentingan dan keutamaan | G30: CLO 1 | I30: 4 | K30: 2 | M30: 0 | S30: 3 | T30: =SUM(I30:S30) -> 9
C31: Islam Sebagai Peradaban Dan Tamadun Konsep peradaban dan tamadun  Pengertian  Ciri-ciri  Sumber tamadun Keunikan dan keistimewaan tamadun Islam  Ciri-ciri keunikan dan keistimewaan Faktor kejayaan dan kemerosotan Tamadun Islam Sumbangan tamadun Islam  Sumbangan dalam pelbagai bidang – sains dan teknologi, sosial sains dan kemanusian Islam Dalam Tamadun Melayu  Pengenalan Tamadun Melayu  Kedatangan Islam ke Tanah Melayu  Sumbangan Islam kepada Tamadun Melayu | G31: CLO 2 | I31: 2 | K31: 2 | O31: 0 | S31: 2 | T31: 6 | U31: =C31 -> Islam Sebagai Peradaban Dan Tamadun Konsep peradaban dan tamadun  Pengertian  Ciri-ciri  Sumber tamadun Keunikan dan keistimewaan tamadun Islam  Ciri-ciri keunikan dan keistimewaan Faktor kejayaan dan kemerosotan Tamadun Islam Sumbangan tamadun Islam  Sumbangan dalam pelbagai bidang – sains dan teknologi, sosial sains dan kemanusian Islam Dalam Tamadun Melayu  Pengenalan Tamadun Melayu  Kedatangan Islam ke Tanah Melayu  Sumbangan Islam kepada Tamadun Melayu
C32: Seni dan keindahan Islam  Konsep dan prinsip seni dan keindahan  Seni dan manisfesi budaya:  Senibina dan rekabentuk bangunan  Kaligrafi  Kesusasteraan dan persuratan  Seni suara  Seni dan Keindahan Islam di Malaysia | G32: CLO 2 | I32: 2 | K32: 2 | S32: 2 | T32: 6 | U32: Seni dan keindahan Islam  Konsep dan prinsip seni dan keindahan  Seni dan manisfesi budaya:  Senibina dan rekabentuk bangunan  Kaligrafi  Kesusasteraan dan persuratan  Seni suara  Seni dan Keindahan Islam di Malaysia
C33: Institusi Islam Kekeluargaan dan kemasyarakatan  Pembinaan institusi keluarga:  Falsafah dan konsep  Peranan, hak dan tanggungjawab  Pembentukan masyarakat:  Falsafah dan konsep  Peranan, hak dan tanggungjawab  Islam dan masyarakat majmuk di Malaysia  Falsafah dan konsep  Peranan, hak dan tanggungjawab warganegara  Ummah pertengahan (ummatan wasatan) dan terbaik (khayru ummah) | G33: CLO 2 | I33: 2 | K33: 2 | S33: 3 | T33: 7 | U33: Institusi Islam Kekeluargaan dan kemasyarakatan  Pembinaan institusi keluarga:  Falsafah dan konsep  Peranan, hak dan tanggungjawab  Pembentukan masyarakat:  Falsafah dan konsep  Peranan, hak dan tanggungjawab  Islam dan masyarakat majmuk di Malaysia  Falsafah dan konsep  Peranan, hak dan tanggungjawab warganegara  Ummah pertengahan (ummatan wasatan) dan terbaik (khayru ummah)
C34: Pendidikan  Falsafah dan konsep pendidikan  Adab dalam pengajaran dan pembelajaran  Peranan, hak dan tanggungjawab:  Individu  Keluarga  Masyarakat  Para ilmuan/ ulamak  Pemerintah  Perkembangan Institusi Pendidiikan Islam di Malaysia | G34: CLO 2 | I34: 2 | K34: 2 | S34: 2 | T34: 6 | U34: Pendidikan  Falsafah dan konsep pendidikan  Adab dalam pengajaran dan pembelajaran  Peranan, hak dan tanggungjawab:  Individu  Keluarga  Masyarakat  Para ilmuan/ ulamak  Pemerintah  Perkembangan Institusi Pendidiikan Islam di Malaysia
C35: Pemerintahan dan pentadbiran  Sistem pemerintahan dan pentadbiran  Konsep  Prinsip  Ciri-ciri  Istilah-istilah (khalifah, imamah dan imarah)  Pemerintahan dan kepimpinan Rasulullah SAW dan Khulafa’ al-Rasyidin (merujuk kepada hadith mengenai ’kurun terbaik’):  Keadilan  Kesamarataan  Kebebasan  Ketelusan  Syura  Sistem Demokrasi Dalam Konteks Malaysia  Perbandingan demokrasi dan syura  Pentadbiran Islam di Malaysia | G35: CLO 2 | I35: 2 | K35: 2 | S35: 2 | T35: 6 | U35: Pemerintahan dan pentadbiran  Sistem pemerintahan dan pentadbiran  Konsep  Prinsip  Ciri-ciri  Istilah-istilah (khalifah, imamah dan imarah)  Pemerintahan dan kepimpinan Rasulullah SAW dan Khulafa’ al-Rasyidin (merujuk kepada hadith mengenai ’kurun terbaik’):  Keadilan  Kesamarataan  Kebebasan  Ketelusan  Syura  Sistem Demokrasi Dalam Konteks Malaysia  Perbandingan demokrasi dan syura  Pentadbiran Islam di Malaysia
C36: Perundangan  Konsep, prinsip, dan falsafah perundangan Islam  Sumber-sumber perundangan Islam:  Sumber primer (Al-Quran, Hadith Qudsi& A-Sunnah)  Sumber sekunder (ijmak dan qiyas)  Klasifikasi hukum:  Hudud  Qisas  Ta’zir  Prinsip dan konsep pemikiran mazhab dalam Islam:  Mazhab-mazhab mu’tabar  Perundangan Islam di Malaysia  Mahkamah Syariah | G36: CLO 4 | I36: 2 | K36: 2 | S36: 2 | T36: 6 | U36: Perundangan  Konsep, prinsip, dan falsafah perundangan Islam  Sumber-sumber perundangan Islam:  Sumber primer (Al-Quran, Hadith Qudsi& A-Sunnah)  Sumber sekunder (ijmak dan qiyas)  Klasifikasi hukum:  Hudud  Qisas  Ta’zir  Prinsip dan konsep pemikiran mazhab dalam Islam:  Mazhab-mazhab mu’tabar  Perundangan Islam di Malaysia  Mahkamah Syariah
C37: Ekonomi dan kewangan  Falsafah ekonomi dan kewangan Islam  Konsep asas ekonomi dan kewangan  Institusi (baitulmal, wakaf, perbankan, takaful, gadaian)  Produk (simpanan, pelaburan, pembiayaan, pinjaman)  Perkembangan Institusi Kewangan dan Perbankan Islam di Malaysia | G37: CLO 3 | I37: 2 | K37: 2 | S37: 2 | T37: 6 | U37: Ekonomi dan kewangan  Falsafah ekonomi dan kewangan Islam  Konsep asas ekonomi dan kewangan  Institusi (baitulmal, wakaf, perbankan, takaful, gadaian)  Produk (simpanan, pelaburan, pembiayaan, pinjaman)  Perkembangan Institusi Kewangan dan Perbankan Islam di Malaysia
C38: Islam Dan Cabaran Semasa  Keruntuhan akhlak  Kerenggangan dalam keluarga  Penyalahgunaan dadah  Seks bebas  Sumbang mahram  Individualistik  Materialistik  Rasuah  Pembangunan dan alam sekitar  Pencemaran  Ketidakseimbangan pembangunan (rohani, jasmani, kebendaan, Bandar danluarbandar)  Sains teknologi dan ICT  Etika Islam  Penyalahgunaan dan penyelewengan  Globalisasi – budaya, politik dan ekonomi  Salah faham terhadap Islam  Di kalangan umat Islam  Di kalangan bukan Islam  Perpaduan ummah | G38: CLO 3 | I38: 2 | K38: 2 | S38: 3 | T38: 7 | U38: Islam Dan Cabaran Semasa  Keruntuhan akhlak  Kerenggangan dalam keluarga  Penyalahgunaan dadah  Seks bebas  Sumbang mahram  Individualistik  Materialistik  Rasuah  Pembangunan dan alam sekitar  Pencemaran  Ketidakseimbangan pembangunan (rohani, jasmani, kebendaan, Bandar danluarbandar)  Sains teknologi dan ICT  Etika Islam  Penyalahgunaan dan penyelewengan  Globalisasi – budaya, politik dan ekonomi  Salah faham terhadap Islam  Di kalangan umat Islam  Di kalangan bukan Islam  Perpaduan ummah
C39: Total | T39: =SUM(T30:T38) -> 59 | U39: Total
C41: Continuous Assessment | L41: Percentage (%) | N41: F2F | Q41: NF2F | T41: SLT
C42: 1 | D42: Quiz | L42: 10 | N42: 1 | Q42: 2 | T42: =SUM(N42:S42) -> 3
C43: 2 | D43: Test | L43: 25 | N43: 2 | Q43: 3 | T43: 5 | U43: =D43 -> Test
C44: 3 | D44: Assignment | L44: 15 | N44: 2 | Q44: 3 | T44: 5 | U44: =#REF! -> #REF!
C45: 4 | T45: 0 | U45: =D44 -> Assignment
C46: 5 | T46: 0 | U46: =D46 -> 
C47: Total | T47: =SUM(T42:T46) -> 13
C49: Final Assessment | L49: Percentage (%) | N49: F2F | Q49: NF2F | T49: SLT
C50: 1 | D50: Final Examination | L50: 50 | N50: 2 | Q50: 6 | T50: =SUM(N50:S50) -> 8
C51: 2 | T51: 0 | U51: =D51 -> 
C52: 3 | T52: 0
C53: 4 | T53: 0
C54: 5 | T54: 0
T55: =SUM(T50:T54) -> 8 | U55: =D55 -> 
C57: **Please tick (ü) in this course is Latihan Industri / Clinical Placement / Practicum / WBL using 2 weeks; 1 credit formula | T57: =+T39+T47+T55 -> 80
C58: L= Lecture, T=Tutorial, P=Practical, O=Others, F2F=Face to Face, NF2F=None Face to Face
C59: *Indicate the CLO based on the CLO's numbering in item 8
B60: 11 | C60: Identify special requirement to deliver the course (e.g: software, nursery, computer lab, simulation room, etc) | H60: None
U61: =H61 -> 
B62: 12 | C62: References: | H62: 1. Wan Ali Wan Yusof, Mohd Hambali Rashid, et.al. (2011). Tasawwur Islam. Penerbitan UTM 2. Roziah Sidik, Zulkarnain Mohamed & Nasruddin Yunos. (2011). Pengajian Islam, Edisi Kedua. Shah Alam: Oxford Fajar. 3. Muhd Yusof Ahmad (2003). Pengajian Islam, Kuala Lumpur. Penerbit Universiti Malaya 4. Beg, M.A.J (1980). The Images of Islamic Civilization. Kuala Lumpur: Univ. Of Malaya Press. 5. Haron Din. (1991). Manusia dan Islam. Jilid 3. Kuala Lumpur: DPP
C63: (include required and further readings, and should be the most current) | H63: 1. Shaharir Mohamad Zin (ed) (1995). Pengenalan Tamadun Islam Dalam Sains dan Teknologi. Kuala Lumpur: DBP 2. Amed, Akhbar S. (1992). Postmodernisme And Islam: Predicament And Promise. London: Routledge. 3. Al-Mawdudi, Abu Al-Ala (1981). Towards Understanding Islam. Singapore: Pustaka Nasional. 4. Al-Qardawi, Yusof (1994). Kebangkitan Islam Di Antara Tantangan Dan Ekstrimisme. Angkatan Belia Islam Malaysia. 5. Bucaille, Maurice (t.t). The Bible, Al-Quran And Science. Paris: Seghers. 6. Gauhar, Altaf (eds) (1978). The Challenge Of Islam. Islamic Council Of Europe. 7. Haron Din (1992). Tasawur Islam. Shah Alam: Hizbi. 8. Ibn Khaldun, `Abd Al-Rahman (1995). Muqaddimah (terj). Kuala Lumpur: DBP 9. Mohd Yusof Ahmad (2003). Pengajian Islam. Kuala Lumpur: Penerbit Universiti Malaya. 10. Nasr, Seyyed Hossein (1984). Science And Civilisation In Islam. Shah Alam: Dewan Pustaka Fajar. 11. OthmanYatim (1989). Warisan Kesenian DalamTamadun Islam. Kuala Lumpur: DBP. 12. Qutb, Muhammad (1995). Salah Faham Terhadap Islam (terj. Yusoff Zaki). Kota Bharu: Dian. 13. Qutb, Sayyid (2000). Social Justice In Islam (tr). J.B. Hardie (New ed. And introd. By Hamid Algar). Islamic Publication International. 14. Sardar, Ziuddin (1981). Sains, Teknologi dan Pembangunan Di Dunia Islam (terj). Kuala Lumpur: Yayasan Dakwah Islamiah Malaysia. 15. Toynbee, A.J. (1987). A Study Of History (abridged). London: Oxford University Press. | U63: =H63 -> 1. Shaharir Mohamad Zin (ed) (1995). Pengenalan Tamadun Islam Dalam Sains dan Teknologi. Kuala Lumpur: DBP 2. Amed, Akhbar S. (1992). Postmodernisme And Islam: Predicament And Promise. London: Routledge. 3. Al-Mawdudi, Abu Al-Ala (1981). Towards Understanding Islam. Singapore: Pustaka Nasional. 4. Al-Qardawi, Yusof (1994). Kebangkitan Islam Di Antara Tantangan Dan Ekstrimisme. Angkatan Belia Islam Malaysia. 5. Bucaille, Maurice (t.t). The Bible, Al-Quran And Science. Paris: Seghers. 6. Gauhar, Altaf (eds) (1978). The Challenge Of Islam. Islamic Council Of Europe. 7. Haron Din (1992). Tasawur Islam. Shah Alam: Hizbi. 8. Ibn Khaldun, `Abd Al-Rahman (1995). Muqaddimah (terj). Kuala Lumpur: DBP 9. Mohd Yusof Ahmad (2003). Pengajian Islam. Kuala Lumpur: Penerbit Universiti Malaya. 10. Nasr, Seyyed Hossein (1984). Science And Civilisation In Islam. Shah Alam: Dewan Pustaka Fajar. 11. OthmanYatim (1989). Warisan Kesenian DalamTamadun Islam. Kuala Lumpur: DBP. 12. Qutb, Muhammad (1995). Salah Faham Terhadap Islam (terj. Yusoff Zaki). Kota Bharu: Dian. 13. Qutb, Sayyid (2000). Social Justice In Islam (tr). J.B. Hardie (New ed. And introd. By Hamid Algar). Islamic Publication International. 14. Sardar, Ziuddin (1981). Sains, Teknologi dan Pembangunan Di Dunia Islam (terj). Kuala Lumpur: Yayasan Dakwah Islamiah Malaysia. 15. Toynbee, A.J. (1987). A Study Of History (abridged). London: Oxford University Press.
B64: 13 | C64: Other additional Information | H64: Last updated : 24 November 2019 | U64: Last updated : 24 November 2019

Sheet MPU2212
A1: 1
B2: Back | C2: Name of Course | D2: Kemahiran Kerja Berpasukan | AK2: 1 | AL2: 1
C3: Course Code | D3: MPU2212 | AJ3: √ | AK3: 2 | AL3: 2
B4: 2 | C4: Synopsis | D4: Kursus ini adalah pendedahan asas kepada kemahiran kerja berpasukan. Pelajar dilatih untuk mencari matlamat yang jelas dalam setiap aktiviti berpasukan. Pelajar dibimbing melalui penerangan teori dan praktikal kerja berpasukan. Praktik kerja berpasukan adalah dalam aktiviti dan hidup di dalam dan di luar organisasi. Pelajar mempraktikkan bahan yang diajarkan dalam kumpulan dan juga bersendirian. Pelajar dinilai secara individu dan berpasukan melalui pembentangan, penelitian dan perundingan. | U4: =D4 -> Kursus ini adalah pendedahan asas kepada kemahiran kerja berpasukan. Pelajar dilatih untuk mencari matlamat yang jelas dalam setiap aktiviti berpasukan. Pelajar dibimbing melalui penerangan teori dan praktikal kerja berpasukan. Praktik kerja berpasukan adalah dalam aktiviti dan hidup di dalam dan di luar organisasi. Pelajar mempraktikkan bahan yang diajarkan dalam kumpulan dan juga bersendirian. Pelajar dinilai secara individu dan berpasukan melalui pembentangan, penelitian dan perundingan. | AK4: 3 | AL4: 3
B5: 3 | C5: Name (s) of Academic Staff | D5: Noor Enaida binti Tutan Khamin | AK5: 4 | AL5: 4
B6: 4 | C6: Semester | D6: Semester | E6: 2 | F6: Year | G6: 1 | AK6: 5
B7: 5 | C7: Credit Value | D7: =IF(AJ60=40,1,(IF(AJ60=80,2,(IF(AJ60=120,3,(IF(AJ60=160,4,IF(AJ60=200,5,IF(AJ60=240,6,""))))))))) ->  | AK7: 6
B8: 6 | C8: Pre-requisite / Co-requisite (if any) | AK8: 7
B9: 7 | C9: Course Learning Outcomes (CLO): At the end of the course the students will be able to: | AK9: 8
C10: (example) - explain the basic principles of immunisation (C2, PLO1) | AK10: 9
C11: CLO1 | D11: Menerangkan kepentingan kerja berpasukan dengan menggunakan sistem yang berkesan dan mempunyai matlamat yang jelas. (C2 PLO1) | U11: =D11 -> Menerangkan kepentingan kerja berpasukan dengan menggunakan sistem yang berkesan dan mempunyai matlamat yang jelas. (C2 PLO1) | AK11: 10
C12: CLO2 | D12: Membincangkan cara dan faktor bagi menjayakan kerja berpasukan. (A2, P2, PLO4) | U12: Membincangkan cara dan faktor bagi menjayakan kerja berpasukan. (A2, P2, PLO4) | AK12: 11
C13: CLO3 | D13: Mengetahui cara menangani faktor yang menggagalkan kerja berpasukan dan cara kerja berpasukan dalam organisasi . (A3, CTPS3, LL2, PLO9)
B14: 8 | C14: Mapping of the Course Learning Outcomes to the Programme Learning Outcomes, Teaching Methods and Assessment:
C15: Course Learning Outcomes (CLO) | D15: Programme Learning Outcomes (PLO) | P15: Teaching Methods | S15: Assessment
D16: PLO1 | E16: PLO2 | F16: PLO3 | G16: PLO4 | H16: PLO5 | I16: PLO6 | J16: PLO7 | K16: PLO8 | L16: PLO9 | M16: PLO10 | N16: PLO11 | O16: PLO12
C17: CLO1 | D17: √ | P17: Lecture | Discussion | S17: Assignment | Test | Final Examination | U17: =S17 -> Assignment | Test | Final Examination
C18: CLO2 | G18: √ | P18: Activities | Discussion | S18: Assignment | Portfolio
C19: CLO3 | L19: √ | P19: Discussion | Presentation | S19: Assignment | Portfolio | Project
C20: (The description must be read together with standards 2.1.2, 2.2.1 and 2.2.2 in Area 2 - pages 16 & 18)
B21: 9 | C21: Transferable skills (if applicable) | G21: 1 | H21: Kemahiran komunikasi
C22: (Skills learned in the course of study which can be useful and utilised in other settings) | G22: 2 | H22: Berfikiran kritis dan mampu menyelesaikan masalah
G23: 3 | H23: Kerja berpasukan
B24: 10 | C24: Distribution of Students Learning Time (SLT)
C25: Course Content Outline | G25: CLO | I25: Teaching and Learning Activities | T25: SLT
I26: Guided learning (F2F) | Q26: Guided Learning (NF2F) eg: e-learning | S26: Independent learning (NF2F)
I27: L | K27: T | M27: P | O27: O
C28: 1.0 Kepentingan kerja berpasukan – matlamat yang jelas & sistem berkesan: 1.1 Visi, misi, motivasi 1.2 Sistem (kerja berpasukan berteras mardotillah) 1.3 Penetapan matlamat dan sistem Amali – pelajar menyediakan matlamat dan menentukan sistem | G28: CLO 1 | I28: 1 | S28: 1 | T28: =SUM(I28:S28) -> 2
C29: 2.0 Menentukan objektif , strategi, moto dan slogan pasukan 2.1 Persamaan dan perbezaan antara matlamat dan objektif 2.2 Objektif pasukan yang selari dengan matlamat 2.3 Strategi pasukan yang selari dengan objektif 2.4 Moto dan slogan yang selari dengan objektif dan matlamat pasukan Amali - Strategi yang selari dengan matlamat dan objektif pasukan | G29: CLO 1 | I29: 1 | S29: 1 | T29: 2 | U29: =C29 -> 2.0 Menentukan objektif , strategi, moto dan slogan pasukan 2.1 Persamaan dan perbezaan antara matlamat dan objektif 2.2 Objektif pasukan yang selari dengan matlamat 2.3 Strategi pasukan yang selari dengan objektif 2.4 Moto dan slogan yang selari dengan objektif dan matlamat pasukan Amali - Strategi yang selari dengan matlamat dan objektif pasukan
C30: 3.0 Faktor-faktor yang menjayakan kerja berpasukan 3.1 Mengenali faktor-faktor kejayaan dalam pasukan 3.2 Mengenli cara memupuk kejayaan dalam kerja berpasukan Perundingan 1 (komunikasi, mengingat, berfikir, kejiwaan) | G30: CLO 1 | I30: 2 | S30: 2 | T30: 4 | U30: 3.0 Faktor-faktor yang menjayakan kerja berpasukan 3.1 Mengenali faktor-faktor kejayaan dalam pasukan 3.2 Mengenli cara memupuk kejayaan dalam kerja berpasukan Perundingan 1 (komunikasi, mengingat, berfikir, kejiwaan)
C31: 4.0 Komunikasi dan membina persefahaman dalam kerja berpasukan 4.1 Memenangi hati dan minda 4.2 Komunikasi dalam kalbu (taaruf) 4.3 Membena hubungan erat (ukhwah) Pembentangan kertas cadangan | G31: CLO 1 | I31: 2 | S31: 1 | T31: 3 | U31: 4.0 Komunikasi dan membina persefahaman dalam kerja berpasukan 4.1 Memenangi hati dan minda 4.2 Komunikasi dalam kalbu (taaruf) 4.3 Membena hubungan erat (ukhwah) Pembentangan kertas cadangan
C32: 5.0 Merancang dan memupuk persediaan bekerja berpasukan 5.1 Faedah daripada kepelbagaian dalam pasukan (Al-Hujerat) 5.2 Merancang dan memupuk persediaan berpasukan Pembentangan poster carta Gant dan senarai pembahagian tugas. | G32: CLO 1 | I32: 2 | S32: 2 | T32: 4 | U32: 5.0 Merancang dan memupuk persediaan bekerja berpasukan 5.1 Faedah daripada kepelbagaian dalam pasukan (Al-Hujerat) 5.2 Merancang dan memupuk persediaan berpasukan Pembentangan poster carta Gant dan senarai pembahagian tugas.
C33: 6.0 Menangani faktor yang menggagalkan kerja berpasukan secara tarbawi 6.1 Faktor dalaman 6.2 Faktor luaran | G33: CLO 1 | I33: 2 | S33: 1 | T33: 3 | U33: 6.0 Menangani faktor yang menggagalkan kerja berpasukan secara tarbawi 6.1 Faktor dalaman 6.2 Faktor luaran
C34: 7.0 Halangan kepada kejayaan kerja berpasukan 7.1 Mengenali halangan 7.2 Menangani halangan/ managing barriers 7.3 Kemas kini portfolio Mesyuarat (komunikasi, penyelesaian masalah, pembuatan keputusan, kepimpinan, berfikir, kejiwaan). | G34: CLO 1 | I34: 2 | S34: 2 | T34: 4 | U34: 7.0 Halangan kepada kejayaan kerja berpasukan 7.1 Mengenali halangan 7.2 Menangani halangan/ managing barriers 7.3 Kemas kini portfolio Mesyuarat (komunikasi, penyelesaian masalah, pembuatan keputusan, kepimpinan, berfikir, kejiwaan).
C35: 8.0 Mengurus konflik 8.1 Mengenali perubahan dan perselisihan 8.2 Menangani perubahan dan perselisihan 8.3 Menangani keenganan perubahan ahli psukan 8.4 Berkompromi dalam perkara yang ada perselisihan 8.5 Bekerjasama dalam perkara yang disepakati Minit mesyuarat (komunikasi, mengingat, berfikir, memahami, mengurus, menulis) | G35: CLO 1 | I35: 2 | S35: 2 | T35: 4 | U35: 8.0 Mengurus konflik 8.1 Mengenali perubahan dan perselisihan 8.2 Menangani perubahan dan perselisihan 8.3 Menangani keenganan perubahan ahli psukan 8.4 Berkompromi dalam perkara yang ada perselisihan 8.5 Bekerjasama dalam perkara yang disepakati Minit mesyuarat (komunikasi, mengingat, berfikir, memahami, mengurus, menulis)
C36: 9.0 Bekerja dalam pasukan 1 9.1 Dalam kumpulan kecil -9.2 Dalam keluarga Tugasan (kerja berpasukan dalam kehidupan seharian) (kajian kes – penyelesaian masalah, pra-syarat kerja berpasukan) | G36: CLO 1 | I36: 2 | S36: 2 | T36: 4 | U36: 9.0 Bekerja dalam pasukan 1 9.1 Dalam kumpulan kecil -9.2 Dalam keluarga Tugasan (kerja berpasukan dalam kehidupan seharian) (kajian kes – penyelesaian masalah, pra-syarat kerja berpasukan)
C37: 10.0 Bekerja dalam pasukan 2 10.1 Dalam masyarakat 10.2 Dalam negara | G37: CLO 1 | I37: 2 | S37: 1 | T37: 3 | U37: 10.0 Bekerja dalam pasukan 2 10.1 Dalam masyarakat 10.2 Dalam negara
C38: 11.0 Bekerja berpasukan dalam organisasi 1 11.2 Dalam persatuan, kelab, biro. Kemas kini portfolio | G38: CLO 1 | I38: 2 | S38: 1 | T38: 3 | U38: 11.0 Bekerja berpasukan dalam organisasi 1 11.2 Dalam persatuan, kelab, biro. Kemas kini portfolio
C39: 12.0 Bekerja berpasukan dalam organisasi 2 12.1 Dalam Syarikat 12.2 Dalam NGO 12.3 Keseimbangan antara kerja dan kehidupan di rumah Perundingan 2 (komunikasi, mengingat, berfikir, kejiwaan) | G39: CLO 1 | I39: 2 | S39: 2 | T39: 4 | U39: 12.0 Bekerja berpasukan dalam organisasi 2 12.1 Dalam Syarikat 12.2 Dalam NGO 12.3 Keseimbangan antara kerja dan kehidupan di rumah Perundingan 2 (komunikasi, mengingat, berfikir, kejiwaan)
C40: 13.0 Pasukan dalam organisasi 13.1 Perlaksanaan kerja berpasukan 13.2 Sokongan kepada pasukan perkembangan dan pembangunan pasukan. | G40: CLO 1 | I40: 2 | S40: 1 | T40: 3 | U40: 13.0 Pasukan dalam organisasi 13.1 Perlaksanaan kerja berpasukan 13.2 Sokongan kepada pasukan perkembangan dan pembangunan pasukan.
C41: 14.0 Menilai pencapaian dan kerjaya 14.1 Kepatatuhan kepada pihak berkuasa (ketua) Ujian bertulis (teori, prinsip dan praktikal) Kemas kini portfolio (mengurus, kemahiran menyusun atur) | G41: CLO 1 | I41: 2 | S41: 2 | T41: 4 | U41: 14.0 Menilai pencapaian dan kerjaya 14.1 Kepatatuhan kepada pihak berkuasa (ketua) Ujian bertulis (teori, prinsip dan praktikal) Kemas kini portfolio (mengurus, kemahiran menyusun atur)
C42: Total | T42: =SUM(T28:T41) -> 47 | U42: Total
C44: Continuous Assessment | L44: Percentage (%) | N44: F2F | Q44: NF2F | T44: SLT
C45: 1 | D45: Ujian 1 | L45: 10 | N45: 1 | Q45: 4 | T45: =SUM(N45:S45) -> 5
C46: 2 | D46: Tugasan | L46: 10 | Q46: 4 | T46: 4 | U46: =D46 -> Tugasan
C47: 3 | D47: Portfolio | L47: 10 | Q47: 8 | T47: 8 | U47: Portfolio
C48: 4 | D48: Projek | L48: 40 | N48: 1 | Q48: 8 | T48: 9 | U48: Projek
C49: 5 | T49: 0
C50: Total | T50: =SUM(T45:T49) -> 26
C52: Final Assessment | L52: Percentage (%) | N52: F2F | Q52: NF2F | T52: SLT
C53: 1 | D53: Final Examination | L53: 30 | N53: 2.5 | Q53: 4.5 | T53: =SUM(N53:S53) -> 7
C54: 2 | T54: 0 | U54: =D54 -> 
C55: 3 | T55: 0
C56: 4 | T56: 0
C57: 5 | T57: 0
T58: =SUM(T53:T57) -> 7 | U58: =D58 -> 
C60: **Please tick (ü) in this course is Latihan Industri / Clinical Placement / Practicum / WBL using 2 weeks; 1 credit formula | T60: =+T42+T50+T58 -> 80
C61: L= Lecture, T=Tutorial, P=Practical, O=Others, F2F=Face to Face, NF2F=None Face to Face
C62: *Indicate the CLO based on the CLO's numbering in item 8
B63: 11 | C63: Identify special requirement to deliver the course (e.g: software, nursery, computer lab, simulation room, etc) | H63: None
U64: =H64 -> 
B65: 12 | C65: References: | H65: 1. Mohd. Taib Dora (2015), Kecemerlangan kerja berpasukan , Universiti Teknikal Malaysia Melaka. 2. Michael A. West. (2012), Effective Teamwork. Practical Lessons from Organizational Research , West Sussex, UK, BPS Blackwell.
C66: (include required and further readings, and should be the most current) | H66: 3. Yeop Hussin Bidin (2006), Kerja Berpasukan, PTS Publications & Distributors, 2006 | U66: =H66 -> 3. Yeop Hussin Bidin (2006), Kerja Berpasukan, PTS Publications & Distributors, 2006
B67: 13 | C67: Other additional Information | H67: Kemaskini pada : 24 November 2019 | U67: Kemaskini pada : 24 November 2019

Sheet MPU2222
B2: Back | C2: Name of Course | D2: Kemahiran Kepimpinan | AK2: 1 | AL2: 1
C3: Course Code | D3: MPU 2222 | AJ3: √ | AK3: 2 | AL3: 2
B4: 2 | C4: Synopsis | D4: Kursus ini memberi pendedahan kepada pelajar mengenai konsep asas kepimpinan, teori dan jenis-jenis/gaya kepimpinan, tugas dan tanggungjawab pemimpin, komunikasi dalam kepimpinan, membina kemahiran kepimpinan dan kepimpinan Islam. | U4: =D4 -> Kursus ini memberi pendedahan kepada pelajar mengenai konsep asas kepimpinan, teori dan jenis-jenis/gaya kepimpinan, tugas dan tanggungjawab pemimpin, komunikasi dalam kepimpinan, membina kemahiran kepimpinan dan kepimpinan Islam. | AK4: 3 | AL4: 3
B5: 3 | C5: Name (s) of Academic Staff | D5: Noor Enaida binti Tutan Khamin | AK5: 4 | AL5: 4
B6: 4 | C6: Semester | D6: Semester | E6: 2 | F6: Year | G6: 1 | AK6: 5
B7: 5 | C7: Credit Value | D7: =IF(AJ58=40,1,(IF(AJ58=80,2,(IF(AJ58=120,3,(IF(AJ58=160,4,IF(AJ58=200,5,IF(AJ58=240,6,""))))))))) ->  | AK7: 6
B8: 6 | C8: Pre-requisite / Co-requisite (if any) | AK8: 7
B9: 7 | C9: Course Learning Outcomes (CLO): At the end of the course the students will be able to: | AK9: 8
C10: (example) - explain the basic principles of immunisation (C2, PLO1) | AK10: 9
C11: CLO1 | D11: Menjelaskan konsep asas, teori dan kemahiran kepimpinan dalam individu, kumpulan dan organisasi (C2 ,LS1, PLO1) | U11: =D11 -> Menjelaskan konsep asas, teori dan kemahiran kepimpinan dalam individu, kumpulan dan organisasi (C2 ,LS1, PLO1) | AK11: 10
C12: CLO2 | D12: Membentuk persepsi pelajar mengenai penerapan kemahiran kepimpinan dalam diri mereka menerusi aktiviti berkumpulan. (A3, LS3, PLO8) | U12: Membentuk persepsi pelajar mengenai penerapan kemahiran kepimpinan dalam diri mereka menerusi aktiviti berkumpulan. (A3, LS3, PLO8) | AK12: 11
C13: CLO3 | D13: Menjelaskan cara-cara mengaplikasikan kepimpinan secara individu, kumpulan dan organisasi (A3, LS2, PLO9)
B14: 8 | C14: Mapping of the Course Learning Outcomes to the Programme Learning Outcomes, Teaching Methods and Assessment:
C15: Course Learning Outcomes (CLO) | D15: Programme Learning Outcomes (PLO) | P15: Teaching Methods | S15: Assessment
D16: PLO1 | E16: PLO2 | F16: PLO3 | G16: PLO4 | H16: PLO5 | I16: PLO6 | J16: PLO7 | K16: PLO8 | L16: PLO9 | M16: PLO10 | N16: PLO11 | O16: PLO12
C17: CLO1 | D17: √ | P17: Kuliah | Perbincangan | S17: Tugasan| Portfolio | Peperiksaan akhir | U17: =S17 -> Tugasan| Portfolio | Peperiksaan akhir
C18: CLO2 | K18: √ | P18: Aktiviti | Perbincangan | S18: Tugasan | Portfolio
C19: CLO3 | L19: √ | P19: Aktiviti | Perbincangan | S19: Projek | Pembentangan | Portfolio
C20: (The description must be read together with standards 2.1.2, 2.2.1 and 2.2.2 in Area 2 - pages 16 & 18)
B21: 9 | C21: Transferable skills (if applicable) | G21: 1 | H21: Berfikiran kritis dan mampu menyelesaikan masalah
C22: (Skills learned in the course of study which can be useful and utilised in other settings) | G22: 2 | H22: Membuat keputusan
G23: 3 | H23: Kemahiran kepimpinan
B24: 10 | C24: Distribution of Students Learning Time (SLT)
C25: Course Content Outline | G25: CLO | I25: Teaching and Learning Activities | T25: SLT
I26: Guided learning (F2F) | Q26: Guided Learning (NF2F) eg: e-learning | S26: Independent learning (NF2F)
I27: L | K27: T | M27: P | O27: O
C28: 1.0 Konsep Asas Kepimpinan 1.1 Definisi 1.2 Kuasa dan kepimpinan 1.3 Kepimpinan dan pengurusan | G28: CLO 1 | I28: 2 | S28: 1 | T28: =SUM(I28:S28) -> 3
C29: 2.0 Teori Kepimpinan 2.1 Teori tret 2.1 Teori gelagat 2.3 Teori kontigensi 2.3.1 Teori kontigensi fiedler 2.3.2 Teori laluan matlamat 2.3.3 Teori situasi - Tugasan 1 | G29: CLO 1 | I29: 2 | S29: 2 | T29: 4 | U29: =C29 -> 2.0 Teori Kepimpinan 2.1 Teori tret 2.1 Teori gelagat 2.3 Teori kontigensi 2.3.1 Teori kontigensi fiedler 2.3.2 Teori laluan matlamat 2.3.3 Teori situasi - Tugasan 1
C30: 3.0 Latihan aplikasi kepimpinan | G30: CLO 3 | I30: 2 | S30: 2 | T30: 4 | U30: 3.0 Latihan aplikasi kepimpinan
C31: 4.0 Tugas Dan Tanggungjawab Pemimpin 4.1 Berkongsi visi dan misi 4.2 Menyelesaikan masalah 4.3 Mengambil keputusan 4.5 Mendorong dan memotivasikan pengikut 4.6 Memberi penghargaan - Tugasan 2 | G31: CLO 2 | I31: 4 | S31: 2 | T31: 6 | U31: 4.0 Tugas Dan Tanggungjawab Pemimpin 4.1 Berkongsi visi dan misi 4.2 Menyelesaikan masalah 4.3 Mengambil keputusan 4.5 Mendorong dan memotivasikan pengikut 4.6 Memberi penghargaan - Tugasan 2
C32: 5.0 Latihan aplikasi kepimpinan - Kemas kini portfolio | G32: CLO 3 | I32: 2 | S32: 2 | T32: 4 | U32: 5.0 Latihan aplikasi kepimpinan - Kemas kini portfolio
C33: 6.0 Komunikasi Dalam Kepimpinan 6.1 Definisi komunikasi 6.2 Jenis-jenis komunikasi 6.2 Tahap-tahap komunikasi 6.3 Kesan komunikasi dalam kepimpinan | G33: CLO 3 | I33: 2 | S33: 2 | T33: 4 | U33: 6.0 Komunikasi Dalam Kepimpinan 6.1 Definisi komunikasi 6.2 Jenis-jenis komunikasi 6.2 Tahap-tahap komunikasi 6.3 Kesan komunikasi dalam kepimpinan
C34: 6.0 Komunikasi Dalam Kepimpinan 6.1 Definisi komunikasi 6.2 Jenis-jenis komunikasi 6.2 Tahap-tahap komunikasi 6.3 Kesan komunikasi dalam kepimpinan | G34: CLO 3 | I34: 2 | S34: 2 | T34: 4 | U34: 6.0 Komunikasi Dalam Kepimpinan 6.1 Definisi komunikasi 6.2 Jenis-jenis komunikasi 6.2 Tahap-tahap komunikasi 6.3 Kesan komunikasi dalam kepimpinan
C35: 7.0 Latihan aplikasi kepimpinan | G35: CLO 3 | I35: 2 | S35: 2 | T35: 4 | U35: 7.0 Latihan aplikasi kepimpinan
C36: 8.0 Membina Kemahiran Kepimpinan 8.1 Keadilan 8.2 Kemesraan 8.3 Integriti 8.4 Keyakinan 8.5 Keberkesanan komunikasi | G36: CLO 2 CLO 3 | I36: 2 | S36: 2 | T36: 4 | U36: 8.0 Membina Kemahiran Kepimpinan 8.1 Keadilan 8.2 Kemesraan 8.3 Integriti 8.4 Keyakinan 8.5 Keberkesanan komunikasi
C37: 9.0 Latihan aplikasi kepimpinan | G37: CLO 2 | I37: 2 | S37: 2 | T37: 4 | U37: 9.0 Latihan aplikasi kepimpinan
C38: 10.0 Kepimpinan Islam 10.1 Sifat pemimpin Islam 10.2 Tugas pemimpin Islam 10.3 Gaya kepimpinan Islam | G38: CLO 3 | I38: 2 | S38: 2 | T38: 4 | U38: 10.0 Kepimpinan Islam 10.1 Sifat pemimpin Islam 10.2 Tugas pemimpin Islam 10.3 Gaya kepimpinan Islam
C39: 11.0 Kemas kini portfolio | G39: CLO 3 | I39: 1 | T39: 1 | U39: 11.0 Kemas kini portfolio
C40: Total | T40: =SUM(T28:T39) -> 46 | U40: Total
C42: Continuous Assessment | L42: Percentage (%) | N42: F2F | Q42: NF2F | T42: SLT
C43: 1 | D43: Tugasan 1 | L43: 10 | N43: 1 | Q43: 4 | T43: =SUM(N43:S43) -> 5
C44: 2 | D44: Tugasan 2 | L44: 10 | N44: 1 | Q44: 4 | T44: 5 | U44: =D44 -> Tugasan 2
C45: 3 | D45: Projek dan Pembentangan | L45: 30 | N45: 1 | Q45: 8 | T45: 9 | U45: Projek dan Pembentangan
C46: 4 | D46: Portfolio | L46: 20 | Q46: 8 | T46: 8 | U46: Portfolio
C47: 5 | T47: 0
C48: Total | T48: =SUM(T43:T47) -> 27
C50: Final Assessment | L50: Percentage (%) | N50: F2F | Q50: NF2F | T50: SLT
C51: 1 | D51: Final Examination | L51: 30 | N51: 2.5 | Q51: 4.5 | T51: =SUM(N51:S51) -> 7
C52: 2 | T52: 0 | U52: =D52 -> 
C53: 3 | T53: 0
C54: 4 | T54: 0
C55: 5 | T55: 0
T56: =SUM(T51:T55) -> 7 | U56: =D56 -> 
C58: **Please tick (ü) in this course is Latihan Industri / Clinical Placement / Practicum / WBL using 2 weeks; 1 credit formula | T58: =+T40+T48+T56 -> 80
C59: L= Lecture, T=Tutorial, P=Practical, O=Others, F2F=Face to Face, NF2F=None Face to Face
C60: *Indicate the CLO based on the CLO's numbering in item 8
B61: 11 | C61: Identify special requirement to deliver the course (e.g: software, nursery, computer lab, simulation room, etc) | H61: None
U62: =H62 -> 
B63: 12 | C63: References: | H63: James M Kouzes, Barry Z Posner. (2017). The Leadership Challenge. John Willey & Son Inc Stephan P.Robbins. (2011).Principles of Management. Prentice Hall Ainon Mohd, Abdullah Hassan. (2011). Bakat & Kemahiran Memimpin. Edisi Kemas Kini. PTS Profesional Publishing Sdn Bhd. John Adair. (2009). Membina Kemahiran Kepimpinan. Institut Terjemahan Negara Malaysia Berhad; Penterjemah Nazlifa Md Ali Ainon Mohd. (2005). Teori dan Teknik Kepimpinan (Panduan Aplikasi di Tempat Kerja). PTS Profesional Publishing Sdn.Bhd. Ishak Mad Shah. (2006). Kepimpinan dan Hubungan Interpersonal Dalam Organisasi. Penerbit UTM
C64: (include required and further readings, and should be the most current) | H64: Robiah Kulup Hamzah. (1993). Remaja dan Kepimpinan Persatuan, Kuala Lumpur. Dewan Bahasa dan Pustaka. | U64: =H64 -> Robiah Kulup Hamzah. (1993). Remaja dan Kepimpinan Persatuan, Kuala Lumpur. Dewan Bahasa dan Pustaka.
B65: 13 | C65: Other additional Information | H65: Kemaskini pada : 24 November 2019 | U65: Kemaskini pada : 24 November 2019

Sheet MPU2232
B2: Back | C2: Name of Course | D2: Pengucapan Awam | AK2: 1 | AL2: 1
C3: Course Code | D3: MPU2232 | AJ3: √ | AK3: 2 | AL3: 2
B4: 2 | C4: Synopsis | D4: Kursus ini memberi tumpuan kepada teori, prinsip dan komunikasi yang berkesan dalam suasana perniagaan. Ia menilai bentuk-bentuk komunikasi antara individu, kumpulan dan organisasi. Ia juga melihat bagaimana komunikasi lisan dan bukan lisan digunakan secara berkesan oleh individu, kumpulan dan organisasi dalam mencapai matlamat dan objektif mereka. | U4: =D4 -> Kursus ini memberi tumpuan kepada teori, prinsip dan komunikasi yang berkesan dalam suasana perniagaan. Ia menilai bentuk-bentuk komunikasi antara individu, kumpulan dan organisasi. Ia juga melihat bagaimana komunikasi lisan dan bukan lisan digunakan secara berkesan oleh individu, kumpulan dan organisasi dalam mencapai matlamat dan objektif mereka. | AK4: 3 | AL4: 3
B5: 3 | C5: Name (s) of Academic Staff | D5: Noor Enaida binti Tutan Khamin | AK5: 4 | AL5: 4
B6: 4 | C6: Semester | D6: Semester | E6: 2 | F6: Year | G6: 1 | AK6: 5
B7: 5 | C7: Credit Value | D7: =IF(AJ60=40,1,(IF(AJ60=80,2,(IF(AJ60=120,3,(IF(AJ60=160,4,IF(AJ60=200,5,IF(AJ60=240,6,""))))))))) ->  | AK7: 6
B8: 6 | C8: Pre-requisite / Co-requisite (if any) | AK8: 7
B9: 7 | C9: Course Learning Outcomes (CLO): At the end of the course the students will be able to: | AK9: 8
C10: (example) - explain the basic principles of immunisation (C2, PLO1) | AK10: 9
C11: CLO1 | D11: Menjelaskan konsep, prinsip dan ciri-ciri pengucapan awam yang berkesan secara lisan dan bertulis melalui rujukan daripada pelbagai sumber. (C2, PLO1) | U11: =D11 -> Menjelaskan konsep, prinsip dan ciri-ciri pengucapan awam yang berkesan secara lisan dan bertulis melalui rujukan daripada pelbagai sumber. (C2, PLO1) | AK11: 10
C12: CLO2 | D12: Menyampaikan pengucapan awam mengikut format dan tatacara yang betul secara kreatif dan kritis. (P3, A3, PLO5) | U12: Menyampaikan pengucapan awam mengikut format dan tatacara yang betul secara kreatif dan kritis. (P3, A3, PLO5) | AK12: 11
C13: CLO3 | D13: Menghasil teks ucapan mengikut situasi dan majlis tertentu. (A3, P2, PLO9)
B14: 8 | C14: Mapping of the Course Learning Outcomes to the Programme Learning Outcomes, Teaching Methods and Assessment:
C15: Course Learning Outcomes (CLO) | D15: Programme Learning Outcomes (PLO) | P15: Teaching Methods | S15: Assessment
D16: PLO1 | E16: PLO2 | F16: PLO3 | G16: PLO4 | H16: PLO5 | I16: PLO6 | J16: PLO7 | K16: PLO8 | L16: PLO9 | M16: PLO10 | N16: PLO11 | O16: PLO12
C17: CLO1 | D17: √ | P17: Kuliah | Perbincangan | S17: Ujian | Peperiksaan akhir | U17: =S17 -> Ujian | Peperiksaan akhir
C18: CLO2 | H18: √ | P18: Kuliah | Perbincangan | Pembentangan | S18: Tugasan | Peperiksaan akhir
C19: CLO3 | L19: √ | P19: Kuliah | Perbincangan | S19: Tugasan | Peperiksaan akhir
C20: (The description must be read together with standards 2.1.2, 2.2.1 and 2.2.2 in Area 2 - pages 16 & 18)
B21: 9 | C21: Transferable skills (if applicable) | G21: 1 | H21: Pengetahuan
C22: (Skills learned in the course of study which can be useful and utilised in other settings) | G22: 2 | H22: Kemahiran komunikasi
G23: 3 | H23: Kemahiran kendiri dan pembelajaran sepanjang hayat
B24: 10 | C24: Distribution of Students Learning Time (SLT)
C25: Course Content Outline | G25: CLO | I25: Teaching and Learning Activities | T25: SLT
I26: Guided learning (F2F) | Q26: Guided Learning (NF2F) eg: e-learning | S26: Independent learning (NF2F)
I27: L | K27: T | M27: P | O27: O
C28: 1.0 Pengenalan pengucapan awam dan kepentinganya 1.1 Pengertian pengucapan awam. 1.2 Proses ucapan | G28: CLO 1 | I28: 1 | S28: 2 | T28: =SUM(I28:S28) -> 3
C29: 2.0 Kepentingan pengucapan awam. 2.1 Penerimaan idea dan pengaruh 2.2 Peningkatan kerjaya 2.3 Promosi bisnes 2.4 Membuat keputusan 2.5 Penigkatan dan keupayaan ingatan | G29: CLO 1 | I29: 1 | S29: 2 | T29: 3 | U29: =C29 -> 2.0 Kepentingan pengucapan awam. 2.1 Penerimaan idea dan pengaruh 2.2 Peningkatan kerjaya 2.3 Promosi bisnes 2.4 Membuat keputusan 2.5 Penigkatan dan keupayaan ingatan
C30: 3.0 Jenis –jenis ucapan 3.1 Berdasarkan tujuan 3.1.1 Pemberitahuan 3.1.2 Pemujukan 3.1.3 Menghibur 3.1.4 Majlis khas 3.2 Berdasarkan cara 3.2.1 Impromptu 3.2 2 Menghafal 3.2.3 Membaca teks 3.2.4 Ekstemporaneous | G30: CLO 1 | I30: 2 | S30: 2 | T30: 4 | U30: 3.0 Jenis –jenis ucapan 3.1 Berdasarkan tujuan 3.1.1 Pemberitahuan 3.1.2 Pemujukan 3.1.3 Menghibur 3.1.4 Majlis khas 3.2 Berdasarkan cara 3.2.1 Impromptu 3.2 2 Menghafal 3.2.3 Membaca teks 3.2.4 Ekstemporaneous
C31: 4.0 Ciri-ciri perucap yang baik dan tidak baik 4.1 Berpengetahuan 4.2 Berkemahiran berucap 4.3 Berkeyakinan 4.4 Perinbadi/ perwatakan baik | G31: CLO 1 | I31: 2 | S31: 2 | T31: 4 | U31: 4.0 Ciri-ciri perucap yang baik dan tidak baik 4.1 Berpengetahuan 4.2 Berkemahiran berucap 4.3 Berkeyakinan 4.4 Perinbadi/ perwatakan baik
C32: 5.0 Sifat-sifat perucap yg tidak baik 5.1 Seronok sendiri 5.2 Lawak yang keterlaluan 5.3 Suara terlalu perlahan/tiada nada 5.4 Tidak tepati masa | G32: CLO 1 | I32: 2 | S32: 3 | T32: 5 | U32: 5.0 Sifat-sifat perucap yg tidak baik 5.1 Seronok sendiri 5.2 Lawak yang keterlaluan 5.3 Suara terlalu perlahan/tiada nada 5.4 Tidak tepati masa
C33: 6.0 Intonasi dan Pengawalan suara. 6.1 Nada (suara tinggi dan nada suara rendah) 6.2 Kelantangan 6.3 Pengulangan 6.4 Jeda 6.5 Sebutan tepat | G33: CLO 1 | I33: 2 | S33: 2 | T33: 4 | U33: 6.0 Intonasi dan Pengawalan suara. 6.1 Nada (suara tinggi dan nada suara rendah) 6.2 Kelantangan 6.3 Pengulangan 6.4 Jeda 6.5 Sebutan tepat
C34: 7.0 Lisan 7.1 Penyediaan dan persembahan ucapan. 7.2 Mengawal gugup 7.3 Menganalisis diri 7.4 Mengumpul bahan 7.5 Menyusun bahan 7.6 Merancang pengenalan 7.7 Merancang penutup 7.8 Berlatih 7.9 Menyampaikan ucapan | G34: CLO 1 | I34: 2 | S34: 3 | T34: 5 | U34: 7.0 Lisan 7.1 Penyediaan dan persembahan ucapan. 7.2 Mengawal gugup 7.3 Menganalisis diri 7.4 Mengumpul bahan 7.5 Menyusun bahan 7.6 Merancang pengenalan 7.7 Merancang penutup 7.8 Berlatih 7.9 Menyampaikan ucapan
C35: 8.0 Tanpa lisan - gerakan badan (body language) 8.1 Sentuhan 8.2 Expresi muka 8.3 Pertemuan mata 8.4 Kepala 8.5 Bahu 8.6 Tangan dan jari 8.7 Pakaian atau penampilan | G35: CLO 1 | I35: 2 | S35: 4 | T35: 6 | U35: 8.0 Tanpa lisan - gerakan badan (body language) 8.1 Sentuhan 8.2 Expresi muka 8.3 Pertemuan mata 8.4 Kepala 8.5 Bahu 8.6 Tangan dan jari 8.7 Pakaian atau penampilan
C36: 9.0 Elemen-elemen yang mempengaruhi keberkesanan pengucapan awam 9.1 Perucap 9.2 Mesej 9.3 Saluran 9.4 Pendengar (audiens) 9.5 Maklumbalas 9.6 Gangguan 9.7 Setting | G36: CLO 1 | I36: 2 | S36: 2 | T36: 4 | U36: 9.0 Elemen-elemen yang mempengaruhi keberkesanan pengucapan awam 9.1 Perucap 9.2 Mesej 9.3 Saluran 9.4 Pendengar (audiens) 9.5 Maklumbalas 9.6 Gangguan 9.7 Setting
C37: 10.0 Etiket dan etika dalam pengucapan awam 10.1 Definisi etiket 10.2 Definisi etika | G37: CLO 1 | I37: 1 | S37: 2 | T37: 3 | U37: 10.0 Etiket dan etika dalam pengucapan awam 10.1 Definisi etiket 10.2 Definisi etika
C38: 11.0 Pengucapan awam dalam konteks Islam 11.1 Isu-isu berkaitan dengan sosioekonomi di Malaysia 11.2 Perkembangan Islam di Malaysia | G38: CLO 1 | I38: 1 | S38: 2 | T38: 3 | U38: 11.0 Pengucapan awam dalam konteks Islam 11.1 Isu-isu berkaitan dengan sosioekonomi di Malaysia 11.2 Perkembangan Islam di Malaysia
C39: 12.0 Metod asas pengucapan awam 12.1 Spontan (tanpa persediaan) 12.2 Manskrip (membaca) 12.3 Tanpa teks terperinci 12.4 Hafalan | G39: CLO 1 | I39: 2 | S39: 2 | T39: 4 | U39: 12.0 Metod asas pengucapan awam 12.1 Spontan (tanpa persediaan) 12.2 Manskrip (membaca) 12.3 Tanpa teks terperinci 12.4 Hafalan
C40: 13.0 Persiapan sebelum persembahan 13.1 Tajuk, tarikh, tempoh masa 13.2 Objektif 13.3 Bahan-bahan 13.4 Rangka ucapan 13.5 Menulis ucapan 13.6 Latihan | G40: CLO 1 | I40: 2 | S40: 2 | T40: 4 | U40: 13.0 Persiapan sebelum persembahan 13.1 Tajuk, tarikh, tempoh masa 13.2 Objektif 13.3 Bahan-bahan 13.4 Rangka ucapan 13.5 Menulis ucapan 13.6 Latihan
C41: 14.0 Persembahan (pengucapan awam) 14.1 Persediaan fizikal, mental, emosi | G41: CLO 1 | I41: 2 | S41: 3 | T41: 5 | U41: 14.0 Persembahan (pengucapan awam) 14.1 Persediaan fizikal, mental, emosi
C42: Total | T42: =SUM(T28:T41) -> 57 | U42: Total
C44: Continuous Assessment | L44: Percentage (%) | N44: F2F | Q44: NF2F | T44: SLT
C45: 1 | D45: Ujian | L45: 10 | N45: 1 | Q45: 2 | T45: =SUM(N45:S45) -> 3
C46: 2 | D46: Tugasan 1 | L46: 15 | N46: 0.5 | Q46: 2 | T46: 2.5 | U46: =D46 -> Tugasan 1
C47: 3 | D47: Tugasan 2 | L47: 15 | N47: 1 | Q47: 4 | T47: 5 | U47: Tugasan 2
C48: 4 | D48: Tugasan 3 | L48: 20 | N48: 1 | Q48: 4 | T48: 5 | U48: Tugasan 3
C49: 5 | D49: Kuiz | L49: 10 | N49: 0.5 | T49: 0.5 | U49: Kuiz
C50: Total | T50: =SUM(T45:T49) -> 16
C52: Final Assessment | L52: Percentage (%) | N52: F2F | Q52: NF2F | T52: SLT
C53: 1 | D53: Final Examination | L53: 30 | N53: 2.5 | Q53: 4.5 | T53: =SUM(N53:S53) -> 7
C54: 2 | T54: 0 | U54: =D54 -> 
C55: 3 | T55: 0
C56: 4 | T56: 0
C57: 5 | T57: 0
T58: =SUM(T53:T57) -> 7 | U58: =D58 -> 
C60: **Please tick (ü) in this course is Latihan Industri / Clinical Placement / Practicum / WBL using 2 weeks; 1 credit formula | T60: =+T42+T50+T58 -> 80
C61: L= Lecture, T=Tutorial, P=Practical, O=Others, F2F=Face to Face, NF2F=None Face to Face
C62: *Indicate the CLO based on the CLO's numbering in item 8
B63: 11 | C63: Identify special requirement to deliver the course (e.g: software, nursery, computer lab, simulation room, etc) | H63: None
U64: =H64 -> 
B65: 12 | C65: References: | H65: Abdul Mua'ti @ Zamri Ahmad (2015). Panduan Pengucapan Awam, Edisi kedua, Kuala Lumpur. Dewan Bahasa dan Pustaka
C66: (include required and further readings, and should be the most current) | H66: 1. Jumali Hj.Selamat. (2012). Pengucapan Awam Strategik dan Kemahiran. Saturn Universe Abdullah Hassan, Ainon Mohd. (1998), Komunikasi Untuk Pemimpin, Kuala Lumpur, Utusan Publication & Distributors Sdn Bhd. 2. Hrd Tim Pemenangan Pemilu Nasional. (2008), Materi Keterampilan Tekad, Solo, Era Intermedia. Hisham Altalib. (1992) Alih Bahasa Wan Izzuddin Wan Sulaiman, Panduan Latihan Bagi Petugas Islam, Kuala Lumpur, Nurin Enterprise. 3. Sallehuddin Hj. Mohd Noor, Jallaludin Haji Mohd Noor & Ishak Haji Abdul Rahman. (2003). Pengucapan Awam. Kuala Lumpur: Thomson Learning (a division of thomas learning) Pte.Ltd Kuulwindr Kaur Sidhu. (2006). Pengucapan Awam Dan Kemahiran Persembahan. Kuala Lumpur: Penerbit Universiti Malaya. 4. Abdullah Hassan & Ainon Mohd.(2001). Teori Dan Teknik Ucapan Berpengaruh. Kuala Lumpur: PTS Publications and Distibutions Sdn Bhd. | U66: =H66 -> 1. Jumali Hj.Selamat. (2012). Pengucapan Awam Strategik dan Kemahiran. Saturn Universe Abdullah Hassan, Ainon Mohd. (1998), Komunikasi Untuk Pemimpin, Kuala Lumpur, Utusan Publication & Distributors Sdn Bhd. 2. Hrd Tim Pemenangan Pemilu Nasional. (2008), Materi Keterampilan Tekad, Solo, Era Intermedia. Hisham Altalib. (1992) Alih Bahasa Wan Izzuddin Wan Sulaiman, Panduan Latihan Bagi Petugas Islam, Kuala Lumpur, Nurin Enterprise. 3. Sallehuddin Hj. Mohd Noor, Jallaludin Haji Mohd Noor & Ishak Haji Abdul Rahman. (2003). Pengucapan Awam. Kuala Lumpur: Thomson Learning (a division of thomas learning) Pte.Ltd Kuulwindr Kaur Sidhu. (2006). Pengucapan Awam Dan Kemahiran Persembahan. Kuala Lumpur: Penerbit Universiti Malaya. 4. Abdullah Hassan & Ainon Mohd.(2001). Teori Dan Teknik Ucapan Berpengaruh. Kuala Lumpur: PTS Publications and Distibutions Sdn Bhd.
B67: 13 | C67: Other additional Information | H67: Kemaskini pada : 24 November 2019 | U67: Kemaskini pada : 24 November 2019

Sheet MPU2242
B2: Back | C2: Name of Course | D2: Kemahiran Berfikir dan Penyelesaian Masalah | AK2: 1 | AL2: 1
C3: Course Code | D3: MPU2242 | AJ3: √ | AK3: 2 | AL3: 2
B4: 2 | C4: Synopsis | D4: Kursus ini memberi pendedahan kepada pelajar mengenai konsep kemahiran berfikir secara kritis dan kreatif, jenis-jenis kemahiran berfikir secara kritis dan kreatif serta cara-cara mengaplikasikan pemikiran kreatif dan kritis dalam pembelajaran dan kehidupan. Selain itu, kursus ini turut memberi pendedahan kepada pelajar mengenai kaedah penyelesaian masalah dan pembuatan keputusan, langkah-langkah dalam penyelesaian masalah dan pembuatan keputusan, contoh-contoh aplikasi serta perbezaan antara keduanya. | U4: =D4 -> Kursus ini memberi pendedahan kepada pelajar mengenai konsep kemahiran berfikir secara kritis dan kreatif, jenis-jenis kemahiran berfikir secara kritis dan kreatif serta cara-cara mengaplikasikan pemikiran kreatif dan kritis dalam pembelajaran dan kehidupan. Selain itu, kursus ini turut memberi pendedahan kepada pelajar mengenai kaedah penyelesaian masalah dan pembuatan keputusan, langkah-langkah dalam penyelesaian masalah dan pembuatan keputusan, contoh-contoh aplikasi serta perbezaan antara keduanya. | AK4: 3 | AL4: 3
B5: 3 | C5: Name (s) of Academic Staff | D5: Noor Enaida binti Tutan Khamin | AK5: 4 | AL5: 4
B6: 4 | C6: Semester | D6: Semester | E6: 2 | F6: Year | G6: 1 | AK6: 5
B7: 5 | C7: Credit Value | D7: =IF(AJ61=40,1,(IF(AJ61=80,2,(IF(AJ61=120,3,(IF(AJ61=160,4,IF(AJ61=200,5,IF(AJ61=240,6,""))))))))) ->  | AK7: 6
B8: 6 | C8: Pre-requisite / Co-requisite (if any) | AK8: 7
B9: 7 | C9: Course Learning Outcomes (CLO): At the end of the course the students will be able to: | AK9: 8
C10: (example) - explain the basic principles of immunisation (C2, PLO1) | AK10: 9
C11: CLO1 | D11: Menjelaskan konsep kemahiran berfikir secara kritis dan kreatif, cara-cara mentafsir penyelesaian masalah, dan pembuatan keputusan frame. (C3, PLO1) | U11: =D11 -> Menjelaskan konsep kemahiran berfikir secara kritis dan kreatif, cara-cara mentafsir penyelesaian masalah, dan pembuatan keputusan frame. (C3, PLO1) | AK11: 10
C12: CLO2 | D12: Mengaplikasikan pemikiran kreatif dan kritis serta penyelesaian masalah dan pembuatan keputusan dalam pembelajaran dan kehidupan. (CTPS5, PLO2) | U12: Mengaplikasikan pemikiran kreatif dan kritis serta penyelesaian masalah dan pembuatan keputusan dalam pembelajaran dan kehidupan. (CTPS5, PLO2) | AK12: 11
C13: CLO3 | D13: Memilih kaedah yang bersesuaian untuk penyelesaian masalah dan pembuatan keputusan berdasarkan situasi dan aplikasi yang berbeza. (A3,CTPS5,PLO9)
C14: CLO4 | AK14: 12
B15: 8 | C15: Mapping of the Course Learning Outcomes to the Programme Learning Outcomes, Teaching Methods and Assessment:
C16: Course Learning Outcomes (CLO) | D16: Programme Learning Outcomes (PLO) | P16: Teaching Methods | S16: Assessment
D17: PLO1 | E17: PLO2 | F17: PLO3 | G17: PLO4 | H17: PLO5 | I17: PLO6 | J17: PLO7 | K17: PLO8 | L17: PLO9 | M17: PLO10 | N17: PLO11 | O17: PLO12
C18: CLO1 | D18: √ | P18: Kuliah | Perbincangan | S18: Portfolio | Peperiksaan akhir | U18: =S18 -> Portfolio | Peperiksaan akhir
C19: CLO2 | E19: √ | P19: Kuliah | Perbincangan | S19: Portfolio | Tugasan | Projek
C20: CLO3 | L20: √ | P20: Perbincangan | Pembentangan | S20: Portfolio | Tugasan | Projek
C21: CLO4
C22: (The description must be read together with standards 2.1.2, 2.2.1 and 2.2.2 in Area 2 - pages 16 & 18)
B23: 9 | C23: Transferable skills (if applicable) | G23: 1 | H23: Kemahiran berfikir secara kritis dan kreatif
C24: (Skills learned in the course of study which can be useful and utilised in other settings) | G24: 2 | H24: Kemahiran membuat keputusan
G25: 3 | H25: Kemahiran mengurus maklumat
B26: 10 | C26: Distribution of Students Learning Time (SLT)
C27: Course Content Outline | G27: CLO | I27: Teaching and Learning Activities | T27: SLT
I28: Guided learning (F2F) | Q28: Guided Learning (NF2F) eg: e-learning | S28: Independent learning (NF2F)
I29: L | K29: T | M29: P | O29: O
C30: 1.0 Konsep Kemahiran berfikir kreatif dan kritis 1.1 Definisi konsep dan otak, minda dan akal 1.2 Pengenalan kepada konsep kemahiran berfikir | G30: CLO 1 | I30: 1 | S30: 1 | T30: =SUM(I30:S30) -> 2
C31: 2.0 Jenis-Jenis kemahiran berfikir 2.1 Pemikiran kritis 2.2 Pemikiran kreatif 2.3 Perbezaan antara pemikiran kritis dan kreatif | G31: CLO 1 | I31: 1 | S31: 1 | T31: 2 | U31: =C31 -> 2.0 Jenis-Jenis kemahiran berfikir 2.1 Pemikiran kritis 2.2 Pemikiran kreatif 2.3 Perbezaan antara pemikiran kritis dan kreatif
C32: 3.0 Kepentingan Kemahiran Berfikir 3.1 Kemahiran berfikir dan tenaga manusia 3.2 Kemahiran berfikir dan zaman maklumat 3.3 Kemahiran berfikir dan sistem demokrasi 3.4 Apa itu pemikiran 3.5 Perkembangan kemahiran berfikir kurang ditekankan 3.6 Pemikiran dan tingkahlaku | G32: CLO 1 | I32: 1 | S32: 1 | T32: 2 | U32: 3.0 Kepentingan Kemahiran Berfikir 3.1 Kemahiran berfikir dan tenaga manusia 3.2 Kemahiran berfikir dan zaman maklumat 3.3 Kemahiran berfikir dan sistem demokrasi 3.4 Apa itu pemikiran 3.5 Perkembangan kemahiran berfikir kurang ditekankan 3.6 Pemikiran dan tingkahlaku
C33: 4.0 Alat-Alat Berfikir 4.1 Baik, buruk, menarik (P,M,I) 4.2 Ambil kira semua faktor (CAF) 4.3 Kesan mengikut jangka masa (C & S) 4.4 Tujuan, matlamat dan objektif (A,G,O) 4.5 Kepentingan utama didahulukan (FIP) 4.6 Alternatif, kemungkinan dan pilihan (APC) | G33: CLO 1 | I33: 2 | S33: 1 | T33: 3 | U33: 4.0 Alat-Alat Berfikir 4.1 Baik, buruk, menarik (P,M,I) 4.2 Ambil kira semua faktor (CAF) 4.3 Kesan mengikut jangka masa (C & S) 4.4 Tujuan, matlamat dan objektif (A,G,O) 4.5 Kepentingan utama didahulukan (FIP) 4.6 Alternatif, kemungkinan dan pilihan (APC)
C34: 5.0 Proses Pemikiran 5.1 Proses membuat keputusan 5.2 Langkah-langkah membuat keputusan 5.3 Heuristik yang mempengaruhi proses membuat keputusan 5.4 Persamaan di antara penyelesaian masalah dan membuat keputusan | G34: CLO 1 | I34: 2 | S34: 1 | T34: 3 | U34: 5.0 Proses Pemikiran 5.1 Proses membuat keputusan 5.2 Langkah-langkah membuat keputusan 5.3 Heuristik yang mempengaruhi proses membuat keputusan 5.4 Persamaan di antara penyelesaian masalah dan membuat keputusan
C35: 6.0 Pengenalan Penyelesaian Masalah dan Membuat Keputusan 6.1 Apa itu masalah? 6.2 Konsep dan kepentingan penyelesiaan masalah 6.3 Perbandingan penyelesaian masalah dan pembuatan keputusan 6.4 Pembuatan keputusan mengikut hierarki organisasi 6.5 Latihan mengenal pasti kes penyelesaian masalah atau pembuatan keputusan | G35: CLO 1 | I35: 2 | S35: 1 | T35: 3 | U35: 6.0 Pengenalan Penyelesaian Masalah dan Membuat Keputusan 6.1 Apa itu masalah? 6.2 Konsep dan kepentingan penyelesiaan masalah 6.3 Perbandingan penyelesaian masalah dan pembuatan keputusan 6.4 Pembuatan keputusan mengikut hierarki organisasi 6.5 Latihan mengenal pasti kes penyelesaian masalah atau pembuatan keputusan
C36: 7.0 Proses penyelesaian masalah dan pembuatan keputusan sistematik 7.1 Mengenal pasti masalah 7.2 Menganalisis masalah 7.3 Menjana pilihan penyelesaian yang berpotensi 7.4 Memilih dan merancang penyelesaian 7.5 Melaksanakan penyelesaian 7.6 Memantau dan menilai penyelesaian | G36: CLO 1 | I36: 2 | S36: 1 | T36: 3 | U36: 7.0 Proses penyelesaian masalah dan pembuatan keputusan sistematik 7.1 Mengenal pasti masalah 7.2 Menganalisis masalah 7.3 Menjana pilihan penyelesaian yang berpotensi 7.4 Memilih dan merancang penyelesaian 7.5 Melaksanakan penyelesaian 7.6 Memantau dan menilai penyelesaian
C37: 8.0 Mengenalpasti masalah 8.1 Tulis kenyataan masalah dengan jelas dan terang 8.2 Pecahkan masalah kepada bahagian yang lebih kecil 8.3 Tulis kenyataan matlamat yang dikehendaki di akhir proses penyelesaian masalah 8.4 Latihan mengenalpasti masalah | G37: CLO 1 | I37: 2 | S37: 1 | T37: 3 | U37: 8.0 Mengenalpasti masalah 8.1 Tulis kenyataan masalah dengan jelas dan terang 8.2 Pecahkan masalah kepada bahagian yang lebih kecil 8.3 Tulis kenyataan matlamat yang dikehendaki di akhir proses penyelesaian masalah 8.4 Latihan mengenalpasti masalah
C38: 9.0 Menganalisis masalah 9.1 Meneroka masalah untuk mencari punca sebenar 9.2 Mendapatkan pelbagai maklumat yang berkaitan dengan masalah 9.3 Kemahiran bertanya soalan yang berkaitan (5W1H) | G38: CLO 1 | I38: 2 | S38: 2 | T38: 4 | U38: 9.0 Menganalisis masalah 9.1 Meneroka masalah untuk mencari punca sebenar 9.2 Mendapatkan pelbagai maklumat yang berkaitan dengan masalah 9.3 Kemahiran bertanya soalan yang berkaitan (5W1H)
C39: 10.0 Menjana pilihan penyelesaian yang berpotensi 10.1 Mendapatkan sebanyak mungkin pilihan penyelesaian yang praktikal 10.2 Kemahiran berfikir - kreatif, literal, berfikir diluar kotak 10.3 Sesi sumbang saran (brainstorming) 10.4 Latihan sumbang saran | G39: CLO 1 | I39: 2 | S39: 2 | T39: 4 | U39: 10.0 Menjana pilihan penyelesaian yang berpotensi 10.1 Mendapatkan sebanyak mungkin pilihan penyelesaian yang praktikal 10.2 Kemahiran berfikir - kreatif, literal, berfikir diluar kotak 10.3 Sesi sumbang saran (brainstorming) 10.4 Latihan sumbang saran
C40: 11.0 Memilih atau membuat keputusan dan merancang penyelesaian 11.1 Faktor pertimbangan dalam membuat pilihan/keputusan 11.2 Merancang pelan tindakan bagi penyelesaian yang dipilih 11.3 Latihan membuat keputusan | G40: CLO 1 | I40: 2 | S40: 2 | T40: 4 | U40: 11.0 Memilih atau membuat keputusan dan merancang penyelesaian 11.1 Faktor pertimbangan dalam membuat pilihan/keputusan 11.2 Merancang pelan tindakan bagi penyelesaian yang dipilih 11.3 Latihan membuat keputusan
C41: 12.0 Melaksanakan Penyelesaian Masalah | G41: CLO 1 | I41: 1 | S41: 1 | T41: 2 | U41: 12.0 Melaksanakan Penyelesaian Masalah
C42: 13.0 Memantau dan menilai penyelesaian yang diambil 13.1 Mewujudkan kriteria untuk menilai keberkesanan penyelesaian yang dipilih 13.2 Pelarasan dan penambahbaikan | G42: CLO 1 | I42: 2 | S42: 2 | T42: 4 | U42: 13.0 Memantau dan menilai penyelesaian yang diambil 13.1 Mewujudkan kriteria untuk menilai keberkesanan penyelesaian yang dipilih 13.2 Pelarasan dan penambahbaikan
C43: Total | T43: =SUM(T30:T42) -> 39 | U43: Total
C45: Continuous Assessment | L45: Percentage (%) | N45: F2F | Q45: NF2F | T45: SLT
C46: 1 | D46: Tugasan 1 | L46: 10 | Q46: 4 | T46: =SUM(N46:S46) -> 4
C47: 2 | D47: Tugasan 2 | L47: 10 | Q47: 4 | T47: 4 | U47: =D47 -> Tugasan 2
C48: 3 | D48: Tugasan 3 | L48: 10 | Q48: 4 | T48: 4 | U48: Tugasan 3
C49: 4 | D49: Projek dan pembentangan | L49: 20 | N49: 2 | Q49: 8 | T49: 10 | U49: Projek dan pembentangan
C50: 5 | D50: Portfolio | L50: 20 | N50: 1 | Q50: 12 | T50: 13 | U50: Portfolio
C51: Total | T51: =SUM(T46:T50) -> 35
C53: Final Assessment | L53: Percentage (%) | N53: F2F | Q53: NF2F | T53: SLT
C54: 1 | D54: Final Examination | L54: 30 | N54: 2 | Q54: 4 | T54: =SUM(N54:S54) -> 6
C55: 2 | T55: 0 | U55: =D55 -> 
C56: 3 | T56: 0
C57: 4 | T57: 0
C58: 5 | T58: 0
T59: =SUM(T54:T58) -> 6 | U59: =D59 -> 
C61: **Please tick (ü) in this course is Latihan Industri / Clinical Placement / Practicum / WBL using 2 weeks; 1 credit formula | T61: =+T43+T51+T59 -> 80
C62: L= Lecture, T=Tutorial, P=Practical, O=Others, F2F=Face to Face, NF2F=None Face to Face
C63: *Indicate the CLO based on the CLO's numbering in item 8
B64: 11 | C64: Identify special requirement to deliver the course (e.g: software, nursery, computer lab, simulation room, etc) | H64: None
U65: =H65 -> 
B66: 12 | C66: References: | H66: Joe Y. F Wiley. (2018). An Introduction to Critical Thinking and Creativity: Think More, Think Better: Think More, Think Better Wiley Publishing. Stella Cottrell. (2017). Critical Thinking Skills: Effective Analysis, Argument and Reflection, Macmillan International Higher Education, 2017. Colin G. Smith. (2013). Creative Problem Solving Techniques To Change Your Life. CreateSpace Independent Publishing Platform.
C67: (include required and further readings, and should be the most current) | H67: Gerard J. Puccio, Marie Mance, Laura Barbero Switalski, Paul Reali. (2012). Creative Rising Creative Thinking and Creative Problem Solving in the 21st Century. ICSC Press. Mohd Azhar Abdul Hamid, et.al.(2006). Rekacipta dan Inovasi Dalam Perspektif Kreativiti. Penerbitan UTM.Mohd Azhar Abdul Hamid.(2014). Pengenalan Pemikiran Kritis dan Kreatif. Penerbitan UTM. | U67: =H67 -> Gerard J. Puccio, Marie Mance, Laura Barbero Switalski, Paul Reali. (2012). Creative Rising Creative Thinking and Creative Problem Solving in the 21st Century. ICSC Press. Mohd Azhar Abdul Hamid, et.al.(2006). Rekacipta dan Inovasi Dalam Perspektif Kreativiti. Penerbitan UTM.Mohd Azhar Abdul Hamid.(2014). Pengenalan Pemikiran Kritis dan Kreatif. Penerbitan UTM.
B68: 13 | C68: Other additional Information | H68: Kemaskini pada: 24 November 2019 | U68: Kemaskini pada: 24 November 2019

Sheet MPU2412
B2: Back | C2: Name of Course | D2: Kepimpinan kelab, Persatuan dan Organisasi | AK2: 1 | AL2: 1
C3: Course Code | D3: MPU2412 | AJ3: √ | AK3: 2 | AL3: 2
B4: 2 | C4: Synopsis | D4: Kursus ini direkabentuk untuk memberikan pelajar satu pengalaman untuk menjalankan program yang berkait dengan kursus yang diambil. Pelajar akan dipandu untuk mengenalpasti keperluan atau masalah, merancang,menyelaras sesuatu program sebelum, semasa dan selepas sesuatu program itu dijalankan. | U4: =D4 -> Kursus ini direkabentuk untuk memberikan pelajar satu pengalaman untuk menjalankan program yang berkait dengan kursus yang diambil. Pelajar akan dipandu untuk mengenalpasti keperluan atau masalah, merancang,menyelaras sesuatu program sebelum, semasa dan selepas sesuatu program itu dijalankan. | AK4: 3 | AL4: 3
B5: 3 | C5: Name (s) of Academic Staff | D5: Noor Enaida binti Tutan Khamin | AK5: 4 | AL5: 4
B6: 4 | C6: Semester | D6: Semester | E6: 5 | F6: Year | G6: 2 | AK6: 5
B7: 5 | C7: Credit Value | D7: =IF(AJ56=40,1,(IF(AJ56=80,2,(IF(AJ56=120,3,(IF(AJ56=160,4,IF(AJ56=200,5,IF(AJ56=240,6,""))))))))) ->  | AK7: 6
B8: 6 | C8: Pre-requisite / Co-requisite (if any) | AK8: 7
B9: 7 | C9: Course Learning Outcomes (CLO): At the end of the course the students will be able to: | AK9: 8
C10: (example) - explain the basic principles of immunisation (C2, PLO1) | AK10: 9
C11: CLO1 | D11: Menerangkan ciri-ciri asas mengenai penubuhan kelab atau persatuan (TS2, PLO1) | U11: =D11 -> Menerangkan ciri-ciri asas mengenai penubuhan kelab atau persatuan (TS2, PLO1) | AK11: 10
C12: CLO2 | D12: Mengaplikasikan kemahiran berfikir secara kreatif dan menyelesaikan masalah (P3, CTPS3, PLO3) | U12: Mengaplikasikan kemahiran berfikir secara kreatif dan menyelesaikan masalah (P3, CTPS3, PLO3) | AK12: 11
C13: CLO3 | D13: Menganjurkan aktiviti-aktiviti dan menguruskan aktiviti dengan berkesan (P3, PLO8)
B14: 8 | C14: Mapping of the Course Learning Outcomes to the Programme Learning Outcomes, Teaching Methods and Assessment:
C15: Course Learning Outcomes (CLO) | D15: Programme Learning Outcomes (PLO) | P15: Teaching Methods | S15: Assessment
D16: PLO1 | E16: PLO2 | F16: PLO3 | G16: PLO4 | H16: PLO5 | I16: PLO6 | J16: PLO7 | K16: PLO8 | L16: PLO9 | M16: PLO10 | N16: PLO11 | O16: PLO12
C17: CLO1 | D17: √ | P17: Kuliah | Perbincangan | S17: Tugasan | U17: =S17 -> Tugasan
C18: CLO2 | F18: √ | P18: Kuliah | Perbincangan | S18: Tugasan
C19: CLO3 | K19: √ | P19: Kuliah | Perbincangan | Pembentangan | S19: Projek | Laporan
C20: (The description must be read together with standards 2.1.2, 2.2.1 and 2.2.2 in Area 2 - pages 16 & 18)
B21: 9 | C21: Transferable skills (if applicable) | G21: 1 | H21: Pemikiran kreatif
C22: (Skills learned in the course of study which can be useful and utilised in other settings) | G22: 2 | H22: Komunikasi lisan
G23: 3 | H23: Kepimpinan dan kerja berpasukan
B24: 10 | C24: Distribution of Students Learning Time (SLT)
C25: Course Content Outline | G25: CLO | I25: Teaching and Learning Activities | T25: SLT
I26: Guided learning (F2F) | Q26: Guided Learning (NF2F) eg: e-learning | S26: Independent learning (NF2F)
I27: L | K27: T | M27: P | O27: O
C28: 1.0 Panduan penyediaan kertas kerja aktiviti dan kelulusan | G28: CLO 1 | I28: 2 | S28: 5 | T28: =SUM(I28:S28) -> 7
C29: 2.0 Panduan asas penubuhan kelab dan persatuan | G29: CLO 1 | I29: 2 | S29: 5 | T29: 7 | U29: =C29 -> 2.0 Panduan asas penubuhan kelab dan persatuan
C30: 3.0 Jabatan Pendaftaran Pertubuhan Malaysia 3.1 Peranan, sejarah dan prosidur | G30: CLO 1 | I30: 2 | S30: 3 | T30: 5 | U30: 3.0 Jabatan Pendaftaran Pertubuhan Malaysia 3.1 Peranan, sejarah dan prosidur
C31: 4.0 Perbentangan tugasan | G31: CLO 1 | O31: 4 | S31: 3 | T31: 7 | U31: 4.0 Perbentangan tugasan
C32: 5.0 Pengurusan kewangan dan penajaan | G32: CLO 1 | I32: 3 | S32: 6 | T32: 9 | U32: 5.0 Pengurusan kewangan dan penajaan
C33: 6.0 Kepimpinan dalam persatuan dan perhubungan awam | G33: CLO 1 | I33: 2 | S33: 4 | T33: 6 | U33: 6.0 Kepimpinan dalam persatuan dan perhubungan awam
C34: 7.0 Pengurusan kelab/ persatuan dan pengurusan program | G34: CLO 1 | I34: 2 | S34: 5 | T34: 7 | U34: 7.0 Pengurusan kelab/ persatuan dan pengurusan program
C35: 8.0 Panduan protokol dan etiket | G35: CLO 1 | I35: 2 | S35: 5 | T35: 7 | U35: 8.0 Panduan protokol dan etiket
C36: 9.0 Kemahiran berkomunikasi dan pengucapan awam | G36: CLO 1 | I36: 2 | S36: 5 | T36: 7 | U36: 9.0 Kemahiran berkomunikasi dan pengucapan awam
C37: 10.0 Perbentangan projek | G37: CLO 1 | O37: 4 | S37: 3 | T37: 7 | U37: 10.0 Perbentangan projek
C38: Total | T38: =SUM(T28:T35) -> 55 | U38: Total
C40: Continuous Assessment | L40: Percentage (%) | N40: F2F | Q40: NF2F | T40: SLT
C41: 1 | D41: Tugasan 1 | L41: 10 | Q41: 5 | T41: =SUM(N41:S41) -> 5
C42: 2 | D42: Tugasan 2 | L42: 10 | Q42: 5 | T42: 5 | U42: =D42 -> Tugasan 2
C43: 3 | D43: Projek | L43: 45 | N43: 2 | Q43: 10 | T43: 12 | U43: Projek
C44: 4 | D44: Pembentangan | L44: 15 | N44: Bab 4 & 10 | Q44: 2 | T44: 2 | U44: Pembentangan
C45: 5 | D45: Penglibatan dalam projek (peer to peer) | L45: 20 | N45: 1 | T45: 1 | U45: Penglibatan dalam projek (peer to peer)
C46: Total | T46: =SUM(T41:T45) -> 25
C48: Final Assessment | L48: Percentage (%) | N48: F2F | Q48: NF2F | T48: SLT
C49: 1 | T49: =SUM(N49:S49) -> 0
C50: 2 | T50: 0 | U50: =D50 -> 
C51: 3 | T51: 0
C52: 4 | T52: 0
C53: 5 | T53: 0
T54: =SUM(T49:T53) -> 0 | U54: =D54 -> 
C56: **Please tick (ü) in this course is Latihan Industri / Clinical Placement / Practicum / WBL using 2 weeks; 1 credit formula | T56: =+T38+T46+T54 -> 80
C57: L= Lecture, T=Tutorial, P=Practical, O=Others, F2F=Face to Face, NF2F=None Face to Face
C58: *Indicate the CLO based on the CLO's numbering in item 8
B59: 11 | C59: Identify special requirement to deliver the course (e.g: software, nursery, computer lab, simulation room, etc) | H59: None
U60: =H60 -> 
B61: 12 | C61: References: | H61: James Ang Jit Eng.(2016). Pengurusan Aktiviti Luar Sekolah: Panduan Pengurusan Aktiviti di Luar Sekolah. PTS Publications & Distributors Sdn Bhd, 2016
C62: (include required and further readings, and should be the most current) | H62: Zafir Makbul.(2013). Pengurusan Organisasi .Pearson Education. Ducker, P.(2010). Managing People and Organizations. Emerald Group Publishing. Van Der Wagen & Carlos (2005). Event Management. 1st Edn. Pearson Higher Education Jabatan Pendaftaran Pertubuhan Malaysia. Meredith, J.R. & Mantel, Jr. S.J. (2006). Project Management: A Managerial Approach (6th Ed). New York:John Wiley and Sons, Inc. | U62: =H62 -> Zafir Makbul.(2013). Pengurusan Organisasi .Pearson Education. Ducker, P.(2010). Managing People and Organizations. Emerald Group Publishing. Van Der Wagen & Carlos (2005). Event Management. 1st Edn. Pearson Higher Education Jabatan Pendaftaran Pertubuhan Malaysia. Meredith, J.R. & Mantel, Jr. S.J. (2006). Project Management: A Managerial Approach (6th Ed). New York:John Wiley and Sons, Inc.
B63: 13 | C63: Other additional Information | H63: Kemaskini pada : 24 November 2019 | U63: Kemaskini pada : 24 November 2019

Sheet CMM 1113 ART FUND DESIGN
B2: Back | C2: Name of Course | D2: Art Fundamental and Design | AK2: 1 | AL2: 1
C3: Course Code | D3: CMM1113 | AJ3: √ | AK3: 2 | AL3: 2
B4: 2 | C4: Synopsis | D4: This course introduces the concept of graphic design, graphic design components, elements of design and principles of graphic design. Topic on typography and layout of graphic design that will be utilize across all application. Student will be introduce to major graphic design application suc as logo / symbol / pictogram, visual identity / branding, poster, book jackets and magazine covers, packaging design etc. This course help develop hands on skills on how to design / solve graphic design application by using the graphic design drawing software such as Adobe Illustrator CS3. | U4: =D4 -> This course introduces the concept of graphic design, graphic design components, elements of design and principles of graphic design. Topic on typography and layout of graphic design that will be utilize across all application. Student will be introduce to major graphic design application suc as logo / symbol / pictogram, visual identity / branding, poster, book jackets and magazine covers, packaging design etc. This course help develop hands on skills on how to design / solve graphic design application by using the graphic design drawing software such as Adobe Illustrator CS3. | AK4: 3 | AL4: 3
B5: 3 | C5: Name (s) of Academic Staff | D5: Nuur Fatihah Mohd Yusoff | AK5: 4 | AL5: 4
B6: 4 | C6: Semester | D6: Semester | E6: 1 | F6: Year | G6: 1 | AK6: 5
B7: 5 | C7: Credit Value | D7: =IF(AJ59=40,1,(IF(AJ59=80,2,(IF(AJ59=120,3,(IF(AJ59=160,4,IF(AJ59=200,5,IF(AJ59=240,6,""))))))))) ->  | AK7: 6
B8: 6 | C8: Pre-requisite / Co-requisite (if any) | AK8: 7
B9: 7 | C9: Course Learning Outcomes (CLO): At the end of the course the students will be able to: | AK9: 8
C10: (example) - explain the basic principles of immunisation (C2, PLO1) | AK10: 9
C11: CLO1 | D11: Apply the knowledge and concept of basic graphic design in multimedia. (C3, PLO1) | U11: =D11 -> Apply the knowledge and concept of basic graphic design in multimedia. (C3, PLO1) | AK11: 10
C12: CLO2 | D12: Demonstrate the skill of creating graphic design application by using multimedia tools. (P3, PLO3) | U12: Demonstrate the skill of creating graphic design application by using multimedia tools. (P3, PLO3) | AK12: 11
C13: CLO3 | D13: Work collaboratively in a team to accomplish an assigned project within a given time frame (A3,TS3, PLO4)
AK14: 12
B15: 8 | C15: Mapping of the Course Learning Outcomes to the Programme Learning Outcomes, Teaching Methods and Assessment:
C16: Course Learning Outcomes (CLO) | D16: Programme Learning Outcomes (PLO) | P16: Teaching Methods | S16: Assessment
D17: PLO1 | E17: PLO2 | F17: PLO3 | G17: PLO4 | H17: PLO5 | I17: PLO6 | J17: PLO7 | K17: PLO8 | L17: PLO9 | M17: PLO10 | N17: PLO11 | O17: PLO12
C18: CLO1 | D18: √ | P18: Lecture | Discussion | Independent Study | S18: Test | Final Exam | U18: =S18 -> Test | Final Exam
C19: CLO2 | F19: √ | P19: Laboratory Work | Informal Co-operative Learning | S19: Lab Skill | Assignments | Project
C20: CLO3 | G20: √ | P20: Laboratory Work | Informal Co-operative Learning | Presentation | S20: Project
C22: (The description must be read together with standards 2.1.2, 2.2.1 and 2.2.2 in Area 2 - pages 16 & 18)
B23: 9 | C23: Transferable skills (if applicable) | G23: 1 | H23: Knowledge
C24: (Skills learned in the course of study which can be useful and utilised in other settings) | G24: 2 | H24: Practical Skill
G25: 3 | H25: Team working
B26: 10 | C26: Distribution of Students Learning Time (SLT)
C27: Course Content Outline | G27: CLO | I27: Teaching and Learning Activities | T27: SLT
I28: Guided learning (F2F) | Q28: Guided Learning (NF2F) eg: e-learning | S28: Independent learning (NF2F)
I29: L | K29: T | M29: P | O29: O
C30: 1.0 Introduction 1.1 Defining graphic Design 1.2 Nature and Impact of visual communication | G30: CLO 1, CLO 2 | I30: 1 | S30: 2 | T30: =SUM(I30:S30) -> 3
C31: 2.0 Overview of Graphic Design Graphics Design Solution Components 2.1 Strategy 2.2 Concept 2.3 Design 2.4 Production 2.5 Execution | G31: CLO 1, CLO 2,CLO 3 | I31: 2 | M31: 2 | S31: 4 | T31: 8 | U31: =C31 -> 2.0 Overview of Graphic Design Graphics Design Solution Components 2.1 Strategy 2.2 Concept 2.3 Design 2.4 Production 2.5 Execution
C32: 3.0 Fundamental of Graphic 3.1 Design Formal elements of Graphic Design 3.11 Line 3.12 Shape 3.13 Value 3.14 Texture 3.15 Format | G32: CLO 1, CLO 2,CLO 3 | I32: 2 | M32: 2 | S32: 2 | T32: 6 | U32: 3.0 Fundamental of Graphic 3.1 Design Formal elements of Graphic Design 3.11 Line 3.12 Shape 3.13 Value 3.14 Texture 3.15 Format
C33: 3.2 The principles of design 3.21 Balance 3.22 Emphasis: focal point and hierarchy 3.23 Rhythm 3.24 Unity 3.25 Manipulation of graphic space | G33: CLO 1, CLO 2,CLO 3 | I33: 4 | M33: 2 | S33: 4 | T33: 10 | U33: 3.2 The principles of design 3.21 Balance 3.22 Emphasis: focal point and hierarchy 3.23 Rhythm 3.24 Unity 3.25 Manipulation of graphic space
C34: 4.0 Typography 4.1 Letterforms 4.2 The principles of design and type 4.3 Designing with type 4.4 Type and visual | G34: CLO 1, CLO 2,CLO 3 | I34: 2 | M34: 2 | S34: 2 | T34: 6 | U34: 4.0 Typography 4.1 Letterforms 4.2 The principles of design and type 4.3 Designing with type 4.4 Type and visual
C35: 5.0 Layout 5.1 Defining Layout 5.2 Considering the Format 5.3 The grid | G35: CLO 1, CLO 2,CLO 3 | I35: 2 | M35: 2 | S35: 3 | T35: 7 | U35: 5.0 Layout 5.1 Defining Layout 5.2 Considering the Format 5.3 The grid
C36: 6.0 Logo / Symbol / Pictograms 6.1 Logo 6.2 Symbol 6.3 Pictograms 6.4 Application of design principles in the topic | G36: CLO 1, CLO 2,CLO 3 | I36: 4 | M36: 4 | S36: 5 | T36: 13 | U36: 6.0 Logo / Symbol / Pictograms 6.1 Logo 6.2 Symbol 6.3 Pictograms 6.4 Application of design principles in the topic
C37: 7.0 Visual Indentity and Branding 7.1 Visual Identity 7.2 Brands and Branding 7.3 Application of design principles in the topic | G37: CLO 1, CLO 2,CLO 3 | I37: 4 | M37: 2 | S37: 5 | T37: 11 | U37: 7.0 Visual Indentity and Branding 7.1 Visual Identity 7.2 Brands and Branding 7.3 Application of design principles in the topic
C38: 8.0 Posters 8.1 Purpose of posters 8.2 The Chalenge of Poster design | G38: CLO 1, CLO 2,CLO 3 | I38: 2 | M38: 2 | S38: 2 | T38: 6 | U38: 8.0 Posters 8.1 Purpose of posters 8.2 The Chalenge of Poster design
C39: 9.0 Book Jacket and Magazine Covers 9.1 Purposes of Covers 9.2 Design Consideration | G39: CLO 1, CLO 2,CLO 3 | I39: 2 | M39: 2 | S39: 2 | T39: 6 | U39: 9.0 Book Jacket and Magazine Covers 9.1 Purposes of Covers 9.2 Design Consideration
C40: 10.0 Packaging Design 10.1 Packaging Design 10.2 Audio / CD Packaging 10.3 Shopping Bags | G40: CLO 1, CLO 2,CLO 3 | I40: 2 | M40: 2 | S40: 2 | T40: 6 | U40: 10.0 Packaging Design 10.1 Packaging Design 10.2 Audio / CD Packaging 10.3 Shopping Bags
C41: Total | T41: =SUM(T30:T40) -> 82 | U41: Total
C43: Continuous Assessment | L43: Percentage (%) | N43: F2F | Q43: NF2F | T43: SLT
C44: 1 | D44: Test 1 | L44: 10 | N44: 1.5 | Q44: 4.5 | T44: =SUM(N44:S44) -> 6
C45: 2 | D45: Test 2 | L45: 10 | N45: 1.5 | Q45: 4.5 | T45: 6 | U45: =D45 -> Test 2
C46: 3 | D46: Lab Skills | L46: 10 | N46: 2 | Q46: 2.5 | T46: 4.5 | U46: Lab Skills
C47: 3 | D47: Assignment | L47: 10 | Q47: 6 | T47: 6 | U47: Assignment
C48: 4 | D48: Project | L48: 10 | N48: 2 | Q48: 6 | T48: 8 | U48: Project
C49: Total | T49: =SUM(T44:T48) -> 30.5
C51: Final Assessment | L51: Percentage (%) | N51: F2F | Q51: NF2F | T51: SLT
C52: 1 | D52: Final Examination | L52: 50 | N52: 2.5 | Q52: 5 | T52: =SUM(N52:S52) -> 7.5
C53: 2 | T53: 0 | U53: =D53 -> 
C54: 3 | T54: 0
C55: 4 | T55: 0
C56: 5 | T56: 0
T57: =SUM(T52:T56) -> 7.5 | U57: =D57 -> 
C59: **Please tick (ü) in this course is Latihan Industri / Clinical Placement / Practicum / WBL using 2 weeks; 1 credit formula | T59: =+T41+T49+T57 -> 120
C60: L= Lecture, T=Tutorial, P=Practical, O=Others, F2F=Face to Face, NF2F=None Face to Face
C61: *Indicate the CLO based on the CLO's numbering in item 8
B62: 11 | C62: Identify special requirement to deliver the course (e.g: software, nursery, computer lab, simulation room, etc) | H62: Adobe Illustrator CC 2017, Adobe Photoshop CC 2017
U63: =H63 -> 
B64: 12 | C64: References: | H64: Landa, R. , Graphic Design Solution, Sixth Edition, Cengage Learning, 2018.
C65: (include required and further readings, and should be the most current) | H65: Ganovelli, F & Corssini (2014), Introduction to Computer Graphics: A Practical Learning Approach, Chapman and Hall/CRC; 1 edition | U65: =H65 -> Ganovelli, F & Corssini (2014), Introduction to Computer Graphics: A Practical Learning Approach, Chapman and Hall/CRC; 1 edition
H66: Adobe Illustrator CC Classroom in a book Adobe Press (2017 release) | U66: Adobe Illustrator CC Classroom in a book Adobe Press (2017 release)
B67: 13 | C67: Other additional Information | H67: Last updated : 24 November 2019 | U67: Last updated : 24 November 2019

Sheet CMM 1513 APLIKASI KOM
B2: Back | C2: Name of Course | D2: Introduction To Computer Hardware And Application | AK2: 1 | AL2: 1
C3: Course Code | D3: CMM1513 | AJ3: √ | AK3: 2 | AL3: 2
B4: 2 | C4: Synopsis | D4: This course is required to expose students to computer systems, operating systems and the Internet at the initial stage. Syllabus plus learning Microsoft Office computer applications in theoretical and practical and very important for the student to complete the computer literacy that will be used throughout the study. | U4: =D4 -> This course is required to expose students to computer systems, operating systems and the Internet at the initial stage. Syllabus plus learning Microsoft Office computer applications in theoretical and practical and very important for the student to complete the computer literacy that will be used throughout the study. | AK4: 3 | AL4: 3
B5: 3 | C5: Name (s) of Academic Staff | D5: Mohd Kamarulzaman Bin Omar | AK5: 4 | AL5: 4
B6: 4 | C6: Semester | D6: Semester | E6: 1 | F6: Year | G6: 1 | AK6: 5
B7: 5 | C7: Credit Value | D7: =IF(AJ55=40,1,(IF(AJ55=80,2,(IF(AJ55=120,3,(IF(AJ55=160,4,IF(AJ55=200,5,IF(AJ55=240,6,""))))))))) ->  | AK7: 6
B8: 6 | C8: Pre-requisite / Co-requisite (if any) | AK8: 7
B9: 7 | C9: Course Learning Outcomes (CLO): At the end of the course the students will be able to: | AK9: 8
C10: (example) - explain the basic principles of immunisation (C2, PLO1) | AK10: 9
C11: CLO1 | D11: Apply the components of computer system and its function, data communication, computer network and office application software. (C3, PLO1) | U11: =D11 -> Apply the components of computer system and its function, data communication, computer network and office application software. (C3, PLO1) | AK11: 10
C12: CLO2 | D12: Demonstrate skills of Microsoft Word, Microsoft Excel, Microsoft Power Point and Microsoft Access. (C3, CTPS3, PLO7) | U12: Demonstrate skills of Microsoft Word, Microsoft Excel, Microsoft Power Point and Microsoft Access. (C3, CTPS3, PLO7) | AK12: 11
C13: CLO3 | D13: Work collaboratively in a team to accomplish an assigned project within a given time. (A3, PLO4)
AK14: 12
B15: 8 | C15: Mapping of the Course Learning Outcomes to the Programme Learning Outcomes, Teaching Methods and Assessment:
C16: Course Learning Outcomes (CLO) | D16: Programme Learning Outcomes (PLO) | P16: Teaching Methods | S16: Assessment
D17: PLO1 | E17: PLO2 | F17: PLO3 | G17: PLO4 | H17: PLO5 | I17: PLO6 | J17: PLO7 | K17: PLO8 | L17: PLO9 | M17: PLO10 | N17: PLO11 | O17: PLO12
C18: CLO1 | D18: √ | P18: Lecture | Discussion | Lab activities | S18: Assignment | Tests | Final Examination | U18: =S18 -> Assignment | Tests | Final Examination
C19: CLO2 | J19: √ | P19: Lecture | Discussion | Lab activities | S19: Lab Skill
C20: CLO3 | G20: √ | P20: Informal Co-operative Learning | Presentation | S20: Project
C22: (The description must be read together with standards 2.1.2, 2.2.1 and 2.2.2 in Area 2 - pages 16 & 18)
B23: 9 | C23: Transferable skills (if applicable) | G23: 1 | H23: Knowledge
C24: (Skills learned in the course of study which can be useful and utilised in other settings) | G24: 2 | H24: Numerical Skill
G25: 3 | H25: Teamwork Skill
B26: 10 | C26: Distribution of Students Learning Time (SLT)
C27: Course Content Outline | G27: CLO | I27: Teaching and Learning Activities | T27: SLT
I28: Guided learning (F2F) | Q28: Guided Learning (NF2F) eg: e-learning | S28: Independent learning (NF2F)
I29: L | K29: T | M29: P | O29: O
C30: 1.0 Computer Systems 1.1 Computer Literacy 1.2 Computer Components 1.3 Advantages and Disadvantages of Computer 1.4 Category Computer 1.5 Data and Information 1.6 Components of System Unit 1.7 Computer Software | G30: CLO1 | I30: 2 | M30: 2 | S30: 2 | T30: =SUM(I30:S30) -> 6
C31: 2.0 Operating System 2.1 Operating System 2.2 Initialize and Manage Windows 2.3 Control Panel 2.4 Installation of Windows 10 | G31: CLO1 | I31: 2 | M31: 2 | S31: 2 | T31: 6 | U31: =C31 -> 2.0 Operating System 2.1 Operating System 2.2 Initialize and Manage Windows 2.3 Control Panel 2.4 Installation of Windows 10
C32: 3.0 Internet 3.1 Network and Internet 3.2 Web Browser 3.3 Internet Service 3.4 History of the Internet 3.5 Connecting to the World Wide Web (WWW) 3.6 Search Engine 3.7 Use the Internet and search | G32: CLO1 | I32: 2 | M32: 2 | S32: 2 | T32: 6 | U32: 3.0 Internet 3.1 Network and Internet 3.2 Web Browser 3.3 Internet Service 3.4 History of the Internet 3.5 Connecting to the World Wide Web (WWW) 3.6 Search Engine 3.7 Use the Internet and search
C33: 4.0 Word Processing 4.1 Window Word 4.2 Block Text 4.3 Spelling and Grammar 4.4 Save (Save and Save As) 4.5 Text and paragraph 4.6 Undo and Redo 4.7 Clip Art 4.8 Print and Print Preview 4.9 Setting margins 4.10 Header / Footer 4.11 Shortcut keys 4.12 Footnotes 4.13 Count 4.14 Hyperlink 4.15 Word Wizard 4.16 Templates 4.17 Clipboard 4.18 Table | G33: CLO2 CLO3 | I33: 4 | M33: 6 | S33: 6 | T33: 16 | U33: 4.0 Word Processing 4.1 Window Word 4.2 Block Text 4.3 Spelling and Grammar 4.4 Save (Save and Save As) 4.5 Text and paragraph 4.6 Undo and Redo 4.7 Clip Art 4.8 Print and Print Preview 4.9 Setting margins 4.10 Header / Footer 4.11 Shortcut keys 4.12 Footnotes 4.13 Count 4.14 Hyperlink 4.15 Word Wizard 4.16 Templates 4.17 Clipboard 4.18 Table
C34: 5.0 Graphic Presentation MS Powerpoint 5.1 PowerPoint Window 5.2 Template design 5.3 slide layout 5.4 Single and Multilevel Bulleted List 5.5 Slide View 5.6 Print Slide (slides, handouts, outline) 5.7 Clip art, table, graph 5.8 Animation 5.9 The movement of the slide 5.10 Sound, the movie 5.11 Wizard | G34: CLO2 CLO3 | I34: 4 | M34: 4 | S34: 4 | T34: 12 | U34: 5.0 Graphic Presentation MS Powerpoint 5.1 PowerPoint Window 5.2 Template design 5.3 slide layout 5.4 Single and Multilevel Bulleted List 5.5 Slide View 5.6 Print Slide (slides, handouts, outline) 5.7 Clip art, table, graph 5.8 Animation 5.9 The movement of the slide 5.10 Sound, the movie 5.11 Wizard
C35: 6.0 Electronic Sheet MS Excel 6.1 Excel Window 6.2 AutoSum 6.3 Copy Tues 6.4 Format cells and worksheet 6.5 Charts / graphs 6.6 Save and Print 6.7 AutoCalculate 6.8 Formula 6.9 Bandwidth, line 6.10 References 6.11 IF analysis | G35: CLO2 CLO3 | I35: 2 | M35: 6 | S35: 4 | T35: 12 | U35: 6.0 Electronic Sheet MS Excel 6.1 Excel Window 6.2 AutoSum 6.3 Copy Tues 6.4 Format cells and worksheet 6.5 Charts / graphs 6.6 Save and Print 6.7 AutoCalculate 6.8 Formula 6.9 Bandwidth, line 6.10 References 6.11 IF analysis
C36: 7.0 MS Access Data Base 7.1 Database Concepts 7.2 Data Types 7.3 Ms Access Database 7.4 Wizard and Design 7.5 Objects in MS Access | G36: CLO2 CLO3 | I36: 2 | M36: 2 | S36: 2 | T36: 6 | U36: 7.0 MS Access Data Base 7.1 Database Concepts 7.2 Data Types 7.3 Ms Access Database 7.4 Wizard and Design 7.5 Objects in MS Access
C37: Total | T37: =SUM(T30:T36) -> 64 | U37: Total
C39: Continuous Assessment | L39: Percentage (%) | N39: F2F | Q39: NF2F | T39: SLT
C40: 1 | D40: Lab Skill (5) | L40: 10 | N40: 10 | Q40: 5 | T40: =SUM(N40:S40) -> 15
C41: 2 | D41: Test (2) | L41: 20 | N41: 3 | Q41: 4 | T41: 7 | U41: =D41 -> Test (2)
C42: 3 | D42: Assignment (4) | L42: 10 | Q42: 9.5 | T42: 9.5 | U42: Assignment (4)
C43: 4 | D43: Project | L43: 10 | N43: 1 | Q43: 11 | T43: 12 | U43: Project
C44: 5 | T44: 0
C45: Total | T45: =SUM(T40:T44) -> 43.5
C47: Final Assessment | L47: Percentage (%) | N47: F2F | Q47: NF2F | T47: SLT
C48: 1 | D48: Final Examination | L48: 50 | N48: 2.5 | Q48: 10 | T48: =SUM(N48:S48) -> 12.5
C49: 2 | T49: 0 | U49: =D49 -> 
C50: 3 | T50: 0
C51: 4 | T51: 0
C52: 5 | T52: 0
T53: =SUM(T48:T52) -> 12.5 | U53: =D53 -> 
C55: **Please tick (ü) in this course is Latihan Industri / Clinical Placement / Practicum / WBL using 2 weeks; 1 credit formula | T55: =+T37+T45+T53 -> 120
C56: L= Lecture, T=Tutorial, P=Practical, O=Others, F2F=Face to Face, NF2F=None Face to Face
C57: *Indicate the CLO based on the CLO's numbering in item 8
B58: 11 | C58: Identify special requirement to deliver the course (e.g: software, nursery, computer lab, simulation room, etc) | H58: Microsoft Office Package
U59: =H59 -> 
B60: 12 | C60: References:
C61: (include required and further readings, and should be the most current) | H61: 1. Vermaat, S Freund, C Frydenberg. (2017) Discovering Computer 2018, Digital Technology, Data and Devices. Course Technology, Cengage Learning. 2. Shelly Cashmean Vermaat. Microsoft Office, Introductoy Concept and Technique, 2013. International Student Edition. Thomson Course Technology. 3. Modul Pengenalan Teknologi Komputer (2001). Terbitan UTM. 4. Stacy C.Sawyer. (2005) Brian K. Williams McGraw Hill. Using Information Technology. 5. Peter Norton. (2003). Introduction to Computers. Glencoe/McGraw Hill. 6. Larry Long & Nancy Long. (2004). Computers Information Technology in Perspective. Pearson, Prentice Hall. | U61: =H61 -> 1. Vermaat, S Freund, C Frydenberg. (2017) Discovering Computer 2018, Digital Technology, Data and Devices. Course Technology, Cengage Learning. 2. Shelly Cashmean Vermaat. Microsoft Office, Introductoy Concept and Technique, 2013. International Student Edition. Thomson Course Technology. 3. Modul Pengenalan Teknologi Komputer (2001). Terbitan UTM. 4. Stacy C.Sawyer. (2005) Brian K. Williams McGraw Hill. Using Information Technology. 5. Peter Norton. (2003). Introduction to Computers. Glencoe/McGraw Hill. 6. Larry Long & Nancy Long. (2004). Computers Information Technology in Perspective. Pearson, Prentice Hall.
B62: 13 | C62: Other additional Information | H62: Lab Activities: LAB 1 : Component of Computer System LAB 2 : Installing of OS - Windows LAB 3 : Internet - Browser and Search Engine LAB 4 : Microsoft Word LAB 5 : Microsoft Excel LAB 6 : Microsoft Power Point LAB 7 : Microsoft Access | U62: Lab Activities: LAB 1 : Component of Computer System LAB 2 : Installing of OS - Windows LAB 3 : Internet - Browser and Search Engine LAB 4 : Microsoft Word LAB 5 : Microsoft Excel LAB 6 : Microsoft Power Point LAB 7 : Microsoft Access
H64: Last updated : 24 November 2019

Sheet DPP 3186 LI
B2: Back | C2: Name of Course | D2: Industrial Training | AK2: 1 | AL2: 1
C3: Course Code | D3: DPP 3186 | AJ3: √ | AK3: 2 | AL3: 2
B4: 2 | C4: Synopsis | D4: The Industrial Training enables students to relate the knowledge and skills acquired in the classroom with systems, standards and practices prevalent in the industry. The students are required to maintain proper records in his/her log book and submit the reports on the training received by him/her. The performance of each student during the period of his/her Industrial Training is evaluated jointly by the faculty staff, and the representatives from employer organizations. | U4: =D4 -> The Industrial Training enables students to relate the knowledge and skills acquired in the classroom with systems, standards and practices prevalent in the industry. The students are required to maintain proper records in his/her log book and submit the reports on the training received by him/her. The performance of each student during the period of his/her Industrial Training is evaluated jointly by the faculty staff, and the representatives from employer organizations. | AK4: 3 | AL4: 3
B5: 3 | C5: Name (s) of Academic Staff | D5: Wan Nur Liyana Wan Mohd Fauzi | AK5: 4 | AL5: 4
B6: 4 | C6: Semester | D6: Semester | E6: 6 | F6: Year | G6: 3 | AK6: 5
B7: 5 | C7: Credit Value | D7: 6 | AK7: 6
B8: 6 | C8: Pre-requisite / Co-requisite (if any) | D8: Pass all courses | AK8: 7
B9: 7 | C9: Course Learning Outcomes (CLO): At the end of the course the students will be able to: | AK9: 8
C10: (example) - explain the basic principles of immunisation (C2, PLO1) | AK10: 9
C11: CLO1 | D11: Demonstrate the business practical skill related to the scope of work in the organisation. (P4, PLO2) | U11: =D11 -> Demonstrate the business practical skill related to the scope of work in the organisation. (P4, PLO2) | AK11: 10
C12: CLO2 | D12: Solve the real work problems and practice the technical knowledge in solving them, as well as acquiring and manage information from various resources in proposing alternative solutions. (P3,CTPS1, CTPS2, CTPS3, PLO7) | U12: Solve the real work problems and practice the technical knowledge in solving them, as well as acquiring and manage information from various resources in proposing alternative solutions. (P3,CTPS1, CTPS2, CTPS3, PLO7) | AK12: 11
C13: CLO3 | D13: Communicate clearly and effectively in verbal or written form with all members in the organisation. (P4, CS1, CS2, CS3, CS4, PLO5)
AK14: 12
B15: 8 | C15: Mapping of the Course Learning Outcomes to the Programme Learning Outcomes, Teaching Methods and Assessment:
C16: Course Learning Outcomes (CLO) | D16: Programme Learning Outcomes (PLO) | P16: Teaching Methods | S16: Assessment
D17: PLO1 | E17: PLO2 | F17: PLO3 | G17: PLO4 | H17: PLO5 | I17: PLO6 | J17: PLO7 | K17: PLO8 | L17: PLO9 | M17: PLO10 | N17: PLO11 | O17: PLO12
C18: CLO1 | E18: √ | P18: Self-directed Learning | S18: Logbook | Practical | Evaluation Form | U18: =S18 -> Logbook | Practical | Evaluation Form
C19: CLO2 | J19: √ | P19: Self-directed Learning | S19: Logbook | Practical | Evaluation Form
C20: CLO3 | H20: √ | P20: Self-directed Learning | S20: Logbook | Practical | Evaluation Form
C22: (The description must be read together with standards 2.1.2, 2.2.1 and 2.2.2 in Area 2 - pages 16 & 18)
B23: 9 | C23: Transferable skills (if applicable) | G23: 1 | H23: Technical Skill, Practical, Psychomotor
C24: (Skills learned in the course of study which can be useful and utilised in other settings) | G24: 2 | H24: Critical Thinking, Problem Solving, Thinking Skill and Scientific Approach
G25: 3 | H25: Communication Skill and Team Working
B26: 10 | C26: Distribution of Students Learning Time (SLT)
C27: Course Content Outline | G27: CLO | I27: Teaching and Learning Activities | T27: SLT
I28: Guided learning (F2F) | Q28: Guided Learning (NF2F) eg: e-learning | S28: Independent learning (NF2F)
I29: L | K29: T | M29: P | O29: O
C30: Self Directed Learning ( Refer Evaluation Details) | G30: CLO1, CLO2, CLO3 | M30: 0 | O30: 156 | T30: =SUM(I30:S30) -> 156
O31: 0 | T31: 0 | U31: =C31 -> 
T32: 0
C33: Total | T33: =SUM(T30:T32) -> 156 | U33: Total
C35: Continuous Assessment | L35: Percentage (%) | N35: F2F | Q35: NF2F | T35: SLT
C36: 1 | D36: Student's Overall Performance | L36: 60 | Q36: 2 | T36: =SUM(N36:S36) -> 2
C37: 2 | D37: Industrial Training Report | L37: 30 | Q37: 1 | T37: 1 | U37: =D37 -> Industrial Training Report
C38: 3 | D38: Log Book | L38: 10 | Q38: 1 | T38: 1 | U38: Log Book
T39: 0
C40: Total | T40: =SUM(T36:T39) -> 4
C42: Final Assessment | L42: Percentage (%) | N42: F2F | Q42: NF2F | T42: SLT
C43: 1 | T43: =SUM(N43:S43) -> 0
T44: 0 | U44: =D44 -> 
T45: =SUM(T43:T44) -> 0
C47: **Please tick (ü) in this course is Latihan Industri / Clinical Placement / Practicum / WBL using 2 weeks; 1 credit formula | Q47: √ | T47: =+T33+T40+T45 -> 160
C48: L= Lecture, T=Tutorial, P=Practical, O=Others, F2F=Face to Face, NF2F=None Face to Face
C49: *Indicate the CLO based on the CLO's numbering in item 8
B50: 11 | C50: Identify special requirement to deliver the course (e.g: software, nursery, computer lab, simulation room, etc) | H50: None
U51: =H51 -> 
B52: 12 | C52: References:
C53: (include required and further readings, and should be the most current) | U53: =H53 -> 
B54: 13 | C54: Other additional Information | H54: Evaluation Details: a. Log Book Log Book is used by students to write the training details and can serve as a daily record for tasks performed during the training. It is a responsībility of the student to record all notes in the log book and and to keep its content always updated. Each note bas to be verified by the supervisor frequently. The Log book should contain objectives for each daily activities, list of tools used, process flow diagrams, flow charts, sketches, data and related circuit diagrams, resuls and outcomes of the activities, constructive comments, analysis and references to text books, standards and other technical information. b. Industrial Supervisor Report This aspect is assessed by the supervisor at the external organisation by filling a form provided in the Log Book. The marking scheme is according the category listed in the form. Apart from this method, the evaluation is also made by the visiting lecturer. The evaluation by the lecturer is based on discussion with the supervisor, the student and other personnel such as the manager and the director of the industry. c. Communication, Ethics and Professionalism This aspect is assessed through seminar presentation by the students, as well as obedience to all procedures and directions by the coordinators during the application process, the acceptance for industrial training placement and the students' adaptation to the working environment at the training place. Last updated : 16th May 2019 | U54: Evaluation Details: a. Log Book Log Book is used by students to write the training details and can serve as a daily record for tasks performed during the training. It is a responsībility of the student to record all notes in the log book and and to keep its content always updated. Each note bas to be verified by the supervisor frequently. The Log book should contain objectives for each daily activities, list of tools used, process flow diagrams, flow charts, sketches, data and related circuit diagrams, resuls and outcomes of the activities, constructive comments, analysis and references to text books, standards and other technical information. b. Industrial Supervisor Report This aspect is assessed by the supervisor at the external organisation by filling a form provided in the Log Book. The marking scheme is according the category listed in the form. Apart from this method, the evaluation is also made by the visiting lecturer. The evaluation by the lecturer is based on discussion with the supervisor, the student and other personnel such as the manager and the director of the industry. c. Communication, Ethics and Professionalism This aspect is assessed through seminar presentation by the students, as well as obedience to all procedures and directions by the coordinators during the application process, the acceptance for industrial training placement and the students' adaptation to the working environment at the training place. Last updated : 16th May 2019

Sheet DPP 2343 SKI
B2: 1 | C2: Name of Course | D2: Islamic Financial System
C3: Course Code | D3: DPP 2343
B4: 2 | C4: Synopsis | D4: This course covers economic and financial systems, market, function and Islamic economic and financial system structure, riba’, comparison between interest and riba’, classifications of riba’, concept of riba in bay’ contract and qard, justification for the existence of riba’, history of riba’, riba’ in the Quran and Sunnah, analysis of the forbiddance of riba’, controversial issues regarding riba’, Islamic banking ,Islamic financial instruments, Islamic equity market, equity and loan financing, Islamic financial institutions such as Tabung Haji, Bank Islam, Interest-free Banking System, Takaful and Al-Rahn Scheme.
B5: 3 | C5: Name (s) of Academic Staff | D5: Manzur El Hassan bin Abdul Aziz
B6: 4 | C6: Semester | D6: Semester | E6: 3 | F6: Year | G6: 2
B7: 5 | C7: Credit Value | D7: 3
B8: 6 | C8: Pre-requisite / Co-requisite (if any)
B9: 7 | C9: Course Learning Outcomes (CLO): At the end of the course the students will be able to:
C10: (example) - explain the basic principles of immunisation (C2, PLO1)
C11: CLO1 | D11: Identify basic components and functions of Islamic financial system within a conventional system. (C1, PLO1)
C12: CLO2 | D12: Explain terms and concepts, the importance and advantages of Islamic financial system. (C2, PLO1)
C13: CLO3 | D13: Explain Islamic and conventional financial system instruments..Identify the roles and differences between Islamic financial institutions. (C2, PLO6)
B15: 8 | C15: Mapping of the Course Learning Outcomes to the Programme Learning Outcomes, Teaching Methods and Assessment:
C16: Course Learning Outcomes (CLO) | D16: Programme Learning Outcomes (PLO) | P16: Teaching Methods | S16: Assessment
D17: PLO1 | E17: PLO2 | F17: PLO3 | G17: PLO4 | H17: PLO5 | I17: PLO6 | J17: PLO7 | K17: PLO8 | L17: PLO9 | M17: PLO10 | N17: PLO11 | O17: PLO12
C18: CLO1 | D18: √ | P18: Lecture | Discussion | S18: Quiz | Test | Final Examination
C19: CLO2 | D19: √ | P19: Lecture | Discussion | S19: Quiz | Test | Final Examinationt
C20: CLO3 | H20: √ | P20: Discussion | Presentation | S20: Presentation | Final Examination
C21: CLO4 | P21: Discussion | Presentation | S21: Assignment | Final Examination
C22: (The description must be read together with standards 2.1.2, 2.2.1 and 2.2.2 in Area 2 - pages 16 & 18)
B23: 9 | C23: Transferable skills (if applicable) | G23: 1 | H23: Knowledge and Understanding
C24: (Skills learned in the course of study which can be useful and utilised in other settings) | G24: 2 | H24: Communication Skills
G25: 3
B26: 10 | C26: Distribution of Students Learning Time (SLT)
C27: Course Content Outline | G27: CLO | I27: Teaching and Learning Activities | T27: SLT
I28: Guided learning (F2F) | Q28: Guided Learning (NF2F) eg: e-learning | S28: Independent learning (NF2F)
I29: L | K29: T | M29: P | O29: O
C30: 1.0 Concepts of Islamic Financial System 1.1 Islamic Economic System 1.2 Islamic Financial System 1.3 Prohibited Elements in Muamalat | G30: CLO 2 | I30: 2 | K30: 2 | M30: 0 | S30: 4 | T30: 8
C31: 2.0 Concepts and System of Riba’ 2.1 Definition of Riba 2.2 Ribawi Item and Illah 2.3 Classification of Riba’ 2.4 Concept of Riba’ in Bay’ and Qard Contracts 2.5 Riba in Conventional Bank | G31: CLO 1 | I31: 2 | K31: 2 | O31: 0 | S31: 4 | T31: 8
C32: 3.0 Islamic Financial System 3.1 Islamic Banking 3.2 Consept and Theory of Islamic Banking 3.3 Model of Islamic Banking | G32: CLO 3 | I32: 4 | K32: 4 | S32: 8 | T32: 16
C33: 4.0 Syariah Principles in Islamic Financial Financing I 4.1 Sale-Based Contracts | G33: CLO 1 | I33: 4 | K33: 4 | S33: 8 | T33: 16
C34: 5.0 Syariah Principles in Islamic Financial Financing II 5.1 Loan Financing | G34: CLO 3 | I34: 2 | K34: 2 | S34: 4 | T34: 8
C35: 6.0 Syariah Principles in Islamic Financial Financing III 6.1 Equity-Based Contracts | G35: CLO 2 | I35: 2 | K35: 2 | S35: 4 | T35: 8
C36: 7.0 Islamic Bank Products 7.1 Financial Instruments 7.2 Equity Market | G36: CLO 2 | I36: 2 | K36: 2 | S36: 4 | T36: 8
C37: 8.0 Non Islamic Bank Products 8.1 Financial Instruments 8.2 Equity Market | G37: CLO 2 | I37: 2 | K37: 2 | S37: 4 | T37: 8
C38: 9.0 Islamic Institutions 9.1 Tabung Haji 9.2 Bank Islam 9.3 Baitul Mal 9.4 al-Rahn Scheme | G38: CLO 2 | I38: 2 | K38: 2 | M38: 2 | S38: 4 | T38: 10
C39: 10.0 Takaful 10.1 Introduction 10.2 Definition of Insurance and Takaful 10.3 Types of Takaful converage 10.4 Opinions of scholars regarding Takaful Insurance and Re-Insurance | G39: CLO 2 | I39: 2 | K39: 2 | M39: 2 | S39: 4 | T39: 10
C40: Total | T40: 100
C42: Continuous Assessment | L42: Percentage (%) | N42: F2F | Q42: NF2F | T42: SLT
C43: 1 | D43: Assignment 1 | L43: 10 | N43: 1 | Q43: 3 | T43: 4
C44: 2 | D44: Assignment 2 | L44: 10 | N44: 1 | Q44: 2 | T44: 3
C45: 3 | D45: Test 1 | L45: 10 | N45: 1 | Q45: 2 | T45: 3
C46: 4 | D46: Test 2 | L46: 10 | N46: 1 | Q46: 2 | T46: 3
C47: 5 | T47: 0
C48: Total | T48: 13
C50: Final Assessment | L50: Percentage (%) | N50: F2F | Q50: NF2F | T50: SLT
C51: 1 | D51: Final Examination | L51: 60 | N51: 2.5 | Q51: 4.5 | T51: 7
C52: 2 | T52: 0
C53: 3 | T53: 0
C54: 4 | T54: 0
C55: 5 | T55: 0
T56: 7
C58: **Please tick (ü) in this course is Latihan Industri / Clinical Placement / Practicum / WBL using 2 weeks; 1 credit formula | T58: 120
C59: L= Lecture, T=Tutorial, P=Practical, O=Others, F2F=Face to Face, NF2F=None Face to Face
C60: *Indicate the CLO based on the CLO's numbering in item 8
B61: 11 | C61: Identify special requirement to deliver the course (e.g: software, nursery, computer lab, simulation room, etc) | H61: None
B63: 12 | C63: References: | H63: Isra, Islamic Financial System: Principles and Operations. 2nd Edition, Isra, 2018.
C64: (include required and further readings, and should be the most current) | H64: Dr. Mukmin Abd. Ghani (1999), ‘ Sistem Kewangan Islam dan Aplikasi di Malaysia’ . Kuala Lumpur: Jabatan Kemajuan Islam Malaysia. Mohd Fadzli Yusof (1996), ‘Takaful Sistem Insurans Islam’. Kuala Lumpur: Utusan Publications & Distributors Sdn. Bhd. Mohd Ma’sum Billah (2003), Islamic Insurance [Takaful]’.Selangor: Ilmiah Publishers Sdn. Bhd. Nor Muhamad Yacop (1995), ‘Pengenalan Kepada Sistem Kewangan Islam’. Kuala Lumpur: Utusan Publications & Distributors Sdn. Bhd. Dr. Sobri Salamon (1989), ‘Ekonomi Islam: Pengenalan Sistem dan Kemungkinan’. Selangor: Al-Rahmaniah.
B65: 13 | C65: Other additional Information | H65: Last updated : 16 April 2018

Sheet DPP 2153 TECH MGT
B2: 1 | C2: Name of Course | D2: Technology Management | AK2: 1 | AL2: 1
C3: Course Code | D3: DPP 2153 | AJ3: √ | AK3: 2 | AL3: 2
B4: 2 | C4: Synopsis | D4: This course is designed to introduce students to the basic theories of technology usage in business. The impact and types of technology life cycle, product development and innovation in technology in order to solve business problems. | U4: This course is designed to introduce students to the basic theories of technology usage in business. The impact and types of technology life cycle, product development and innovation in technology in order to solve business problems. | AK4: 3 | AL4: 3
B5: 3 | C5: Name (s) of Academic Staff | D5: Nur Asyura Binti Muhamad | AK5: 4 | AL5: 4
B6: 4 | C6: Semester | D6: Semester | E6: 3 | F6: Year | G6: 2 | AK6: 5
B7: 5 | C7: Credit Value | D7: 3 | AK7: 6
B8: 6 | C8: Pre-requisite / Co-requisite (if any) | AK8: 7
B9: 7 | C9: Course Learning Outcomes (CLO): At the end of the course the students will be able to: | AK9: 8
C10: (example) - explain the basic principles of immunisation (C2, PLO1) | AK10: 9
C11: CLO1 | D11: Apply technology and its importance, the source and types of innovation, and strategy for new product development process. (C3,PLO1) | U11: Understand the meaning of technology and its importance (C2,PLO1) | AK11: 10
C12: CLO2 | D12: Prepare a report on how technology is helping to improve today's business.(C3, CTPS2, PLO2) | U12: Understand and explain on the affects of technology towards business (C4, PLO4) | AK12: 11
C13: CLO3 | D13: Work collaboratively in groups and assigned task within a given time frame. (A3, TS3, PLO4)
C14: CLO4 | AK14: 12
B15: 8 | C15: Mapping of the Course Learning Outcomes to the Programme Learning Outcomes, Teaching Methods and Assessment:
C16: Course Learning Outcomes (CLO) | D16: Programme Learning Outcomes (PLO) | P16: Teaching Methods | S16: Assessment
D17: PLO1 | E17: PLO2 | F17: PLO3 | G17: PLO4 | H17: PLO5 | I17: PLO6 | J17: PLO7 | K17: PLO8 | L17: PLO9 | M17: PLO10 | N17: PLO11 | O17: PLO12
C18: CLO1 | D18: √ | P18: Lecture | Discussion | S18: Quiz | Test | Final Examination | U18: Test | Final Examination
C19: CLO2 | E19: √ | P19: Lecture | Discussion | Presentation | S19: Assigment
C20: CLO3 | G20: √ | P20: Lecture | Discussion | Presentation | S20: Assigment
C21: CLO4
C22: (The description must be read together with standards 2.1.2, 2.2.1 and 2.2.2 in Area 2 - pages 16 & 18)
B23: 9 | C23: Transferable skills (if applicable) | G23: 1 | H23: knowledge and understanding
C24: (Skills learned in the course of study which can be useful and utilised in other settings) | G24: 2 | H24: Interpersonal skill
G25: 3 | H25: Problem Solving and Information Technology
B26: 10 | C26: Distribution of Students Learning Time (SLT)
C27: Course Content Outline | G27: CLO | I27: Teaching and Learning Activities | T27: SLT
I28: Guided learning (F2F) | Q28: Guided Learning (NF2F) eg: e-learning | S28: Independent learning (NF2F)
I29: L | K29: T | M29: P | O29: O
C30: 1.0 Introduction to technology management 1.1 Definition of technology 1.2 Technology management 1.3 Technolgy prediction 1.4 Evolutions of technolgy 1.5 Component of technology 1.6 The importance of technolgy innovation 1.7 The impact of technology iinovation 1.8 Innovation by industry | G30: CLO1 | I30: 2 | K30: 2 | S30: 2 | T30: 6
C31: 2.0 Sources of innovation 2.1 Creativity 2.2 Translating creativity into innovation 2.3 Innovation in collaborative network | G31: CLO1 CLO2 CLO3 | I31: 2 | K31: 2 | S31: 6 | T31: 8 | U31: 2.0 Business and Its Environment a) Business Environment: Competition, Economic, Political and Judicial System, Social and Technology b) Business and Globalization
C32: 3.0 Types and patterns of Innovation 3.1 Types of innovation 3.2 Technology S-curve 3.3 Technology cycles | G32: CLO1 CLO2 CLO3 | I32: 2 | K32: 2 | S32: 6 | T32: 12 | U32: 3.0 Innovation and Invention a) Discovery, Innovation and Invention b) Types of Innovation c) Evaluate Companies Innovative Potential
C33: 4.0 Timing of entry 4.1 First mover advantages 4.2 First mover disadvanatges 4.3 Factors influencing optimal timing of entry | G33: CLO 1 CLO 2 CLO 3 | I33: 2 | K33: 2 | S33: 6 | T33: 10 | U33: 4.0 Technology a) Technology Management b) Technology Monitoring
C34: 5.0 Defining the organization's strategic direction 5.1 Assessing the firm's current position 5.2 Identifying core competencies and capabilities 5.3 Strategic intent | G34: CLO 1 CLO 3 | I34: 2 | K34: 2 | S34: 4 | T34: 8 | U34: 5.0 Technology Development Methods a) Technology Development Stage b) Internal and External Development c) Research and Development
C35: 6.0 Choosing innovation project 6.1 The development budget 6.2 Quantitative methods for choosing projects 6.3 Qualitative methods for choosing projects 6.4 Combining quantitative and qualitative information | G35: CLO 1 | I35: 2 | K35: 2 | S35: 4 | T35: 8 | U35: 6.0 Technology and Development a) Training and Skill Development b) Human Resource Development
C36: 7.0 Collaboration strategies 7.1 Reasons for going solo 7.2 Advantages of collaborating 7.3 Types of collaborative arrangements 7.4 Choosing mode of collaboration 7.5 Choosing anf monitoring partners | G36: CLO 1 | I36: 2 | K36: 2 | S36: 4 | T36: 8 | U36: 7.0 Technology and Organization Management a) Technology in Organizations b) Levels of Technology in Organizations
C37: 8.0 Protecting innovation 8.1 Patents, trademark and copyright 8.2 Trade secrets 8.3 The effectiveness and use of protection mechanism 8.4 Advantages of protection | G37: CLO 1 CLO 2 | I37: 2 | K37: 2 | S37: 4 | T37: 8
C38: 9.0 Organizing for innovation 9.1 Size and structural dimensions of the firm 9.2 Structural dimensions of the firm 9.3 Modularity and loosely coupled organizations 9.4 Managing innovation accross borders | G38: CLO 1 | I38: 2 | K38: 2 | S38: 4 | T38: 8
C39: 10.0 Managing the new product development process 10.1 Objectives of the new product development process 10.2 Sequential versus partly parallel development processes 10.3 Project champions 10.4 Involving customers and suppliers in the development process 10.5 Tools for improving the new product development process | G39: CLO 1 CLO 3 | I39: 2 | K39: 2 | S39: 4 | T39: 8
C40: 11.0 Managing new product development teams 11.1 Constructing new product development teams 11.2 The structure of new product development teams 11.3 The management of new product development teams | G40: CLO 1 | I40: 2 | K40: 2 | S40: 4 | T40: 8
C41: 12.0 Crafting a deployment strategy 12.1 Launch timing 12.2 Lisencing and compatibility 12.3 Pricing 12.4 Distribution 12.5 Marketing | G41: CLO 1 | I41: 2 | K41: 2 | S41: 4 | T41: 8
C42: Total | T42: 100 | U42: Total
C44: Continuous Assessment | L44: Percentage (%) | N44: F2F | Q44: NF2F | T44: SLT
C45: 1 | D45: Assignment | L45: 20 | N45: 2 | Q45: 3 | T45: 5
C46: 2 | D46: Test 1 | L46: 10 | N46: 1 | Q46: 1.5 | T46: =SUM(N46:S46) -> 2.5 | U46: Presentation
C47: 3 | D47: Test 2 | L47: 10 | N47: 1 | Q47: 1.5 | T47: 2.5 | U47: Test 1
C48: 4 | D48: Quiz | L48: 10 | N48: 1 | Q48: 1 | T48: 2 | U48: Test 2
C50: Total | T50: 12
C52: Final Assessment | L52: Percentage (%) | N52: F2F | Q52: NF2F | T52: SLT
C53: 1 | D53: Final Examination | L53: 50 | N53: 2.5 | Q53: 5.5 | T53: 8
C54: 2
C55: 3
C56: 4
C57: 5
T58: 8
C60: **Please tick (ü) in this course is Latihan Industri / Clinical Placement / Practicum / WBL using 2 weeks; 1 credit formula | T60: 120
C61: L= Lecture, T=Tutorial, P=Practical, O=Others, F2F=Face to Face, NF2F=None Face to Face
C62: *Indicate the CLO based on the CLO's numbering in item 8
B63: 11 | C63: Identify special requirement to deliver the course (e.g: software, nursery, computer lab, simulation room, etc) | H63: None
B65: 12 | C65: References: | H65: Schilling, Melissa A.(2017). Strategik Management of Technological Innovation. Ftith edition, Mc Graw Hill Education.
C66: (include required and further readings, and should be the most current) | H66: Dilek Cetindamar, Robert Phaal & David Probert. (2017). Technology management: Activities and tools. Palgrave Macmillan. | U66: Dorf, Richard C.Byers, Thomas H.(2008). Technology Venture From Idea to Enterprise, Mc Graw Hill Education. 2. Mohd Nain, Ahmad Syukri and Md. Rasli, Amran (2005). Pengurusan Teknologi, Universiti Teknologi Malysia.
H67: Dorf, Richard C.Byers, Thomas H.(2008). Technology Venture From Idea to Enterprise, Mc Graw Hill Education. 2. Mohd Nain, Ahmad Syukri and Md. Rasli, Amran (2005). Pengurusan Teknologi, Universiti Teknologi Malysia.
B68: 13 | C68: Other additional Information | H68: Last updated : 24 November 2019

Sheet DPP 1123 intro biz
B2: Back | C2: Name of Course | D2: Introduction to Business | AK2: 1 | AL2: 1
C3: Course Code | D3: DPP 1123 | AJ3: √ | AK3: 2 | AL3: 2
B4: 2 | C4: Synopsis | D4: This course describe about business atmosphere, economics and business system plus the business acts in Malaysia. Students will learn how to start, plan and organize a business. Besides, students will get more knowledge on business capital, sources of financing and so on. | U4: =D4 -> This course describe about business atmosphere, economics and business system plus the business acts in Malaysia. Students will learn how to start, plan and organize a business. Besides, students will get more knowledge on business capital, sources of financing and so on. | AK4: 3 | AL4: 3
B5: 3 | C5: Name (s) of Academic Staff | D5: Wan Nur Liyana Binti Wan Mohd Fauzi | AK5: 4 | AL5: 4
B6: 4 | C6: Semester | D6: Semester | E6: 1 | F6: Year | G6: 1 | AK6: 5
B7: 5 | C7: Credit Value | D7: =IF(T59=40,1,(IF(T59=80,2,(IF(T59=120,3,(IF(T59=160,4,IF(T59=200,5,IF(T59=240,6,""))))))))) -> 3 | AK7: 6
B8: 6 | C8: Pre-requisite / Co-requisite (if any) | AK8: 7
B9: 7 | C9: Course Learning Outcomes (CLO): At the end of the course the students will be able to: | AK9: 8
C10: (example) - explain the basic principles of immunisation (C2, PLO1) | AK10: 9
C11: CLO1 | D11: Apply business process and business entities. (C3, PLO1) | U11: =D11 -> Apply business process and business entities. (C3, PLO1) | AK11: 10
C12: CLO2 | D12: Create a business plan using business plan standard. (P3, PLO3) | U12: Create a business plan using business plan standard. (P3, PLO3) | AK12: 11
C13: CLO3 | D13: Work collaboratively in groups and assigned task within a given time frame. (A3, TS3, PLO4)
AK14: 12
B15: 8 | C15: Mapping of the Course Learning Outcomes to the Programme Learning Outcomes, Teaching Methods and Assessment:
C16: Course Learning Outcomes (CLO) | D16: Programme Learning Outcomes (PLO) | P16: Teaching Methods | S16: Assessment
D17: PLO1 | E17: PLO2 | F17: PLO3 | G17: PLO4 | H17: PLO5 | I17: PLO6 | J17: PLO7 | K17: PLO8 | L17: PLO9 | M17: PLO10 | N17: PLO11 | O17: PLO12
C18: CLO1 | D18: √ | P18: Lecture | Discussion | S18: Test | Final |Quiz | U18: =S18 -> Test | Final |Quiz
C19: CLO2 | F19: √ | P19: Lecture | Discussion | Presentation | S19: Assignment
C20: CLO3 | G20: √ | P20: Lecture | Discussion | Presentation | S20: Assignment
C22: (The description must be read together with standards 2.1.2, 2.2.1 and 2.2.2 in Area 2 - pages 16 & 18)
B23: 9 | C23: Transferable skills (if applicable) | G23: 1 | H23: Knowledge and understanding
C24: (Skills learned in the course of study which can be useful and utilised in other settings) | G24: 2 | H24: Practical skills
G25: 3 | H25: Interpersonal Skills
B26: 10 | C26: Distribution of Students Learning Time (SLT)
C27: Course Content Outline | G27: CLO | I27: Teaching and Learning Activities | T27: SLT
I28: Guided learning (F2F) | Q28: Guided Learning (NF2F) eg: e-learning | S28: Independent learning (NF2F)
I29: L | K29: T | M29: P | O29: O
C30: 1.0 Business System in Malaysia 1.1 Introduction 1.2 Business definitions 1.3 Business and Profit 1.4 Non-Business Organization 1.5 Business and Society 1.6 Economic systems | G30: CLO 1 | I30: 2 | K30: 2 | S30: 2 | T30: =SUM(I30:S30) -> 6
C31: 2.0 Direction and Challenge - Environment 2.1 Business and government 2.2 Business and worker 2.3 Business and users 2.4 Challenges ahead | G31: CLO 1 | I31: 2 | K31: 2 | S31: 2 | T31: 8
C32: 3.0 Business Entitiy: Sole Proprietorships 3.1 The characteristics of the sole proprietor business 3.2 The advantages and disadvantages of a single proprietary | G32: CLO 1 | I32: 2 | K32: 2 | S32: 2 | T32: =SUM(I32:S32) -> 6 | U32: =C32 -> 3.0 Business Entitiy: Sole Proprietorships 3.1 The characteristics of the sole proprietor business 3.2 The advantages and disadvantages of a single proprietary
C33: 3.0 Business Entity: Partnership 3.1 The characteristics of the partnership business 3.2 The advantages and disadvantages of partnership 3.3 How to establish partnership business | G33: CLO 2 | I33: 4 | K33: 8 | S33: 4 | T33: 16 | U33: 3.0 Business Entity: Partnership 3.1 The characteristics of the partnership business 3.2 The advantages and disadvantages of partnership 3.3 How to establish partnership business
C34: 4.0 Business Entitiy: Partnership 4.1 The characteristics of the partnership 4.2 The advantages and disadvantages of partnership | G34: CLO 1 | I34: 2 | K34: 2 | S34: 2 | T34: 8
C35: 5.0 Business Entity: Company 5.1 The company's business characteristics 5.2 The types of companies 5.3 The advantages and disadvantages of the company | G35: CLO 1 | I35: 2 | K35: 2 | S35: 2 | T35: =SUM(I35:S35) -> 6 | U35: =C35 -> 5.0 Business Entity: Company 5.1 The company's business characteristics 5.2 The types of companies 5.3 The advantages and disadvantages of the company
C36: 6.0 Managing a business 6.1 Management process 6.2 Functions of management 6.3 Category of manager 6.4 Decision making tools | G36: CLO 1 CLO 2 | I36: 2 | K36: 2 | S36: 2 | T36: 6 | U36: 6.0 Managing a business 6.1 Management process 6.2 Functions of management 6.3 Category of manager 6.4 Decision making tools
C37: 7.0 Small Business and Entrepreneurship 7.1 Entrepreneurship 7.2 Entrepreneurship theory 7.3 Searching for business ideas 7.4 Business starting strategy 7.5 Capital sources 7.6 Business planning | G37: CLO 1 CLO 2 | I37: 4 | K37: 2 | S37: 6 | T37: 12 | U37: 7.0 Small Business and Entrepreneurship 7.1 Entrepreneurship 7.2 Entrepreneurship theory 7.3 Searching for business ideas 7.4 Business starting strategy 7.5 Capital sources 7.6 Business planning
C38: 8.0 Intellectual Property 8.1 Trademark 8.2 Patent 8.3 Copyright | G38: CLO 1 CLO 3 | I38: 4 | K38: 2 | S38: 4 | T38: 10 | U38: 8.0 Intellectual Property 8.1 Trademark 8.2 Patent 8.3 Copyright
C39: 9.0 Business Crime 9.1 Definition of business crime 9.2 Types of business crime 9.3 The impact of business crime | G39: CLO 1 CLO 3 | I39: 2 | K39: 2 | S39: 4 | T39: 8
C40: 10.0 Risk Management 10.1 Types of risk 10.2 Transfer of risk 10.3 Insurance company products | G40: CLO 1 | I40: 2 | K40: 2 | S40: 2 | T40: =SUM(I40:S40) -> 6 | U40: =C40 -> 10.0 Risk Management 10.1 Types of risk 10.2 Transfer of risk 10.3 Insurance company products
C41: Total | T41: =SUM(T30:T40) -> 92 | U41: Total
C43: Continuous Assessment | L43: Percentage (%) | N43: F2F | Q43: NF2F | T43: SLT
C44: 1 | D44: Test 1 | L44: 10 | N44: 1.5 | Q44: 2 | T44: =SUM(N44:S44) -> 3.5
C45: 2 | D45: Test 2 | L45: 10 | N45: 1.5 | Q45: 2 | T45: 3.5 | U45: =D45 -> Test 2
C46: 3 | D46: Quiz | L46: 10 | N46: 1 | Q46: 1 | T46: 2 | U46: Quiz
C47: 4 | D47: Assignment | L47: 20 | N47: 1 | Q47: 8 | T47: 9 | U47: Assignment
T48: 0
C49: Total | T49: =SUM(T44:T48) -> 18
C51: Final Assessment | L51: Percentage (%) | N51: F2F | Q51: NF2F | T51: SLT
C52: 1 | D52: Final Examination | L52: 50 | N52: 2.5 | Q52: 7.5 | T52: =SUM(N52:S52) -> 10
T53: 0 | U53: =D53 -> 
T54: 0
T55: 0
T56: 0
T57: =SUM(T52:T56) -> 10 | U57: =D57 -> 
C59: **Please tick (ü) in this course is Latihan Industri / Clinical Placement / Practicum / WBL using 2 weeks; 1 credit formula | T59: =+T41+T49+T57 -> 120
C60: L= Lecture, T=Tutorial, P=Practical, O=Others, F2F=Face to Face, NF2F=None Face to Face
C61: *Indicate the CLO based on the CLO's numbering in item 8
B62: 11 | C62: Identify special requirement to deliver the course (e.g: software, nursery, computer lab, simulation room, etc) | H62: None
U63: =H63 -> 
B64: 12 | C64: References: | H64: 1. Zafir Mohd Makhbul & Fazilah Mohamad Hasun (2017). Pengurusan perniagaan. UKM Press. 2. Ronald J.Ebert (2016), Business Essential, 11th Edn. New Jersey, Pearson Prentice Hall. 3. Sabri Hj. Hussin. (2001). Pengenalan kepada perniagaan: Mengurus perniagaan dalam perspektif Malaysia. Thomson Learning. 4. Sofian Ibrahim (2002) Pengenalan Perniagaan, Modul UTM
C65: (include required and further readings, and should be the most current) | U65: =H65 -> 
B66: 13 | C66: Other additional Information | H66: Last updated : 24 November 2019 | U66: Last updated : 24 November 2019

Sheet DPP1713 micro
B2: Back | C2: Name of Course | D2: Microeconomics | AK2: 1 | AL2: 1
C3: Course Code | D3: DPP 1713 | AJ3: √ | AK3: 2 | AL3: 2
B4: 2 | C4: Synopsis | D4: This course is designed to expose students with basic concept of economics. This 3 –credit subject will consist of both theories and concepts in microeconomis | U4: =D4 -> This course is designed to expose students with basic concept of economics. This 3 –credit subject will consist of both theories and concepts in microeconomis | AK4: 3 | AL4: 3
B5: 3 | C5: Name (s) of Academic Staff | D5: Juliana Ismail | AK5: 4 | AL5: 4
B6: 4 | C6: Semester | D6: Semester | E6: 1 | F6: Year | G6: 1 | AK6: 5
B7: 5 | C7: Credit Value | D7: =IF(T54=40,1,(IF(T54=80,2,(IF(T54=120,3,(IF(T54=160,4,IF(T54=200,5,IF(T54=240,6,""))))))))) -> 3 | AK7: 6
B8: 6 | C8: Pre-requisite / Co-requisite (if any) | AK8: 7
B9: 7 | C9: Course Learning Outcomes (CLO): At the end of the course the students will be able to: | AK9: 8
C10: (example) - explain the basic principles of immunisation (C2, PLO1) | AK10: 9
C11: CLO1 | D11: Apply the basic concept of economics theories in economics problems (C3, PLO1) | U11: =D11 -> Apply the basic concept of economics theories in economics problems (C3, PLO1) | AK11: 10
C12: CLO2 | D12: Sketch a budget line, indifference curve, isocost, isoquant, in consumer and producer equilibrium. (C3, CTPS3, PLO2) | U12: Sketch a budget line, indifference curve, isocost, isoquant, in consumer and producer equilibrium. (C3, CTPS3, PLO2) | AK12: 11
C13: CLO3 | D13: Prepare the demand, supply, elasticity and cost of production (C3, CTPS3, PLO7)
B14: 8 | C14: Mapping of the Course Learning Outcomes to the Programme Learning Outcomes, Teaching Methods and Assessment:
C15: Course Learning Outcomes (CLO) | D15: Programme Learning Outcomes (PLO) | P15: Teaching Methods | S15: Assessment
D16: PLO1 | E16: PLO2 | F16: PLO3 | G16: PLO4 | H16: PLO5 | I16: PLO6 | J16: PLO7 | K16: PLO8 | L16: PLO9 | M16: PLO10 | N16: PLO11 | O16: PLO12
C17: CLO1 | D17: √ | P17: Lecture | Discussion | S17: Assignment | Test | Final Examination | U17: =S17 -> Assignment | Test | Final Examination
C18: CLO2 | E18: √ | P18: Lecture | Discussion | S18: Assignment | Test | Final Examination
C19: CLO3 | J19: √ | P19: Lecture | Discussion | S19: Assignment | Test | Final Examination
C20: (The description must be read together with standards 2.1.2, 2.2.1 and 2.2.2 in Area 2 - pages 16 & 18)
B21: 9 | C21: Transferable skills (if applicable) | G21: 1 | H21: Knowledge and understanding
C22: (Skills learned in the course of study which can be useful and utilised in other settings) | G22: 2 | H22: Problem Solving and critical thinking
G23: 3 | H23: Numerical skill
B24: 10 | C24: Distribution of Students Learning Time (SLT)
C25: Course Content Outline | G25: CLO | I25: Teaching and Learning Activities | T25: SLT
I26: Guided learning (F2F) | Q26: Guided Learning (NF2F) eg: e-learning | S26: Independent learning (NF2F)
I27: L | K27: T | M27: P | O27: O
C28: 1.0 Introduction to economics analysis (aim of economic analysis,assumptions,hypotheses and functional relationship) fundamental economics problem, scarcity, choice and opportunity cost, decision making unit (objectives of households, owner of factors and firms (profit maximazation and alternative objectives) 1.1 Marginal cost and marginal benefit, comparative advantage & basic for trade | G28: CLO 2 | I28: 1 | K28: 3 | M28: 0 | S28: 2 | T28: =SUM(I28:S28) -> 6
C29: 2.0 Law of demand, factors that influence demand, changes in demand 2.1 Law of supply factors that influences demand, changes in supply. Market and market equilibrium 2.2 The effect of changes in demand and supply | G29: CLO 1 | I29: 1 | K29: 2 | O29: 0 | S29: 2 | T29: 5 | U29: =C29 -> 2.0 Law of demand, factors that influence demand, changes in demand 2.1 Law of supply factors that influences demand, changes in supply. Market and market equilibrium 2.2 The effect of changes in demand and supply
C30: 3.0 Price elasticity of demand and supply 3.1 Total revenue and elasticity of demand 3.2 Cross elasticity and income elasticity 3.3 Short run and long run elasticity | G30: CLO 3 | I30: 1 | K30: 6 | S30: 4 | T30: 11 | U30: 3.0 Price elasticity of demand and supply 3.1 Total revenue and elasticity of demand 3.2 Cross elasticity and income elasticity 3.3 Short run and long run elasticity
C31: 4.0 Consumers behavior,marginal utility theory, the budget line , indifferences curve, marginal rate of substitution, substitution and complimentary goods | G31: CLO 1 | I31: 1.5 | K31: 6 | S31: 4 | T31: 11.5 | U31: 4.0 Consumers behavior,marginal utility theory, the budget line , indifferences curve, marginal rate of substitution, substitution and complimentary goods
C32: 5.0 Consumptions theory, substitution and income effects consumptions price line, normal, inferior and giffen goods | G32: CLO 3 | I32: 1 | K32: 4 | S32: 3 | T32: 8 | U32: 5.0 Consumptions theory, substitution and income effects consumptions price line, normal, inferior and giffen goods
C33: 6.0 Productions: Productions with one variables input;marginal and average product 6.1 Productions with two variables input;marginal and average product 6.2 Isoquant and the marginal rate of technical substitution. | G33: CLO 2 | I33: 1.5 | K33: 3 | S33: 3 | T33: 7.5 | U33: 6.0 Productions: Productions with one variables input;marginal and average product 6.1 Productions with two variables input;marginal and average product 6.2 Isoquant and the marginal rate of technical substitution.
C34: 7.0 Cost of productions,types of cost, short run and long run cost of productions 7.1 Optimum combination of factors economics,economies and diseconomies | G34: CLO 2 | I34: 1 | K34: 3 | S34: 4 | T34: 8 | U34: 7.0 Cost of productions,types of cost, short run and long run cost of productions 7.1 Optimum combination of factors economics,economies and diseconomies
C35: 8.0 Perfectly competitive market,objective of the firm,output and price in the short run and long run | G35: CLO 2 | I35: 1 | K35: 4 | S35: 2 | T35: 7 | U35: 8.0 Perfectly competitive market,objective of the firm,output and price in the short run and long run
C36: 9.0 Efficiency and fairness of market,value,price and consumer surplus,cost price and producer surplus 9.1 The analysis of competitive market,evaluating the effect of government policies (government intervention in markets, minimum price, price support, quato | G36: CLO 2 | I36: 1.5 | K36: 3 | S36: 2 | T36: 6.5 | U36: 9.0 Efficiency and fairness of market,value,price and consumer surplus,cost price and producer surplus 9.1 The analysis of competitive market,evaluating the effect of government policies (government intervention in markets, minimum price, price support, quato
C37: 10.0 Market power monopoly, price discrimination, monopoly regulation 10.1 Monopolistic competition,index to identify monopolistic competition,output and price in the short run and the long run,advertising and branding | G37: CLO 2 | I37: 1.5 | K37: 3 | S37: 2 | T37: 6.5 | U37: 10.0 Market power monopoly, price discrimination, monopoly regulation 10.1 Monopolistic competition,index to identify monopolistic competition,output and price in the short run and the long run,advertising and branding
C38: 11.0 Oligopoly, models including the kinked demand curve,collusions and prisoner’s dilemma (Game Theory),Factors market introduction | G38: CLO 2 | I38: 1 | K38: 4 | S38: 2 | T38: 7 | U38: 11.0 Oligopoly, models including the kinked demand curve,collusions and prisoner’s dilemma (Game Theory),Factors market introduction
C39: 12.0 Factors market;Factors price and the labour market (demand and supply) perfect competition and monopoly 12.1 Interest rate,rent and profit | G39: CLO 2 | I39: 1.5 | K39: 6 | S39: 2 | T39: 9.5 | U39: 12.0 Factors market;Factors price and the labour market (demand and supply) perfect competition and monopoly 12.1 Interest rate,rent and profit
C40: 13.0 Externality (negative and positive) and inefficiency 13.1 Private goods,publics goods and common resources; the free rider problem | G40: CLO 2 | I40: 1.5 | K40: 3 | S40: 2 | T40: 6.5 | U40: 13.0 Externality (negative and positive) and inefficiency 13.1 Private goods,publics goods and common resources; the free rider problem
C41: Total | T41: =SUM(T28:T40) -> 100 | U41: Total
C43: Continuous Assessment | L43: Percentage (%) | N43: F2F | Q43: NF2F | T43: SLT
C44: 1 | D44: Assignment | L44: 10 | Q44: 3 | T44: =SUM(N44:S44) -> 3
C45: 2 | D45: Quiz | L45: 10 | Q45: 3 | T45: 3 | U45: =D45 -> Quiz
C46: 3 | D46: Test 1 | L46: 15 | N46: 1.5 | Q46: 2 | T46: 3.5 | U46: Test 1
C47: 4 | D47: Test 2 | L47: 15 | N47: 1.5 | Q47: 2 | T47: 3.5 | U47: Test 2
C48: Total | T48: =SUM(T44:T47) -> 13
C50: Final Assessment | L50: Percentage (%) | N50: F2F | Q50: NF2F | T50: SLT
C51: 1 | D51: Final Examination | L51: 50 | N51: 2.5 | Q51: 4.5 | T51: =SUM(N51:S51) -> 7
T52: =SUM(T51) -> 7 | U52: =D52 -> 
C54: **Please tick (ü) in this course is Latihan Industri / Clinical Placement / Practicum / WBL using 2 weeks; 1 credit formula | T54: =+T41+T48+T52 -> 120
C55: L= Lecture, T=Tutorial, P=Practical, O=Others, F2F=Face to Face, NF2F=None Face to Face
C56: *Indicate the CLO based on the CLO's numbering in item 8
B57: 11 | C57: Identify special requirement to deliver the course (e.g: software, nursery, computer lab, simulation room, etc) | H57: None
U58: =H58 -> 
B59: 12 | C59: References: | H59: 1. Bade, R and M Parkin (2017). Foundation of Economic, 9th Edition, International Edition Boston, Pearson Education.
C60: (include required and further readings, and should be the most current) | H60: 2. William G. (2016). Economics, 2nd Edition, SJ Learning. | U60: =H60 -> 2. William G. (2016). Economics, 2nd Edition, SJ Learning.
B61: 13 | C61: Other additional Information | H61: Last updated : 14 Mei 2019 | U61: Last updated : 14 Mei 2019

Sheet DPP 1313 F.A
B2: Back | C2: Name of Course | D2: Financial Accounting | AK2: 1 | AL2: 1
C3: Course Code | D3: DPP 1313 | AJ3: √ | AK3: 2 | AL3: 2
B4: 2 | C4: Synopsis | D4: This course is the basis of the Financial Accounting course. Students will be exposed with key aspects of the preparation of a single business financial statement. This includes recording of financial transactions using the double-entry system. This course exposes students to accounting principles, accounting techniques and records in the preparation of financial statements. | U4: =D4 -> This course is the basis of the Financial Accounting course. Students will be exposed with key aspects of the preparation of a single business financial statement. This includes recording of financial transactions using the double-entry system. This course exposes students to accounting principles, accounting techniques and records in the preparation of financial statements. | AK4: 3 | AL4: 3
B5: 3 | C5: Name (s) of Academic Staff | D5: Manzur El Hassan | AK5: 4 | AL5: 4
B6: 4 | C6: Semester | D6: Semester | E6: 2 | F6: Year | G6: 1 | AK6: 5
B7: 5 | C7: Credit Value | D7: =IF(T57=40,1,(IF(T57=80,2,(IF(T57=120,3,(IF(T57=160,4,IF(T57=200,5,IF(T57=240,6,""))))))))) -> 3 | AK7: 6
B8: 6 | C8: Pre-requisite / Co-requisite (if any) | D8: None | AK8: 7
B9: 7 | C9: Course Learning Outcomes (CLO): At the end of the course the students will be able to: | AK9: 8
C10: (example) - explain the basic principles of immunisation (C2, PLO1) | AK10: 9
C11: CLO1 | D11: Identify the basic concepts and principles of accounting in the business environment. (C2, PLO1) | U11: =D11 -> Identify the basic concepts and principles of accounting in the business environment. (C2, PLO1) | AK11: 10
C12: CLO2 | D12: Record the principles of accounting using double-entry system. (C3, PLO2) | U12: Record the principles of accounting using double-entry system. (C3, PLO2) | AK12: 11
C13: CLO3 | D13: Apply the basic concepts and principles of accounting in the preparation of the Financial Statements. (C3, PLO3)
AK14: 12
B15: 8 | C15: Mapping of the Course Learning Outcomes to the Programme Learning Outcomes, Teaching Methods and Assessment:
C16: Course Learning Outcomes (CLO) | D16: Programme Learning Outcomes (PLO) | P16: Teaching Methods | S16: Assessment
D17: PLO1 | E17: PLO2 | F17: PLO3 | G17: PLO4 | H17: PLO5 | I17: PLO6 | J17: PLO7 | K17: PLO8 | L17: PLO9 | M17: PLO10 | N17: PLO11 | O17: PLO12
C18: CLO1 | D18: √ | P18: Lecture | Discussion | S18: Assignment | Quiz |Test | Final Examination | U18: =S18 -> Assignment | Quiz |Test | Final Examination
C19: CLO2 | E19: √ | P19: Lecture | Discussion | S19: Assignment | Quiz |Test | Final Examination
C20: CLO3 | F20: √ | P20: Lecture | Discussion | S20: Assignment | Quiz |Test | Final Examination
C22: (The description must be read together with standards 2.1.2, 2.2.1 and 2.2.2 in Area 2 - pages 16 & 18)
B23: 9 | C23: Transferable skills (if applicable) | G23: 1 | H23: Knowledge and Understanding
C24: (Skills learned in the course of study which can be useful and utilised in other settings) | G24: 2 | H24: Cognitive Skills
G25: 3 | H25: Practical Skills
B26: 10 | C26: Distribution of Students Learning Time (SLT)
C27: Course Content Outline | G27: CLO | I27: Teaching and Learning Activities | T27: SLT
I28: Guided learning (F2F) | Q28: Guided Learning (NF2F) eg: e-learning | S28: Independent learning (NF2F)
I29: L | K29: T | M29: P | O29: O
C30: 1.0 Introduction to Accounting 1.1 Introduction to Accounting Concepts and Principles 1.2 Accounting Equation | G30: CLO 1 | I30: 4 | K30: 2 | M30: 0 | S30: 6 | T30: =SUM(I30:S30) -> 12
C31: 2.0 Accounting Cycle and Record Process 2.1 Journal 2.2 Ledgar 2.3 Trial Balance | G31: CLO 1 | I31: 4 | K31: 2 | O31: 0 | S31: 8 | T31: 14 | U31: =C31 -> 2.0 Accounting Cycle and Record Process 2.1 Journal 2.2 Ledgar 2.3 Trial Balance
C32: 3.0 Adjusted of Depreciation 3.1 Straight Line Method 3.2 Reducing Balance Method | G32: CLO 2 | I32: 2 | K32: 1 | S32: 6 | T32: 9 | U32: 3.0 Adjusted of Depreciation 3.1 Straight Line Method 3.2 Reducing Balance Method
C33: 4.0 Accrued Revenue and Accrued Expenses 4.1 Prepaid Revenue and Prepaid Expenses 4.2 Bad Debts and Allowances for Doubful Debts 4.3 Provision for Discount on Account Receivables and Bad Debts Recovered 4.4 Revenue and Capital Expenditure | G33: CLO 2 | I33: 4 | K33: 2 | S33: 10 | T33: 16 | U33: 4.0 Accrued Revenue and Accrued Expenses 4.1 Prepaid Revenue and Prepaid Expenses 4.2 Bad Debts and Allowances for Doubful Debts 4.3 Provision for Discount on Account Receivables and Bad Debts Recovered 4.4 Revenue and Capital Expenditure
C34: 5.0 Financial Statement 5.1 Statement of Comprehensive Income 5.2 Statement of Financial Position | G34: CLO 2 | I34: 4 | K34: 2 | S34: 6 | T34: 12 | U34: 5.0 Financial Statement 5.1 Statement of Comprehensive Income 5.2 Statement of Financial Position
C35: 6.0 Accounting for Trading operations 6.1 Trading Operations 6.2 Record the purchase 6.3 Record of Sales 6.4 Complete the Accounting Cycle | G35: CLO 2 | I35: 4 | K35: 2 | S35: 8 | T35: 14 | U35: 6.0 Accounting for Trading operations 6.1 Trading Operations 6.2 Record the purchase 6.3 Record of Sales 6.4 Complete the Accounting Cycle
C36: 7.0 Inventory Evaluation 7.1 First in, First Out Method (FIFO) 7.2 Last In, First Out Method (LIFO) 7.3 Average Cost Method (AVCO) | G36: CLO 3 | I36: 4 | K36: 2 | S36: 8 | T36: 14 | U36: 7.0 Inventory Evaluation 7.1 First in, First Out Method (FIFO) 7.2 Last In, First Out Method (LIFO) 7.3 Average Cost Method (AVCO)
C37: 8.0 Accounting for Cash 8.1 Statement of Cash Flow 8.2 Bank Reconciliations 8.3 Electronic Funds Transfer System | G37: CLO 3 | I37: 2 | K37: 1 | S37: 6 | T37: 9 | U37: 8.0 Accounting for Cash 8.1 Statement of Cash Flow 8.2 Bank Reconciliations 8.3 Electronic Funds Transfer System
I38: =SUM(I30:J37) -> 28 | K38: =SUM(K30:L37) -> 14
C39: Total | T39: =SUM(T30:T38) -> 100 | U39: Total
C41: Continuous Assessment | L41: Percentage (%) | N41: F2F | Q41: NF2F | T41: SLT
C42: 1 | D42: Assignment | L42: 20 | Q42: 4 | T42: =SUM(N42:S42) -> 4
C43: 2 | D43: Quiz | L43: 10 | N43: 1 | Q43: 2 | T43: 3 | U43: =D43 -> Quiz
C44: 3 | D44: Test | L44: 20 | N44: 2 | Q44: 4 | T44: 6 | U44: Test
C45: 4 | T45: 0
C46: 5 | T46: 0
C47: Total | T47: =SUM(T42:T46) -> 13
C49: Final Assessment | L49: Percentage (%) | N49: F2F | Q49: NF2F | T49: SLT
C50: 1 | D50: Final Examination | L50: 50 | N50: 2.5 | Q50: 4.5 | T50: =SUM(N50:S50) -> 7
C51: 2 | T51: 0 | U51: =D51 -> 
C52: 3 | T52: 0
C53: 4 | T53: 0
C54: 5 | T54: 0
T55: =SUM(T50:T54) -> 7 | U55: =D55 -> 
C57: **Please tick (ü) in this course is Latihan Industri / Clinical Placement / Practicum / WBL using 2 weeks; 1 credit formula | T57: =+T39+T47+T55 -> 120
C58: L= Lecture, T=Tutorial, P=Practical, O=Others, F2F=Face to Face, NF2F=None Face to Face
C59: *Indicate the CLO based on the CLO's numbering in item 8
B60: 11 | C60: Identify special requirement to deliver the course (e.g: software, nursery, computer lab, simulation room, etc) | H60: None
U61: =H61 -> 
B62: 12 | C62: References: | H62: Frank Wood & Alam Sangster. (2018).Business Accounting, 14th Edn. Prentice Hall.
C63: (include required and further readings, and should be the most current) | H63: 1. Weygant, Keiso and Kimmel. (2016). Financial Accounting, 10th Ed. Wiley 2. Andrew Thomas and Anne Marie Ward. (2015) Introduction to Financial Accounting, 8th Edition, McGraw Hill. | U63: =H63 -> 1. Weygant, Keiso and Kimmel. (2016). Financial Accounting, 10th Ed. Wiley 2. Andrew Thomas and Anne Marie Ward. (2015) Introduction to Financial Accounting, 8th Edition, McGraw Hill.
B64: 13 | C64: Other additional Information | H64: Last updated : 24th November 2019 | U64: Last updated : 24th November 2019

Sheet DPP1113 P.P
B2: Back | C2: Name of Course | D2: Principles of Management | AK2: 1 | AL2: 1
C3: Course Code | D3: DPP 1113 | AJ3: √ | AK3: 2 | AL3: 2
B4: 2 | C4: Synopsis | D4: This course explains to students about the management functions in an organization. This course introduces students to basic concepts related to management and includes topics such as management skills, trends affecting organizations, organizational structures and human resource management. This course also explains the importance of communication to managers and the elements needed for effective presentation. | U4: =D4 -> This course explains to students about the management functions in an organization. This course introduces students to basic concepts related to management and includes topics such as management skills, trends affecting organizations, organizational structures and human resource management. This course also explains the importance of communication to managers and the elements needed for effective presentation. | AK4: 3 | AL4: 3
B5: 3 | C5: Name (s) of Academic Staff | D5: Wan Nur Liyana Binti Wan Mohd Fauzi | AK5: 4 | AL5: 4
B6: 4 | C6: Semester | D6: Semester | E6: 1 | F6: Year | G6: 1 | AK6: 5
B7: 5 | C7: Credit Value | D7: =IF(T58=40,1,(IF(T58=80,2,(IF(T58=120,3,(IF(T58=160,4,IF(T58=200,5,IF(T58=240,6,""))))))))) -> 3 | AK7: 6
B8: 6 | C8: Pre-requisite / Co-requisite (if any) | AK8: 7
B9: 7 | C9: Course Learning Outcomes (CLO): At the end of the course the students will be able to: | AK9: 8
C10: (example) - explain the basic principles of immunisation (C2, PLO1) | AK10: 9
C11: CLO1 | D11: Apply the role of management, management functions and environment factors in organization. (C3,PLO1) | U11: =D11 -> Apply the role of management, management functions and environment factors in organization. (C3,PLO1) | AK11: 10
C12: CLO2 | D12: Prepare the report of management function in existance company. (C3, CTPS2, PLO2) | U12: Prepare the report of management function in existance company. (C3, CTPS2, PLO2) | AK12: 11
C13: CLO3 | D13: Demonstrate a good leadership ability and sense of motivation at the workgroups. (A3, LS2, PLO8)
AK14: 12
B15: 8 | C15: Mapping of the Course Learning Outcomes to the Programme Learning Outcomes, Teaching Methods and Assessment:
C16: Course Learning Outcomes (CLO) | D16: Programme Learning Outcomes (PLO) | P16: Teaching Methods | S16: Assessment
D17: PLO1 | E17: PLO2 | F17: PLO3 | G17: PLO4 | H17: PLO5 | I17: PLO6 | J17: PLO7 | K17: PLO8 | L17: PLO9 | M17: PLO10 | N17: PLO11 | O17: PLO12
C18: CLO1 | D18: √ | P18: Lecture | Discussion | Presentation | S18: Assignment | Test | Final Examination | U18: =S18 -> Assignment | Test | Final Examination
C19: CLO2 | E19: √ | P19: Lecture | Discussion | Presentation | S19: Assignment
C20: CLO3 | K20: √ | P20: Lecture | Discussion | Presentation | S20: Assignment
C22: (The description must be read together with standards 2.1.2, 2.2.1 and 2.2.2 in Area 2 - pages 16 & 18)
B23: 9 | C23: Transferable skills (if applicable) | G23: 1 | H23: Knowledge and understanding skill
C24: (Skills learned in the course of study which can be useful and utilised in other settings) | G24: 2 | H24: Problem Solving and Information Technology
G25: 3 | H25: Leadership skill
B26: 10 | C26: Distribution of Students Learning Time (SLT)
C27: Course Content Outline | G27: CLO | I27: Teaching and Learning Activities | T27: SLT
I28: Guided learning (F2F) | Q28: Guided Learning (NF2F) eg: e-learning | S28: Independent learning (NF2F)
I29: L | K29: T | M29: P | O29: O
C30: 1.0 Introduction to management 1.1 Introduction to organizational management 1.2 Environmental factors affecting organizations 1.3 Overview: evolution of management 1.4 Overview: ethics in management 1.5 Ethics from the western and islamic perspective | G30: CLO 1 | I30: 4 | K30: 4 | S30: 4 | T30: =SUM(I30:S30) -> 12
C31: 2.0 Planning 2.1 Planning process 2.2 Types of plan 2.3 MBO | G31: CLO 1 CLO 2 CLO 3 | I31: 2 | K31: 2 | S31: 6 | T31: 10 | U31: =C31 -> 2.0 Planning 2.1 Planning process 2.2 Types of plan 2.3 MBO
C32: 3.0 Decision Making 3.1 Decision-making process 3.2 Types of problem & decisions 3.3 Decision making styles 3.4 Barriers to making good decisions | G32: CLO 1 | I32: 2 | K32: 2 | S32: 2 | T32: 6 | U32: 3.0 Decision Making 3.1 Decision-making process 3.2 Types of problem & decisions 3.3 Decision making styles 3.4 Barriers to making good decisions
C33: 4.0 Organizing 4.1 Types of organization structure 4.2 Power, control& hierarchy 4.3 Importance of organization design & structure | G33: CLO 1 CLO 2 CLO 3 | I33: 2 | K33: 2 | S33: 6 | T33: 10 | U33: 4.0 Organizing 4.1 Types of organization structure 4.2 Power, control& hierarchy 4.3 Importance of organization design & structure
C34: 5.0 Human Capital Management 5.1 Strategic human capital management (HCM) 5.2 HCM Process 5.3 Orientation, training & development 5.4 Performance management 5.5 Compensation management 5.6 Health & safety 5.7 Industrial relations | G34: CLO 1 | I34: 2 | K34: 2 | S34: 4 | T34: 8 | U34: 5.0 Human Capital Management 5.1 Strategic human capital management (HCM) 5.2 HCM Process 5.3 Orientation, training & development 5.4 Performance management 5.5 Compensation management 5.6 Health & safety 5.7 Industrial relations
C35: 6.0 Leading 6.1 Managers & leaders 6.2 Managers & followers 6.3 Sources of power 6.4 Overview: Leadership theories: Traits, Behavioural, Contingency, Path-goal theory, Contemporary Theories 6.5 Leadership: Issues & challenges 6.6 Leadership from the Islamic perspectives 6.7 Leadership: Issues & challenges 6.8 Leadership from the Islamic perspectives | G35: CLO 1 CLO 2 CLO 3 | I35: 4 | K35: 2 | S35: 6 | T35: 12 | U35: 6.0 Leading 6.1 Managers & leaders 6.2 Managers & followers 6.3 Sources of power 6.4 Overview: Leadership theories: Traits, Behavioural, Contingency, Path-goal theory, Contemporary Theories 6.5 Leadership: Issues & challenges 6.6 Leadership from the Islamic perspectives 6.7 Leadership: Issues & challenges 6.8 Leadership from the Islamic perspectives
C36: 7.0 Communication 7.1 Communication process 7.2 Interpersonal communication 7.3 Organizational communication 7.4 Group communication challenges to effective communication | G36: CLO 1 CLO 3 | I36: 2 | K36: 2 | S36: 2 | T36: 6 | U36: 7.0 Communication 7.1 Communication process 7.2 Interpersonal communication 7.3 Organizational communication 7.4 Group communication challenges to effective communication
C37: 8.0 Motivation 8.1 Motivation process 8.2 Overview: motivation theories 8.3 Employee motivation strategies | G37: CLO 1 CLO 2 CLO 3 | I37: 4 | K37: 2 | S37: 6 | T37: 12 | U37: 8.0 Motivation 8.1 Motivation process 8.2 Overview: motivation theories 8.3 Employee motivation strategies
C38: 9.0 Control 9.1 Control process 9.2 Approaches to control 9.3 Organizational culture & control 9.4 Effective control systems | G38: CLO 1 CLO 2 CLO 3 | I38: 2 | K38: 2 | S38: 6 | T38: 10 | U38: 9.0 Control 9.1 Control process 9.2 Approaches to control 9.3 Organizational culture & control 9.4 Effective control systems
C39: 10.0 International Management 10.1 The global environment 10.2 Global organizations: strategies and modes of entry 10.3 Challenges faced by global organizations | G39: CLO 1 | I39: 2 | K39: 2 | S39: 2 | T39: 6 | U39: 10.0 International Management 10.1 The global environment 10.2 Global organizations: strategies and modes of entry 10.3 Challenges faced by global organizations
C40: Total | T40: =SUM(T30:T39) -> 92 | U40: Total
C42: Continuous Assessment | L42: Percentage (%) | N42: F2F | Q42: NF2F | T42: SLT
C43: 1 | D43: Assignment 1 | L43: 20 | N43: 1 | Q43: 6 | T43: =SUM(N43:S43) -> 7
C44: 2 | D44: Quiz | L44: 10 | N44: 1 | Q44: 2 | T44: 3 | U44: =D44 -> Quiz
C45: 3 | D45: Test 1 | L45: 10 | N45: 1.5 | Q45: 2 | T45: 3.5 | U45: Test 1
C46: 4 | D46: Test 2 | L46: 10 | N46: 1.5 | Q46: 2 | T46: 3.5 | U46: Test 2
T47: 0
C48: Total | T48: =SUM(T43:T47) -> 17
C50: Final Assessment | L50: Percentage (%) | N50: F2F | Q50: NF2F | T50: SLT
C51: 1 | D51: Final Examination | L51: 50 | N51: 2.5 | Q51: 8.5 | T51: =SUM(N51:S51) -> 11
T52: 0 | U52: =D52 -> 
T53: 0
T54: 0
T55: 0
T56: =SUM(T51:T55) -> 11 | U56: =D56 -> 
T58: =+T40+T48+T56 -> 120
C59: L= Lecture, T=Tutorial, P=Practical, O=Others, F2F=Face to Face, NF2F=None Face to Face
C60: *Indicate the CLO based on the CLO's numbering in item 8
B61: 11 | C61: Identify special requirement to deliver the course (e.g: software, nursery, computer lab, simulation room, etc) | H61: None
U62: =H62 -> 
B63: 12 | C63: References: | H63: 1. Robbins, Stephen P. and Decenzo, David A. (2016) Fundamentals of Management, 10th Edn., Pearson Education
C64: (include required and further readings, and should be the most current) | H64: 2. William G."Bill' Borges, et al. (2015). Principle of Management. SJ Learning 3. Fazilah Mohamad Hasun, Zafir Mohd Makhbul, Mohd. Hizam Hanafiah. (2013). Pengurusan Organisasi, 3rd Edtition. Cengage Learning. | U64: =H64 -> 2. William G."Bill' Borges, et al. (2015). Principle of Management. SJ Learning 3. Fazilah Mohamad Hasun, Zafir Mohd Makhbul, Mohd. Hizam Hanafiah. (2013). Pengurusan Organisasi, 3rd Edtition. Cengage Learning.
B65: 13 | C65: Other additional Information | H65: Last updated : 24 November 2019 | U65: Last updated : 24 November 2019

Sheet DPP 1723 Macro
B2: Back | C2: Name of Course | D2: Macroeconomics | AK2: 1 | AL2: 1
C3: Course Code | D3: DPP 1723 | AJ3: √ | AK3: 2 | AL3: 2
B4: 2 | C4: Synopsis | D4: This course is designed to expose students to the basic economics level. This 3 credits subject will consist of concepts and theories in macroeconomics. These concepts involve national incomes accounting, uses and limitations of national incomes statistics, consumptions theory, investment theory, the determination of national income equilibrium, money and banking, monetory policy, fiscal policy, national budget and debt, inflation, unemployment, international trade, balance of payment and exchanges rate | U4: =D4 -> This course is designed to expose students to the basic economics level. This 3 credits subject will consist of concepts and theories in macroeconomics. These concepts involve national incomes accounting, uses and limitations of national incomes statistics, consumptions theory, investment theory, the determination of national income equilibrium, money and banking, monetory policy, fiscal policy, national budget and debt, inflation, unemployment, international trade, balance of payment and exchanges rate | AK4: 3 | AL4: 3
B5: 3 | C5: Name (s) of Academic Staff | D5: Juliana Ismail | AK5: 4 | AL5: 4
B6: 4 | C6: Semester | D6: Semester | E6: 2 | F6: Year | G6: 1 | AK6: 5
B7: 5 | C7: Credit Value | D7: =IF(T53=40,1,(IF(T53=80,2,(IF(T53=120,3,(IF(T53=160,4,IF(T53=200,5,IF(T53=240,6,""))))))))) -> 3 | AK7: 6
B8: 6 | C8: Pre-requisite / Co-requisite (if any) | D8: MGT 1713 | AK8: 7
B9: 7 | C9: Course Learning Outcomes (CLO): At the end of the course the students will be able to: | AK9: 8
C10: (example) - explain the basic principles of immunisation (C2, PLO1) | AK10: 9
C11: CLO1 | D11: Apply the concept of macroeconomics theories, equilibrium of income, international trade, balance of payment and foreign exchange. (C3, PLO1) | U11: =D11 -> Apply the concept of macroeconomics theories, equilibrium of income, international trade, balance of payment and foreign exchange. (C3, PLO1) | AK11: 10
C12: CLO2 | D12: Solve the prolem by using AD-AS method. (C3, CTPS3, PLO2) | U12: Solve the prolem by using AD-AS method. (C3, CTPS3, PLO2) | AK12: 11
C13: CLO3 | D13: Acquired an information of Macroeconomics theories from various sources to accomplish assigned task. (A3, LL3, PLO6)
B14: 8 | C14: Mapping of the Course Learning Outcomes to the Programme Learning Outcomes, Teaching Methods and Assessment:
C15: Course Learning Outcomes (CLO) | D15: Programme Learning Outcomes (PLO) | P15: Teaching Methods | S15: Assessment
D16: PLO1 | E16: PLO2 | F16: PLO3 | G16: PLO4 | H16: PLO5 | I16: PLO6 | J16: PLO7 | K16: PLO8 | L16: PLO9 | M16: PLO10 | N16: PLO11 | O16: PLO12
C17: CLO1 | D17: √ | P17: Lecture | Discussion | S17: Assignment | Test | Final Examination | U17: =S17 -> Assignment | Test | Final Examination
C18: CLO2 | E18: √ | P18: Lecture | Discussion | S18: Assignment | Test | Final Examination
C19: CLO3 | I19: √ | P19: Lecture | Discussion | S19: Assignment
C20: (The description must be read together with standards 2.1.2, 2.2.1 and 2.2.2 in Area 2 - pages 16 & 18)
B21: 9 | C21: Transferable skills (if applicable) | G21: 1 | H21: Knowledge and understanding
C22: (Skills learned in the course of study which can be useful and utilised in other settings) | G22: 2 | H22: Critical thinking and probem solving
G23: 3 | H23: Lifelong learning
B24: 10 | C24: Distribution of Students Learning Time (SLT)
C25: Course Content Outline | G25: CLO | I25: Teaching and Learning Activities | T25: SLT
I26: Guided learning (F2F) | Q26: Guided Learning (NF2F) eg: e-learning | S26: Independent learning (NF2F)
I27: L | K27: T | M27: P | O27: O
C28: 1.0 Introductions to Macroeconomic, 1.1 Microeconomic questions, 1.2 What, how and for whom goods and services get produced; circular flow of income | G28: CLO 2 | I28: 1 | K28: 3 | M28: 0 | S28: 2 | T28: =SUM(I28:S28) -> 6
C29: 2.0 GDP incomes and expenditure-measuring GDP; expenditure approach, the income approach; expenditure excluded from GDP 2.1 Calculation; valuing industrial output; real GDP and nominal GDP; real GDP and standard of living; national income accounting | G29: CLO 1 | I29: 1 | K29: 3 | O29: 0 | S29: 2 | T29: 6 | U29: =C29 -> 2.0 GDP incomes and expenditure-measuring GDP; expenditure approach, the income approach; expenditure excluded from GDP 2.1 Calculation; valuing industrial output; real GDP and nominal GDP; real GDP and standard of living; national income accounting
C30: 3.0 Unemployment-labour market indicators,causes and types of unemployment | G30: CLO 3 | I30: 2 | K30: 3 | S30: 4 | T30: 9 | U30: 3.0 Unemployment-labour market indicators,causes and types of unemployment
C31: 4.0The consumer prices index (CPI), 4.1 constructing CPI,measuringinflation,sources of bias in the CPI, nominal and real values | G31: CLO 1 | I31: 2 | K31: 6 | S31: 4 | T31: 12 | U31: 4.0The consumer prices index (CPI), 4.1 constructing CPI,measuringinflation,sources of bias in the CPI, nominal and real values
C32: 5.0 Income and expenditure;expenditure multiplier | G32: CLO 3 | I32: 2 | K32: 4 | S32: 3 | T32: 9
C33: 6.0 The AD-AS model,macroeconomic equilibrium, GDP potential | G33: CLO 2 | I33: 2 | K33: 4 | S33: 3 | T33: 9 | U33: =C33 -> 6.0 The AD-AS model,macroeconomic equilibrium, GDP potential
C34: 7.0 The productions function, 7.1market equilibrium, full employment and potential GDP | G34: CLO 2 | I34: 2 | K34: 4 | S34: 4 | T34: 10 | U34: 7.0 The productions function, 7.1market equilibrium, full employment and potential GDP
C35: 8.0 The functions of money; monetory system; and the central bank system 8.1 How bank creates money and influences the quantity of money | G35: CLO 2 | I35: 2 | K35: 4 | S35: 2 | T35: 8 | U35: 8.0 The functions of money; monetory system; and the central bank system 8.1 How bank creates money and influences the quantity of money
C36: 9.0 The demad of money, the influences of money holding,nominal interest rate,changes the interest rates | G36: CLO 2 | I36: 2 | K36: 4 | S36: 2 | T36: 8 | U36: 9.0 The demad of money, the influences of money holding,nominal interest rate,changes the interest rates
C37: 10.0 Money,prices level and inflations,market equilibrium in the long run 10.1 changing the quantity of money;effect of inflations,policies to reduces inflation | G37: CLO 2 | I37: 2 | K37: 4 | S37: 2 | T37: 8 | U37: 10.0 Money,prices level and inflations,market equilibrium in the long run 10.1 changing the quantity of money;effect of inflations,policies to reduces inflation
C38: 11.0 The equilibrium in the goods market (IS); the equilibrium in the money market (LM) 11.1 Monetory and Fiscal policies | G38: CLO 2 | I38: 2 | K38: 3 | S38: 2 | T38: 7 | U38: 11.0 The equilibrium in the goods market (IS); the equilibrium in the money market (LM) 11.1 Monetory and Fiscal policies
C39: 12.0 The exchanges rates and international monetory systems; 12.1 The balances of payment accounts, exchanges rates and the market for foreign exchanges; monetory fiscal policy in the open economy. | G39: CLO 2 | I39: 2 | K39: 4 | S39: 2 | T39: 8 | U39: 12.0 The exchanges rates and international monetory systems; 12.1 The balances of payment accounts, exchanges rates and the market for foreign exchanges; monetory fiscal policy in the open economy.
C40: Total | T40: =SUM(T28:T39) -> 100 | U40: Total
C42: Continuous Assessment | L42: Percentage (%) | N42: F2F | Q42: NF2F | T42: SLT
C43: 1 | D43: Assignment | L43: 10 | Q43: 3 | T43: =SUM(N43:S43) -> 3
C44: 2 | D44: Quiz | L44: 10 | Q44: 3 | T44: 3 | U44: =D44 -> Quiz
C45: 3 | D45: Test 1 | L45: 15 | N45: 1.5 | Q45: 2 | T45: 3.5 | U45: Test 1
C46: 4 | D46: Test 2 | L46: 15 | N46: 1.5 | Q46: 2 | T46: 3.5 | U46: Test 2
C47: Total | T47: =SUM(T43:T46) -> 13
C49: Final Assessment | L49: Percentage (%) | N49: F2F | Q49: NF2F | T49: SLT
C50: 1 | D50: Final Examination | L50: 50 | N50: 2.5 | Q50: 4.5 | T50: =SUM(N50:S50) -> 7
T51: =SUM(T50) -> 7 | U51: =D51 -> 
C53: **Please tick (ü) in this course is Latihan Industri / Clinical Placement / Practicum / WBL using 2 weeks; 1 credit formula | T53: =+T40+T47+T51 -> 120
C54: L= Lecture, T=Tutorial, P=Practical, O=Others, F2F=Face to Face, NF2F=None Face to Face
C55: *Indicate the CLO based on the CLO's numbering in item 8
B56: 11 | C56: Identify special requirement to deliver the course (e.g: software, nursery, computer lab, simulation room, etc) | H56: None
U57: =H57 -> 
B58: 12 | C58: References: | H58: 1. Bade,R and M.Parkin (2017) Foundations of Economic, 9th Edition. International Edition Boston; Pearson Education
C59: (include required and further readings, and should be the most current) | H59: 2. Zubair Hasan and Habibah Lehar, 9th Edition, Oxford. | U59: =H59 -> 2. Zubair Hasan and Habibah Lehar, 9th Edition, Oxford.
B60: 13 | C60: Other additional Information | H60: Last updated : 14 Mei 2019 | U60: Last updated : 14 Mei 2019

Sheet DPP1213 B.MATH
B2: Back | C2: Name of Course | D2: Business Mathematics | AJ2: 1 | AK2: 1
C3: Course Code | D3: DPP1213 | AI3: √ | AJ3: 2 | AK3: 2
B4: 2 | C4: Synopsis | D4: This course gives preliminary exposure to the students with regards to the basic time value of money. Students are exposed to the calculation method for simple interest, compund interest, and annuity. This course also discuss the calculation method for trade discount, cash discount, mark-up and mark-down price of goods. Besides, this course also explain the concept of promissory note for receivables, instalment purchase and depreciation on the assets of businesses. | T4: =D4 -> This course gives preliminary exposure to the students with regards to the basic time value of money. Students are exposed to the calculation method for simple interest, compund interest, and annuity. This course also discuss the calculation method for trade discount, cash discount, mark-up and mark-down price of goods. Besides, this course also explain the concept of promissory note for receivables, instalment purchase and depreciation on the assets of businesses. | AJ4: 3 | AK4: 3
B5: 3 | C5: Name (s) of Academic Staff | D5: Suriani Binti Jaafar | AJ5: 4 | AK5: 4
B6: 4 | C6: Semester | D6: Semester | E6: 2 | F6: Year | G6: 1 | AJ6: 5
B7: 5 | C7: Credit Value | D7: 3 | AJ7: 6
B8: 6 | C8: Pre-requisite / Co-requisite (if any) | AJ8: 7
B9: 7 | C9: Course Learning Outcomes (CLO): At the end of the course the students will be able to: | AJ9: 8
C10: (example) - explain the basic principles of immunisation (C2, PLO1) | AJ10: 9
C11: CLO1 | D11: Distinguish basic concepts and theories in business mathematics.(C2,PLO1) | T11: =D11 -> Distinguish basic concepts and theories in business mathematics.(C2,PLO1) | AJ11: 10
C12: CLO2 | D12: Apply theories and fomulas to accomplish assigned task. (A3, C3, PLO7) | T12: Apply theories and fomulas to accomplish assigned task. (A3, C3, PLO7) | AJ12: 11
C13: CLO3 | D13: Work collaboratively in groups and assigned task within a given time frame. (A2, TS3, PLO4)
B14: 8 | C14: Mapping of the Course Learning Outcomes to the Programme Learning Outcomes, Teaching Methods and Assessment:
C15: Course Learning Outcomes (CLO) | D15: Programme Learning Outcomes (PLO) | O15: Teaching Methods | R15: Assessment
D16: PLO1 | E16: PLO2 | F16: PLO3 | G16: PLO4 | H16: PLO5 | I16: PLO6 | J16: PLO7 | K16: PLO8 | L16: PLO9 | M16: PLO10 | N16: PLO11
C17: CLO1 | D17: √ | O17: Lecture | Discussion | R17: Assignment | Test | Final Examination | T17: =R17 -> Assignment | Test | Final Examination
C18: CLO2 | J18: √ | O18: Lecture | Discussion | R18: Assignment | Test | Final Examination
C19: CLO3 | G19: √ | O19: Lecture | Discussion | R19: Assignment
C20: (The description must be read together with standards 2.1.2, 2.2.1 and 2.2.2 in Area 2 - pages 16 & 18)
B21: 9 | C21: Transferable skills (if applicable) | G21: 1 | H21: Knowledge and understanding
C22: (Skills learned in the course of study which can be useful and utilised in other settings) | G22: 2 | H22: Numeracy skills
G23: 3 | H23: Inerpesonal skills
B24: 10 | C24: Distribution of Students Learning Time (SLT)
C25: Course Content Outline | G25: CLO | I25: Teaching and Learning Activities | S25: SLT
I26: Guided learning (F2F) | P26: Guided Learning (NF2F) eg: e-learning | R26: Independent learning (NF2F)
I27: L | K27: T | M27: P
C28: 1.0 Sequence (Progression) 1.1 Arithmetic sequence 1.2 Geometric sequence | G28: CLO 1 | I28: 4 | K28: 3 | R28: 7 | S28: =SUM(I28:R28) -> 14
C29: 2.0 Simple Interest 2.1 Simple interest formula 2.2 Simple amount formula 2.3 Four basic concepts 2.4 Present value 2.5 Equation of value | G29: CLO 1 | I29: 2 | K29: 1.5 | R29: 6 | S29: 9.5 | T29: =C29 -> 2.0 Simple Interest 2.1 Simple interest formula 2.2 Simple amount formula 2.3 Four basic concepts 2.4 Present value 2.5 Equation of value
C30: 3.0 Compound Interest 3.1 Compound interest formula 3.2 Maturity value 3.3 Accumulated amount 3.4 Effective, nominal and equivalent rates 3.5 Present value 3.6 Equivalent value | G30: CLO 2 | I30: 2 | K30: 1.5 | R30: 6 | S30: 9.5 | T30: 3.0 Compound Interest 3.1 Compound interest formula 3.2 Maturity value 3.3 Accumulated amount 3.4 Effective, nominal and equivalent rates 3.5 Present value 3.6 Equivalent value
C31: 4.0 Anuiti 4.1 Types of annuity 4.2 Amount of ordinary annuity 4.3 Present value of ordinary annuity 4.4 Future value of ordinary annuity | G31: CLO 2 | I31: 4 | K31: 3 | R31: 7 | S31: 14 | T31: 4.0 Anuiti 4.1 Types of annuity 4.2 Amount of ordinary annuity 4.3 Present value of ordinary annuity 4.4 Future value of ordinary annuity
C32: 5.0 Trade Discount and Cash Discount 5.1 Single and chain discount 5.2 Trade and cash discount 5.3 Partial payment | G32: CLO 2 | I32: 2 | K32: 1.5 | R32: 6 | S32: 9.5 | T32: 5.0 Trade Discount and Cash Discount 5.1 Single and chain discount 5.2 Trade and cash discount 5.3 Partial payment
C33: 6.0 Mark-up and Mark-down 6.1 Mark-up 6.2 Mark-down 6.3 Profit and loss | G33: CLO 2 | I33: 2 | K33: 1.5 | R33: 6 | S33: 9.5 | T33: 6.0 Mark-up and Mark-down 6.1 Mark-up 6.2 Mark-down 6.3 Profit and loss
C34: 7.0 Promissory Note 7.1 Promissory note 7.2 Bank discount 7.3 Simple interest rate equivalent to bank discount rate 7.4 Discounting promissory note | G34: CLO 2 | I34: 2 | K34: 1.5 | R34: 6 | S34: 9.5 | T34: 7.0 Promissory Note 7.1 Promissory note 7.2 Bank discount 7.3 Simple interest rate equivalent to bank discount rate 7.4 Discounting promissory note
C35: 8.0 Instalment Purchase 8.1 Interest on original balance 8.2 Interest on reducing balance 8.3 Rule 78 of Hire Purchase Act | G35: CLO 2 | I35: 4 | K35: 3 | R35: 7 | S35: 14 | T35: 8.0 Instalment Purchase 8.1 Interest on original balance 8.2 Interest on reducing balance 8.3 Rule 78 of Hire Purchase Act
C36: 9.0 Depreciation 9.1 Depreciation method 9.2 Straight-line method 9.3 Reducing balance method 9.4 Sum of digits method | G36: CLO 2 | I36: 2 | K36: 1.5 | R36: 5 | S36: 8.5 | T36: 9.0 Depreciation 9.1 Depreciation method 9.2 Straight-line method 9.3 Reducing balance method 9.4 Sum of digits method
C37: Total | S37: =SUM(S28:S36) -> 98 | T37: =#REF! -> #REF!
T38: =C37 -> Total
C39: Continuous Assessment | L39: Percentage (%) | N39: F2F | P39: NF2F | S39: SLT
C40: 1 | D40: Assigment | L40: 20 | N40: 1 | P40: 2 | S40: =SUM(N40:R40) -> 3
C41: 2 | D41: Quiz | L41: 10 | N41: 1 | P41: 2 | S41: 3
C42: 3 | D42: Test 1 | L42: 10 | N42: 1.5 | P42: 3 | S42: 4.5 | T42: =D41 -> Quiz
C43: 4 | D43: Test 2 | L43: 10 | N43: 1.5 | P43: 3 | S43: 4.5 | T43: Test 1
C44: 5 | S44: 0 | T44: Test 2
C45: Total | S45: =SUM(S40:S44) -> 15
C47: Final Assessment | L47: Percentage (%) | N47: F2F | P47: NF2F | S47: SLT
C48: 1 | D48: Final Exam | L48: 50 | N48: 2.5 | P48: 4.5 | S48: =SUM(N48:R48) -> 7
C49: 2 | S49: 0
C50: 3 | S50: 0 | T50: =D49 -> 
C51: 4 | S51: 0
C52: 5 | S52: 0
S53: =SUM(S48:S52) -> 7
T54: =D53 -> 
C55: **Please tick (ü) in this course is Latihan Industri / Clinical Placement / Practicum / WBL using 2 weeks; 1 credit formula | S55: =+S37+S45+S53 -> 120
C56: L= Lecture, T=Tutorial, P=Practical, O=Others, F2F=Face to Face, NF2F=None Face to Face
C57: *Indicate the CLO based on the CLO's numbering in item 8
B58: 11 | C58: Identify special requirement to deliver the course (e.g: software, nursery, computer lab, simulation room, etc) | H58: None
B60: 12 | C60: References: | H60: 1. Lau Too Kya, Phang Yook Ngor, Wee Kok Kiang (2015). Business Mathematics for UiTM, 5th Edition, Kuala Lumpur. Penerbit Fajar Bakti Sdn. Bhd. | T60: =H59 -> 
C61: (include required and further readings, and should be the most current) | H61: 2. Cleaves, Cherly & Hobbs, Margie (2002). Business Mathematics, 6th Edition, New York. Prentice Hall. 3. Zulkarnain Zakaria (2000). Matematik Perniagaan, Skudai. Penerbitan UTM. 4. Miller, Salzman and Clendenen. (2003). Business Mathematics, 9th Edition, USA, Addison Wesly.
B62: 13 | C62: Other additional Information | H62: Last updated : 16th Mei 2019 | T62: =H61 -> 2. Cleaves, Cherly & Hobbs, Margie (2002). Business Mathematics, 6th Edition, New York. Prentice Hall. 3. Zulkarnain Zakaria (2000). Matematik Perniagaan, Skudai. Penerbitan UTM. 4. Miller, Salzman and Clendenen. (2003). Business Mathematics, 9th Edition, USA, Addison Wesly.
T63: Last updated : 16th Mei 2019

Sheet DPP 2223 STAT
A2: Back | B2: Name of Course | C2: Business Statistics | AK2: 1 | AL2: 1
B3: Course Code | C3: DPP 2223 | AJ3: √ | AK3: 2 | AL3: 2
A4: 2 | B4: Synopsis | C4: This course discusses the introduction of basic statistics in various fields. This subjects include data scheduling and management, descriptive statistics, regression and correlation, probability and probability distribution such as nominal, Poisson and normal distribution and hypothesis testing. | T4: =C4 -> This course discusses the introduction of basic statistics in various fields. This subjects include data scheduling and management, descriptive statistics, regression and correlation, probability and probability distribution such as nominal, Poisson and normal distribution and hypothesis testing. | AK4: 3 | AL4: 3
A5: 3 | B5: Name (s) of Academic Staff | C5: Dr Jusoh Bin Yacob | AK5: 4 | AL5: 4
A6: 4 | B6: Semester | C6: Semester | D6: 3 | E6: Year | F6: 2 | AK6: 5
A7: 5 | B7: Credit Value | C7: =IF(S54=40,1,(IF(S54=80,2,(IF(S54=120,3,(IF(S54=160,4,IF(S54=200,5,IF(S54=240,6,""))))))))) -> 3 | AK7: 6
A8: 6 | B8: Pre-requisite / Co-requisite (if any) | AK8: 7
A9: 7 | B9: Course Learning Outcomes (CLO): At the end of the course the students will be able to: | AK9: 8
B10: (example) - explain the basic principles of immunisation (C2, PLO1) | AK10: 9
B11: CLO1 | C11: Apply descriptive statistics, inferential statistics, types of data, compile formulate numerical data and present data. (C3, PLO1) | T11: =C11 -> Apply descriptive statistics, inferential statistics, types of data, compile formulate numerical data and present data. (C3, PLO1) | AK11: 10
B12: CLO2 | C12: Solve the problems of testing hypotheses against null hypotheses, simple regression and correlation (C3, PLO2)
B13: CLO3 | C13: Work collabratively in asssignment and mini project.(C4, PLO4) | AK13: 12
A14: 8 | B14: Mapping of the Course Learning Outcomes to the Programme Learning Outcomes, Teaching Methods and Assessment:
B15: Course Learning Outcomes (CLO) | C15: Programme Learning Outcomes (PLO) | O15: Teaching Methods | R15: Assessment
C16: PLO1 | D16: PLO2 | E16: PLO3 | F16: PLO4 | G16: PLO5 | H16: PLO6 | I16: PLO7 | J16: PLO8 | K16: PLO9 | L16: PLO10 | M16: PLO11 | N16: PLO12
B17: CLO1 | C17: √ | O17: Lecturer| Discussion | R17: Assignment| Quiz |Test| Final Exam | T17: =R17 -> Assignment| Quiz |Test| Final Exam
B18: CLO2 | D18: √ | O18: Lecturer | Discussion|Tutorial|Consultation | R18: Assignment| Quiz |Test| Final Exam
B19: CLO3 | F19: √ | O19: Lecturer | Discussion|Tutorial|Consultation | R19: Assignment| Quiz |Test| Final Exam
B20: (The description must be read together with standards 2.1.2, 2.2.1 and 2.2.2 in Area 2 - pages 16 & 18)
A21: 9 | B21: Transferable skills (if applicable) | F21: 1 | G21: Knowledge
B22: (Skills learned in the course of study which can be useful and utilised in other settings) | F22: 2 | G22: Problem solving skills, critical thinking and scientific skills.
F23: 3 | G23: Interpersonal Skills
A24: 10 | B24: Distribution of Students Learning Time (SLT)
B25: Course Content Outline | F25: CLO | H25: Teaching and Learning Activities | S25: SLT
H26: Guided learning (F2F) | P26: Guided Learning (NF2F) eg: e-learning | R26: Independent learning (NF2F)
H27: L | J27: T | L27: P | N27: O
B28: 1.0 Introduction to statistics 1.1 Defination: data, statistics,populasi, sample 1.2 Types of statistics : discriptive abd inferential 1.3 Types od data : qualitative and quantitative 1.4 Data collection techniques. | F28: CLO 1 | H28: 3 | J28: 1 | R28: 9 | S28: =SUM(H28:R28) -> 13
B29: 2.0 Data Presentation and Distribution 2.1 Frequency Distribution: range, frequency, mid point, class interval, size class, cumulative frequency,relative frequency. 2.3 Graph: histogram,polygon, frequency, ogif, pai chart, stem and leaf plot. | F29: CLO 1 | H29: 3 | J29: 1 | R29: 10 | S29: 14 | T29: =B29 -> 2.0 Data Presentation and Distribution 2.1 Frequency Distribution: range, frequency, mid point, class interval, size class, cumulative frequency,relative frequency. 2.3 Graph: histogram,polygon, frequency, ogif, pai chart, stem and leaf plot.
B30: 3.0 Centre Tendency Measurement 3.1 Grouped data mean 3.2 Grouped and ungrouped data median 3.3 Grouped and ungrouped data mode 3.4 Measurement Dispersion : left skewed , symmetry and right skewed. 3.5 Range and Deviation 3.6 Fractile: quartile, decile, percentile 3.7 Variance and standard deviation for grouped and ungrouped data. | F30: CLO 1 | H30: 4 | J30: 2 | R30: 9 | S30: 15 | T30: 3.0 Centre Tendency Measurement 3.1 Grouped data mean 3.2 Grouped and ungrouped data median 3.3 Grouped and ungrouped data mode 3.4 Measurement Dispersion : left skewed , symmetry and right skewed. 3.5 Range and Deviation 3.6 Fractile: quartile, decile, percentile 3.7 Variance and standard deviation for grouped and ungrouped data.
B31: 4.0 Probability 4.1 Defination : sample space, event. 4.2 Tree Diagram and contingency table 4.3 Independent Event and mutually Exclusive. 4.4 Addition and Multiplication Rule 4.5 Conditional Event. | F31: CLO 2 | H31: 4 | J31: 2 | R31: 9 | S31: 15 | T31: 4.0 Probability 4.1 Defination : sample space, event. 4.2 Tree Diagram and contingency table 4.3 Independent Event and mutually Exclusive. 4.4 Addition and Multiplication Rule 4.5 Conditional Event.
B32: 5.0 Continuous Probability Distribution. 5.1 Introduction to continuous disribution. 5.2 Normal Distribution 5.3 Normal Distribution Approximation. | F32: CLO 2 | H32: 4 | J32: 2 | R32: 8.5 | S32: 14.5 | T32: 5.0 Continuous Probability Distribution. 5.1 Introduction to continuous disribution. 5.2 Normal Distribution 5.3 Normal Distribution Approximation.
B33: 6.0 Mean Sampling Distribution. 6.1 Description of the Sampling distribution 6.2 Mean for sample mean. 6.3 Standard deviation for sample mean and error. 6.4 Central Limit distribution. | F33: CLO 2 | H33: 3 | J33: 1 | R33: 8 | S33: 12 | T33: 6.0 Mean Sampling Distribution. 6.1 Description of the Sampling distribution 6.2 Mean for sample mean. 6.3 Standard deviation for sample mean and error. 6.4 Central Limit distribution.
B34: 7.0 Hypotheses Testing 7.1 Introduction to hypotheses testing 7.2 Types of error 7.3 Statistic testing 7.4 Hypotheses Testing procedure | F34: CLO 3 | H34: 3 | J34: 1 | R34: 8 | S34: 12 | T34: 7.0 Hypotheses Testing 7.1 Introduction to hypotheses testing 7.2 Types of error 7.3 Statistic testing 7.4 Hypotheses Testing procedure
B35: 8.0 Correlation and regression 8.1 Definition of correlation 8.2 Independent Variable 9.3 Pearson Correlation Coefficient, Spearmen | F35: CLO 1 | H35: 4 | J35: 2 | R35: 8 | S35: 14 | T35: 8.0 Correlation and regression 8.1 Definition of correlation 8.2 Independent Variable 9.3 Pearson Correlation Coefficient, Spearmen
B36: Total | S36: =SUM(S28:S35) -> 109.5 | T36: Total
B38: Continuous Assessment | K38: Percentage (%) | M38: F2F | P38: NF2F | S38: SLT
B39: 1 | C39: Assignment (2) | K39: 10 | P39: 3 | S39: =SUM(M39:R39) -> 3
B40: 2 | C40: Quiz (4) | K40: 10 | M40: 2 | S40: 2 | T40: =C40 -> Quiz (4)
B41: 3 | C41: Test 1 | K41: 10 | M41: 1 | S41: 1 | T41: Test 1
B42: 4 | C42: Test 2 | K42: 10 | M42: 1 | S42: 1 | T42: Test 2
B43: 5 | C43: Test 3 | K43: 10 | M43: 1 | S43: 1 | T43: Test 3
B44: Total | S44: =SUM(S39:S43) -> 8
B46: Final Assessment | K46: Percentage (%) | M46: F2F | P46: NF2F | S46: SLT
B47: 1 | C47: Final Examination | K47: 50 | M47: 2.5 | S47: =SUM(M47:R47) -> 2.5
B48: 2 | S48: 0 | T48: =C48 -> 
B49: 3 | S49: 0
B50: 4 | S50: 0
B51: 5 | S51: 0
S52: =SUM(S47:S51) -> 2.5 | T52: =C52 -> 
B54: **Please tick (ü) in this course is Latihan Industri / Clinical Placement / Practicum / WBL using 2 weeks; 1 credit formula | S54: =+S36+S44+S52 -> 120
B55: L= Lecture, T=Tutorial, P=Practical, O=Others, F2F=Face to Face, NF2F=None Face to Face
B56: *Indicate the CLO based on the CLO's numbering in item 8
A57: 11 | B57: Identify special requirement to deliver the course (e.g: software, nursery, computer lab, simulation room, etc) | G57: Software: SPSS, Excel, Google sheets
T58: =G58 -> 
A59: 12 | B59: References: | G59: Bluman, A.G, (2018), Elementary Statistics, 10 th edition, McGraw Hill
B60: (include required and further readings, and should be the most current) | G60: Muhammad Rozi, Faridah Abdul Halim. (2011), Business Statistics, Oxford University Press | T60: =G60 -> Muhammad Rozi, Faridah Abdul Halim. (2011), Business Statistics, Oxford University Press
B61: (include required and further readings, and should be the most current) | G61: Lau Too Kya, Pahang Yook Ngor, zainudin Awang (2015), 3rd edition, Oxford Fajar
A62: 13 | B62: Other additional Information | T62: =G62 -> 

Sheet DPP 1133 O.B
B2: Back | C2: Name of Course | D2: Organization Behavior | AK2: 1 | AL2: 1
C3: Course Code | D3: DPP 1133 | AJ3: √ | AK3: 2 | AL3: 2
B4: 2 | C4: Synopsis | D4: This course is designed to expose students to the concepts and theories in organizational behavior for them to understand human behavior at the workplace. First, student will be introduced to the roles played by individuals in the organization, theories of personality, learning and motivation. Next, they will have the opportunity to understand group dynamics, conflict management, communication and the Important of innovation. Finally, the will learn about, inter-group relations from topics such as power, influence, politics and leadership | U4: =D4 -> This course is designed to expose students to the concepts and theories in organizational behavior for them to understand human behavior at the workplace. First, student will be introduced to the roles played by individuals in the organization, theories of personality, learning and motivation. Next, they will have the opportunity to understand group dynamics, conflict management, communication and the Important of innovation. Finally, the will learn about, inter-group relations from topics such as power, influence, politics and leadership | AK4: 3 | AL4: 3
B5: 3 | C5: Name (s) of Academic Staff | D5: Wan Nur Liyana Binti Wan Mohd Fauzi | AK5: 4 | AL5: 4
B6: 4 | C6: Semester | D6: Semester | E6: 2 | F6: Year | G6: 1 | AK6: 5
B7: 5 | C7: Credit Value | D7: =IF(T57=40,1,(IF(T57=80,2,(IF(T57=120,3,(IF(T57=160,4,IF(T57=200,5,IF(T57=240,6,""))))))))) -> 3 | AK7: 6
B8: 6 | C8: Pre-requisite / Co-requisite (if any) | AK8: 7
B9: 7 | C9: Course Learning Outcomes (CLO): At the end of the course the students will be able to: | AK9: 8
C10: (example) - explain the basic principles of immunisation (C2, PLO1) | AK10: 9
C11: CLO1 | D11: Apply the main principles of organizational behaviour due to personal, group and organizational factors. (C3, PLO1) | U11: =D11 -> Apply the main principles of organizational behaviour due to personal, group and organizational factors. (C3, PLO1) | AK11: 10
C12: CLO2 | D12: Work collaboratively in groups and assigned task within a given time frame. (A3, TS3, PLO4) | U12: Work collaboratively in groups and assigned task within a given time frame. (A3, TS3, PLO4) | AK12: 11
C13: CLO3 | D13: Apply theories and methods of organizational behaviour in case studies. (C3, CTPS3,PLO7)
AK14: 12
B15: 8 | C15: Mapping of the Course Learning Outcomes to the Programme Learning Outcomes, Teaching Methods and Assessment:
C16: Course Learning Outcomes (CLO) | D16: Programme Learning Outcomes (PLO) | P16: Teaching Methods | S16: Assessment
D17: PLO1 | E17: PLO2 | F17: PLO3 | G17: PLO4 | H17: PLO5 | I17: PLO6 | J17: PLO7 | K17: PLO8 | L17: PLO9 | M17: PLO10 | N17: PLO11 | O17: PLO12
C18: CLO1 | D18: √ | P18: Lecture | Discussion | Presentation | S18: Test |Quiz| Final Examination | U18: =S18 -> Test |Quiz| Final Examination
C19: CLO2 | G19: √ | P19: Lecture | Discussion | Presentation | S19: Assignment
C20: CLO3 | J20: √ | P20: Discussion | Presentation | S20: Assignment
C22: (The description must be read together with standards 2.1.2, 2.2.1 and 2.2.2 in Area 2 - pages 16 & 18)
B23: 9 | C23: Transferable skills (if applicable) | G23: 1 | H23: knowlede and undertanding
C24: (Skills learned in the course of study which can be useful and utilised in other settings) | G24: 2 | H24: Interpersonal skill
G25: 3 | H25: Numeracy skills
B26: 10 | C26: Distribution of Students Learning Time (SLT)
C27: Course Content Outline | G27: CLO | I27: Teaching and Learning Activities | T27: SLT
I28: Guided learning (F2F) | Q28: Guided Learning (NF2F) eg: e-learning | S28: Independent learning (NF2F)
I29: L | K29: T | M29: P | O29: O
C30: 1.0 Introduction to OB 1.1 Important of OB 1.2 Level of analysis 1.3 Management and OB 1.4 Challenges of OB in global organizations. | G30: CLO1 | I30: 2 | K30: 2 | S30: 4 | T30: =SUM(I30:S30) -> 8
C31: 2.0 Individuals in Organization 2.1 Perception and learning 2.2 Personality and values 2.3 Emotions and stress 2.4 Attitude and work behavior 2.5 Conflict and conflict management strategies | G31: CLO1 CLO3 | I31: 8 | K31: 8 | S31: 8 | T31: 24 | U31: =C31 -> 2.0 Individuals in Organization 2.1 Perception and learning 2.2 Personality and values 2.3 Emotions and stress 2.4 Attitude and work behavior 2.5 Conflict and conflict management strategies
C32: 3.0 Motivation and Tools 3.1 Nature of Work motivation 3.2 Creating motivating work setting : job design 3.3 Financial rewards as motivators. | G32: CLO1 CLO2 | I32: 2 | K32: 2 | S32: 4 | T32: 8 | U32: 3.0 Motivation and Tools 3.1 Nature of Work motivation 3.2 Creating motivating work setting : job design 3.3 Financial rewards as motivators.
C33: 4.0 Group and Organizational Process 4.1 Nature of workgroup and teams 4.2 Effective workgroup and teams | G33: CLO1 CLO2 | I33: 2 | K33: 2 | S33: 4 | T33: 8 | U33: 4.0 Group and Organizational Process 4.1 Nature of workgroup and teams 4.2 Effective workgroup and teams
C34: 5.0 Communication 5.1 Communication process 5.2 Types of communication and organizational communication 5.3 Communication barriers 5.4 Communication strategies in global communication | G34: CLO2 | I34: 2 | K34: 2 | S34: 4 | T34: 8 | U34: 5.0 Communication 5.1 Communication process 5.2 Types of communication and organizational communication 5.3 Communication barriers 5.4 Communication strategies in global communication
C35: 6.0 Power, Influence and Politics 6.1 Nature of power and politics 6.2 Sources of formal and personal power 6.3 Organizational politics and the of power 6.4 Strategies to encourage empowerment. | G35: CLO1 | I35: 2 | K35: 2 | S35: 4 | T35: 8 | U35: 6.0 Power, Influence and Politics 6.1 Nature of power and politics 6.2 Sources of formal and personal power 6.3 Organizational politics and the of power 6.4 Strategies to encourage empowerment.
C36: 7.0 Leadership 7.1 Definition of leadership 7.2 Early approaches to leadership 7.3 Contemporary perceptive on leadership 7.4 Trust and leadership | G36: CLO1 CLO 2 | I36: 2 | K36: 2 | S36: 4 | T36: 8 | U36: 7.0 Leadership 7.1 Definition of leadership 7.2 Early approaches to leadership 7.3 Contemporary perceptive on leadership 7.4 Trust and leadership
C37: 8.0 : Creativity, Innovation and Culture 8.1 Important of creativity and innovation 8.2 Initiating change and nurturing innovation | G37: CLO1 | I37: 2 | K37: 2 | S37: 4 | T37: 8 | U37: 8.0 : Creativity, Innovation and Culture 8.1 Important of creativity and innovation 8.2 Initiating change and nurturing innovation
C38: 9.0 : Human Resource Implications of OB 9.1 Relationship between Human Resources Management and OB 9.2 System approach to HRM | G38: CLO1 | I38: 2 | K38: 2 | S38: 2 | T38: 6 | U38: 9.0 : Human Resource Implications of OB 9.1 Relationship between Human Resources Management and OB 9.2 System approach to HRM
C39: Total | T39: =SUM(T30:T38) -> 86 | U39: Total
C41: Continuous Assessment | L41: Percentage (%) | N41: F2F | Q41: NF2F | T41: SLT
C42: 1 | D42: Assignment | L42: 20 | N42: 2 | Q42: 10 | T42: =SUM(N42:S42) -> 12
C43: 2 | D43: Quiz | L43: 10 | N43: 1 | Q43: 3 | T43: 4 | U43: =D43 -> Quiz
C44: 3 | D44: Test 1 | L44: 10 | N44: 1.5 | Q44: 2 | T44: 3.5 | U44: Test 1
C45: 4 | D45: Test 2 | L45: 10 | N45: 1.5 | Q45: 2 | T45: 3.5 | U45: Test 2
C46: 5 | T46: 0
C47: Total | T47: =SUM(T42:T46) -> 23
C49: Final Assessment | L49: Percentage (%) | N49: F2F | Q49: NF2F | T49: SLT
C50: 1 | D50: Final Examination | L50: 50 | N50: 2.5 | Q50: 8.5 | T50: =SUM(N50:S50) -> 11
T51: 0 | U51: =D51 -> 
T52: 0
T53: 0
T54: 0
T55: =SUM(T50:T54) -> 11 | U55: =D55 -> 
C57: **Please tick (ü) in this course is Latihan Industri / Clinical Placement / Practicum / WBL using 2 weeks; 1 credit formula | T57: =+T39+T47+T55 -> 120
C58: L= Lecture, T=Tutorial, P=Practical, O=Others, F2F=Face to Face, NF2F=None Face to Face
C59: *Indicate the CLO based on the CLO's numbering in item 8
B60: 11 | C60: Identify special requirement to deliver the course (e.g: software, nursery, computer lab, simulation room, etc) | H60: None
U61: =H61 -> 
B62: 12 | C62: References: | H62: 1. Stephen. P. Robbins and Timothy A. Judge. (2016). Essentials of Organizational Behavior, New Jersey: Pearson
C63: (include required and further readings, and should be the most current) | H63: 2. Sarah Sabir Ahmad, et. al.(2017). Organizational Behaviour. Oxford University Press. 3. A.J. DuBrin and D. Young. (2007) Fundamentals of Organizational Behaviour. 1st Canadian Edn. USA: Thomson South-Western. 4. Zainal Ariffin Ahmad, et. al.(2009). Understanding Organizational Behaviour. Shah Alam: Oxford University Press | U63: =H63 -> 2. Sarah Sabir Ahmad, et. al.(2017). Organizational Behaviour. Oxford University Press. 3. A.J. DuBrin and D. Young. (2007) Fundamentals of Organizational Behaviour. 1st Canadian Edn. USA: Thomson South-Western. 4. Zainal Ariffin Ahmad, et. al.(2009). Understanding Organizational Behaviour. Shah Alam: Oxford University Press
B64: 13 | C64: Other additional Information | H64: Last updated :24 November 2019

Sheet DPP2143 B.ETHICS
B2: Back | C2: Name of Course | D2: Business Ethics | AK2: 1 | AL2: 1
C3: Course Code | D3: DPP 2143 | AJ3: √ | AK3: 2 | AL3: 2
B4: 2 | C4: Synopsis | D4: This subject introduces the concept of Ethics and Business, Ethics of Islam, Ethics Principles in Business, Business, Business and Environment Systems, Issues in Ethics, Business and Workers, Business Ethics and Professionalism from Islamic views. | U4: =D4 -> This subject introduces the concept of Ethics and Business, Ethics of Islam, Ethics Principles in Business, Business, Business and Environment Systems, Issues in Ethics, Business and Workers, Business Ethics and Professionalism from Islamic views. | AK4: 3 | AL4: 3
B5: 3 | C5: Name (s) of Academic Staff | D5: Juliana Ismail | AK5: 4 | AL5: 4
B6: 4 | C6: Semester | D6: Semester | E6: 3 | F6: Year | G6: 2 | AK6: 5
B7: 5 | C7: Credit Value | D7: =IF(T48=40,1,(IF(T48=80,2,(IF(T48=120,3,(IF(T48=160,4,IF(T48=200,5,IF(T48=240,6,""))))))))) -> 3 | AK7: 6
B8: 6 | C8: Pre-requisite / Co-requisite (if any) | AK8: 7
B9: 7 | C9: Course Learning Outcomes (CLO): At the end of the course the students will be able to: | AK9: 8
C10: (example) - explain the basic principles of immunisation (C2, PLO1) | AK10: 9
C11: CLO1 | D11: Identify the theory of business ethics (C2, PLO1) | U11: =D11 -> Identify the theory of business ethics (C2, PLO1) | AK11: 10
C12: CLO2 | D12: Explain the issues related to ethical in business (C3, PLO6) | U12: Explain the issues related to ethical in business (C3, PLO6) | AK12: 11
C13: CLO3 | D13: Demonstrate a good ethics in the workgroups. (A3, LS2, PLO11)
B14: 8 | C14: Mapping of the Course Learning Outcomes to the Programme Learning Outcomes, Teaching Methods and Assessment:
C15: Course Learning Outcomes (CLO) | D15: Programme Learning Outcomes (PLO) | P15: Teaching Methods | S15: Assessment
D16: PLO1 | E16: PLO2 | F16: PLO3 | G16: PLO4 | H16: PLO5 | I16: PLO6 | J16: PLO7 | K16: PLO8 | L16: PLO9 | M16: PLO10 | N16: PLO11 | O16: PLO12
C17: CLO1 | D17: √ | P17: Lecture | Discussion | S17: Assignment | Test | Final Examination | U17: =S17 -> Assignment | Test | Final Examination
C18: CLO2 | I18: √ | P18: Lecture | Discussion | S18: Assignment | Test | Final Examination
C19: CLO3 | N19: √ | P19: Lecture | Discussion | S19: Assignment | Test | Final Examination
C20: (The description must be read together with standards 2.1.2, 2.2.1 and 2.2.2 in Area 2 - pages 16 & 18)
B21: 9 | C21: Transferable skills (if applicable) | G21: 1 | H21: knowledge and understading
C22: (Skills learned in the course of study which can be useful and utilised in other settings) | G22: 2 | H22: Lifelong learning and information managemet skills
G23: 3 | H23: Ethics, profesionalism and humanities
B24: 10 | C24: Distribution of Students Learning Time (SLT)
C25: Course Content Outline | G25: CLO | I25: Teaching and Learning Activities | T25: SLT
I26: Guided learning (F2F) | Q26: Guided Learning (NF2F) eg: e-learning | S26: Independent learning (NF2F)
I27: L | K27: T | M27: P | O27: O
C28: 1.0 Ethics and Business 1.1 Definition of Ethics, Morality and Morals 1.2 Features of Business Ethics 1.3 Moral Development and Moral Reasoning 1.4 Guidelines on Business Ethics 1.5 Moral Responsibilities and Offenses | G28: CLO 1 | I28: 4 | K28: 6 | M28: 0 | S28: 2 | T28: =SUM(I28:S28) -> 12
C29: 2.0 Ethics of Islam 2.1 The importance and position of Islamic Ethics. 2.2 Source of Islamic Ethics and its relationship with religion. 2.3 Scope and Ethics of Islam in general | G29: CLO 1 | I29: 4 | K29: 6 | O29: 0 | S29: 2 | T29: 12 | U29: =C29 -> 2.0 Ethics of Islam 2.1 The importance and position of Islamic Ethics. 2.2 Source of Islamic Ethics and its relationship with religion. 2.3 Scope and Ethics of Islam in general
C30: 3.0 Principles of Ethics in Business 3.1 Social and Benefit Costs 3.2 Rights and Responsibilities. 3.3 Justice and Fairness. 3.4 Ethics of Care 3.5 Integration of utilities, Rights, Justice and Concern 3.6 Welfare ethics 3.7 Moral in an international context | G30: CLO 3 | I30: 4 | K30: 6 | S30: 4 | T30: 14 | U30: 3.0 Principles of Ethics in Business 3.1 Social and Benefit Costs 3.2 Rights and Responsibilities. 3.3 Justice and Fairness. 3.4 Ethics of Care 3.5 Integration of utilities, Rights, Justice and Concern 3.6 Welfare ethics 3.7 Moral in an international context
C31: 4.0 Business Systems 4.1 Free Market 4.2 Mixed economy 4.3 Perfect Competition 4.4 Monopoly Competition 4.5 Competitive Oligopoli | G31: CLO 3 | I31: 4 | K31: 6 | S31: 4 | T31: 14 | U31: 4.0 Business Systems 4.1 Free Market 4.2 Mixed economy 4.3 Perfect Competition 4.4 Monopoly Competition 4.5 Competitive Oligopoli
C32: 5.0 Business and Environment 5.1 Pollution and depletion of resources. 5.2 User protection. 5.3 Responsibilities. business to consumers. 5.4 Care and Consequences Theory. 5.5 Advertising Ethics. 5.6 User Personal Rights. | G32: CLO 3 | I32: 5 | K32: 4 | S32: 3 | T32: 12 | U32: 5.0 Business and Environment 5.1 Pollution and depletion of resources. 5.2 User protection. 5.3 Responsibilities. business to consumers. 5.4 Care and Consequences Theory. 5.5 Advertising Ethics. 5.6 User Personal Rights.
C33: 6.0 Issues in Ethics 6.1 Ethics in business administration. 6.2 Ethics in banking. 6.3 Ethics in accounting. 6.4 Ethics in information technology. | G33: CLO 3 | I33: 5 | K33: 4 | S33: 3 | T33: 12 | U33: 6.0 Issues in Ethics 6.1 Ethics in business administration. 6.2 Ethics in banking. 6.3 Ethics in accounting. 6.4 Ethics in information technology.
C34: 7.0 Business and Workers 7.1 Ethics of employment discrimination. 7.2 Organization Rationale. 7.3 Employee responsibility to firms. 7.4 A firm firm of workers 7.5 Employee rights | G34: CLO 2 | I34: 5 | K34: 4 | S34: 4 | T34: 13 | U34: 7.0 Business and Workers 7.1 Ethics of employment discrimination. 7.2 Organization Rationale. 7.3 Employee responsibility to firms. 7.4 A firm firm of workers 7.5 Employee rights
C35: 8.0 Business Etiquette and Professionalism according to Islamic views 8.1 Fundalmental of Islamic ethics 8.2 Strategies and Forms of Ethics in the Business world 8.3 Contribution to Islamic Ethics | G35: CLO 2 | I35: 5 | K35: 4 | S35: 2 | T35: 11 | U35: 8.0 Business Etiquette and Professionalism according to Islamic views 8.1 Fundalmental of Islamic ethics 8.2 Strategies and Forms of Ethics in the Business world 8.3 Contribution to Islamic Ethics
T36: =SUM(T28:T35) -> 100
C38: Continuous Assessment | L38: Percentage (%) | N38: F2F | Q38: NF2F | T38: SLT
C39: 1 | D39: Assignment | L39: 15 | N39: 1.5 | Q39: 3 | T39: =SUM(N39:S39) -> 4.5
C40: 2 | D40: Quiz | L40: 15 | N40: 1 | Q40: 3 | T40: 4 | U40: =D40 -> Quiz
C41: 3 | D41: Test 1&2 | L41: 20 | N41: 2.5 | Q41: 2 | T41: 4.5 | U41: Test 1&2
C42: Total | T42: =SUM(T39:T41) -> 13
C44: Final Assessment | L44: Percentage (%) | N44: F2F | Q44: NF2F | T44: SLT
C45: 1 | D45: Final Examination | L45: 50 | N45: 2.5 | Q45: 4.5 | T45: =SUM(N45:S45) -> 7
T46: =SUM(T45) -> 7 | U46: =D46 -> 
C48: **Please tick (ü) in this course is Latihan Industri / Clinical Placement / Practicum / WBL using 2 weeks; 1 credit formula | T48: =+T36+T42+T46 -> 120
C49: L= Lecture, T=Tutorial, P=Practical, O=Others, F2F=Face to Face, NF2F=None Face to Face
C50: *Indicate the CLO based on the CLO's numbering in item 8
B51: 11 | C51: Identify special requirement to deliver the course (e.g: software, nursery, computer lab, simulation room, etc) | H51: None
U52: =H52 -> 
B53: 12 | C53: References: | H53: 1. Mustafa Hj. Daud. (2015). Etika Pengurusan. Utusan Publications & Distributors Sdn Bhd.
C54: (include required and further readings, and should be the most current) | H54: 2. Wan Sabrui Wan Hussin. (2015). Etika dan Amalan Perniagaan, Utusan Publications & Distributors Sdn Bhd. 3. Osman Ayub. (2015). Etika Kerja dan Profesionalisme Islam, Sabha Famdev. 4. Velasquez. M.G.(2015) Business Ethics, Concept and Cases, Prentice Hall. | U54: =H54 -> 2. Wan Sabrui Wan Hussin. (2015). Etika dan Amalan Perniagaan, Utusan Publications & Distributors Sdn Bhd. 3. Osman Ayub. (2015). Etika Kerja dan Profesionalisme Islam, Sabha Famdev. 4. Velasquez. M.G.(2015) Business Ethics, Concept and Cases, Prentice Hall.
B55: 13 | C55: Other additional Information | H55: Last updated : 14 Mei 2019 | U55: Last updated : 14 Mei 2019

Sheet DPP 2513 MARKETING
B2: Back | C2: Name of Course | D2: Principles Marketing | AK2: 1 | AL2: 1
C3: Course Code | D3: DPP 2513 | AJ3: √ | AK3: 2 | AL3: 2
B4: 2 | C4: Synopsis | D4: This is an introductory course in marketing. The definition of marketing, key marketing concepts, the marketing process, and factors influence marketing strategies will be explained. Students need to understand major environmental forces that affect marketing and elements of the marketing mix. Students will compare the buying behaviors of final consumers and buisness consumers. They will look also at issues related top international marketing such as the global marketing environment as well as prodduct and promotions strategies. | U4: =D4 -> This is an introductory course in marketing. The definition of marketing, key marketing concepts, the marketing process, and factors influence marketing strategies will be explained. Students need to understand major environmental forces that affect marketing and elements of the marketing mix. Students will compare the buying behaviors of final consumers and buisness consumers. They will look also at issues related top international marketing such as the global marketing environment as well as prodduct and promotions strategies. | AK4: 3 | AL4: 3
B5: 3 | C5: Name (s) of Academic Staff | D5: Wan Nur Liyana Binti Wan Mohd Fauzi | AK5: 4 | AL5: 4
B6: 4 | C6: Semester | D6: Semester | E6: 3 | F6: Year | G6: 2 | AK6: 5
B7: 5 | C7: Credit Value | D7: =IF(T59=40,1,(IF(T59=80,2,(IF(T59=120,3,(IF(T59=160,4,IF(T59=200,5,IF(T59=240,6,""))))))))) -> 3 | AK7: 6
B8: 6 | C8: Pre-requisite / Co-requisite (if any) | AK8: 7
B9: 7 | C9: Course Learning Outcomes (CLO): At the end of the course the students will be able to: | AK9: 8
C10: (example) - explain the basic principles of immunisation (C2, PLO1) | AK10: 9
C11: CLO1 | D11: Apply the marketing process, marketing mix elements, macro and micro-environmental forces ,consumer and business markets behaviors. (C3, PLO1) | U11: =D11 -> Apply the marketing process, marketing mix elements, macro and micro-environmental forces ,consumer and business markets behaviors. (C3, PLO1) | AK11: 10
C12: CLO2 | D12: Prepare a marketing plan using marketing mix tools . (C3, P3,PLO3) | U12: Prepare a marketing plan using marketing mix tools . (C3, P3,PLO3) | AK12: 11
C13: CLO3 | D13: Work collaboratively in groups and assigned task within a given time frame. (A3, TS3, PLO4)
AK14: 12
B15: 8 | C15: Mapping of the Course Learning Outcomes to the Programme Learning Outcomes, Teaching Methods and Assessment:
C16: Course Learning Outcomes (CLO) | D16: Programme Learning Outcomes (PLO) | P16: Teaching Methods | S16: Assessment
D17: PLO1 | E17: PLO2 | F17: PLO3 | G17: PLO4 | H17: PLO5 | I17: PLO6 | J17: PLO7 | K17: PLO8 | L17: PLO9 | M17: PLO10 | N17: PLO11 | O17: PLO12
C18: CLO1 | D18: √ | P18: Lecture | Discussion | Presentation | S18: Test |Quiz| Final Examination | U18: =S18 -> Test |Quiz| Final Examination
C19: CLO2 | F19: √ | P19: Lecture | Discussion | Presentation | S19: Assignment
C20: CLO3 | G20: √ | P20: Lecture | Discussion | Presentation | S20: Assignment
C22: (The description must be read together with standards 2.1.2, 2.2.1 and 2.2.2 in Area 2 - pages 16 & 18)
B23: 9 | C23: Transferable skills (if applicable) | G23: 1 | H23: Knowledge and understanding
C24: (Skills learned in the course of study which can be useful and utilised in other settings) | G24: 2 | H24: Practical skills
G25: 3 | H25: Lifelong learning
B26: 10 | C26: Distribution of Students Learning Time (SLT)
C27: Course Content Outline | G27: CLO | I27: Teaching and Learning Activities | T27: SLT
I28: Guided learning (F2F) | Q28: Guided Learning (NF2F) eg: e-learning | S28: Independent learning (NF2F)
I29: L | K29: T | M29: P | O29: O
C30: 1.0 Defining Marketing and Marketing Process 1.1 What is marketing 1.2 Designing a customer driven marketing strategy 1.3 Preparing an integrated marketing plan and program 1.4 Building customer relationship 1.5 Capturing value from customers | G30: CLO 1 | I30: 4 | K30: 2 | S30: 4 | T30: =SUM(I30:S30) -> 10
C31: 2.0 Analyzing the marketing environment 2.1 Micro-environment 2.2 Macro-environment 2.3 Responding to the marketing environment | G31: CLO 1 CLO 2 | I31: 2 | K31: 2 | S31: 2 | T31: 6 | U31: =C31 -> 2.0 Analyzing the marketing environment 2.1 Micro-environment 2.2 Macro-environment 2.3 Responding to the marketing environment
C32: 3.0 Consumer Markets 3.1 Model of consumer behavior 3.2 Characteristics affecting consumer behavior 3.3 Types of buying decision behavior 3.4 Buyer decision process | G32: CLO 1 | I32: 2 | K32: 2 | S32: 2 | T32: 6 | U32: 3.0 Consumer Markets 3.1 Model of consumer behavior 3.2 Characteristics affecting consumer behavior 3.3 Types of buying decision behavior 3.4 Buyer decision process
C33: 4.0 Business Markets 4.1 Characteristics 4.2 Business buyer behavior 4.3 Business buying process | G33: CLO 1 | I33: 2 | K33: 2 | S33: 2 | T33: 6 | U33: 4.0 Business Markets 4.1 Characteristics 4.2 Business buyer behavior 4.3 Business buying process
C34: 5.0 Market Segmentation and targeting 5.1 Market segmentation 5.2 Market targeting 5.3 Differentiation and positioning | G34: CLO 1 CLO 2 | I34: 4 | K34: 4 | S34: 4 | T34: 12 | U34: 5.0 Market Segmentation and targeting 5.1 Market segmentation 5.2 Market targeting 5.3 Differentiation and positioning
C35: 6.0 Product And Service 6.1 What is product 6.2 Product and service decisions 6.3 Services marketing | G35: CLO 1 CLO 2 | I35: 2 | K35: 2 | S35: 2 | T35: 6 | U35: 6.0 Product And Service 6.1 What is product 6.2 Product and service decisions 6.3 Services marketing
C36: 7.0 New Product Development And Product Life Cycle Strategies 7.1 New Product Development strategies 7.2 New Product Development process 7.3 managing New Product Development 7.4 Product Life Cycle Strategies | G36: CLO 1 CLO 3 | I36: 2 | K36: 2 | S36: 2 | T36: 6 | U36: 7.0 New Product Development And Product Life Cycle Strategies 7.1 New Product Development strategies 7.2 New Product Development process 7.3 managing New Product Development 7.4 Product Life Cycle Strategies
C37: 8.0 Pricing Consideration And Approaches. 8.1 What is price 8.2 Major pricing strategies 8.3 Other internal and external consideration affecting pricing decision 8.4 New product pricing strategies 8.5 Product mix pricing strategies 8.6 Price adjustment strategies 8.7 Price changes | G37: CLO 1 CLO 2 | I37: 4 | K37: 4 | S37: 4 | T37: 12 | U37: 8.0 Pricing Consideration And Approaches. 8.1 What is price 8.2 Major pricing strategies 8.3 Other internal and external consideration affecting pricing decision 8.4 New product pricing strategies 8.5 Product mix pricing strategies 8.6 Price adjustment strategies 8.7 Price changes
C38: 9.0 Marketing Channels 9.1 Supply chain and value delivery network 9.2 The nature and importance of marketing channels 9.3 Channel behavior and organization 9.4 Channel design decisions 9.5 Channel management decisions 9.6 Marketing logistics and supply chain management | G38: CLO 1 CLO 2 | I38: 2 | K38: 2 | S38: 2 | T38: 6 | U38: 9.0 Marketing Channels 9.1 Supply chain and value delivery network 9.2 The nature and importance of marketing channels 9.3 Channel behavior and organization 9.4 Channel design decisions 9.5 Channel management decisions 9.6 Marketing logistics and supply chain management
C39: 10.1 Integrated marketing communication strategy 10.1 The promotion mix 10.2 Integrated marketing communications 10.3 A view of communication process Steps in developing effective marketing communications 10.4 Setting the total promotion budget and mix | G39: CLO 1 CLO 2 | I39: 6 | K39: 4 | S39: 4 | T39: 14 | U39: 10.1 Integrated marketing communication strategy 10.1 The promotion mix 10.2 Integrated marketing communications 10.3 A view of communication process Steps in developing effective marketing communications 10.4 Setting the total promotion budget and mix
C40: 11.0 The global marketplace 11.1 Global marketing today 11.2 Looking at the global marketing environment 11.3 Deciding whether to go global 11.4 Deciding which market to enter 11.5 Deciding how to enter the market 11.6 Deciding on the global marketing program 11.7 Deciding on the global marketing organization | G40: CLO 1 CLO 3 | I40: 2 | K40: 2 | S40: 2 | T40: 6 | U40: 11.0 The global marketplace 11.1 Global marketing today 11.2 Looking at the global marketing environment 11.3 Deciding whether to go global 11.4 Deciding which market to enter 11.5 Deciding how to enter the market 11.6 Deciding on the global marketing program 11.7 Deciding on the global marketing organization
C41: Total | T41: =SUM(T30:T40) -> 90 | U41: Total
C43: Continuous Assessment | L43: Percentage (%) | N43: F2F | Q43: NF2F | T43: SLT
C44: 1 | D44: Assignment | L44: 20 | N44: 1 | Q44: 8 | T44: =SUM(N44:S44) -> 9
C45: 2 | D45: Quiz | L45: 10 | N45: 1 | Q45: 2 | T45: 3 | U45: =D45 -> Quiz
C46: 3 | D46: Test 1 | L46: 10 | N46: 1.5 | Q46: 2 | T46: 3.5 | U46: Test 1
C47: 4 | D47: Test 2 | L47: 10 | N47: 1.5 | Q47: 2 | T47: 3.5 | U47: Test 2
C48: 5 | T48: 0
C49: Total | T49: =SUM(T44:T48) -> 19
C51: Final Assessment | L51: Percentage (%) | N51: F2F | Q51: NF2F | T51: SLT
C52: 1 | D52: Final Examination | L52: 50 | N52: 2.5 | Q52: 8.5 | T52: =SUM(N52:S52) -> 11
T53: 0 | U53: =D53 -> 
T54: 0
T55: 0
T56: 0
T57: =SUM(T52:T56) -> 11 | U57: =D57 -> 
C59: **Please tick (ü) in this course is Latihan Industri / Clinical Placement / Practicum / WBL using 2 weeks; 1 credit formula | T59: =+T41+T49+T57 -> 120
C60: L= Lecture, T=Tutorial, P=Practical, O=Others, F2F=Face to Face, NF2F=None Face to Face
C61: *Indicate the CLO based on the CLO's numbering in item 8
B62: 11 | C62: Identify special requirement to deliver the course (e.g: software, nursery, computer lab, simulation room, etc) | H62: None
U63: =H63 -> 
B64: 12 | C64: References: | H64: 1. Philip Kotler, Gary Armstrong (2018). Principles Of Marketing, 17th Edition, Pearson Education.
C65: (include required and further readings, and should be the most current) | H65: 2. Yusniza Kamarulzaman et al. (2017). Principle Of Marketing, 3rd Edition, Shah Alam: Oxford Universiti Press (OUP) 3. David Jobber, Fiona Ellis-Chadwick (2016). Principle and Practice of Marketing, 8th Edition. McGraw-Hill Inc.,US | U65: =H65 -> 2. Yusniza Kamarulzaman et al. (2017). Principle Of Marketing, 3rd Edition, Shah Alam: Oxford Universiti Press (OUP) 3. David Jobber, Fiona Ellis-Chadwick (2016). Principle and Practice of Marketing, 8th Edition. McGraw-Hill Inc.,US
B66: 13 | C66: Other additional Information | H66: Last updated : 24 November 2019 | U66: Last updated : 24 November 2019

Sheet DPP 2323 M.A
B2: Back | C2: Name of Course | D2: Management Accounting | AK2: 1 | AL2: 1
C3: Course Code | D3: DPP 2323 | AJ3: √ | AK3: 2 | AL3: 2
B4: 2 | C4: Synopsis | D4: This course is the foundation of the Management Accounting course. It covers a variety of topics including terms, concepts and cost behavior. Students are introduced with cost analysis, break-even point, cost-profit-sharing and variance analysis. In addition, students are exposed to decision-making processes such as pricing, budgeting and relevant cost information. | U4: =D4 -> This course is the foundation of the Management Accounting course. It covers a variety of topics including terms, concepts and cost behavior. Students are introduced with cost analysis, break-even point, cost-profit-sharing and variance analysis. In addition, students are exposed to decision-making processes such as pricing, budgeting and relevant cost information. | AK4: 3 | AL4: 3
B5: 3 | C5: Name (s) of Academic Staff | D5: Ilyasak bin Ahmad | AK5: 4 | AL5: 4
B6: 4 | C6: Semester | D6: Semester | E6: 4 | F6: Year | G6: 2 | AK6: 5
B7: 5 | C7: Credit Value | D7: =IF(T57=40,1,(IF(T57=80,2,(IF(T57=120,3,(IF(T57=160,4,IF(T57=200,5,IF(T57=240,6,""))))))))) -> 3 | AK7: 6
B8: 6 | C8: Pre-requisite / Co-requisite (if any) | D8: MGT 1313 | AK8: 7
B9: 7 | C9: Course Learning Outcomes (CLO): At the end of the course the students will be able to: | AK9: 8
C10: (example) - explain the basic principles of immunisation (C2, PLO1) | AK10: 9
C11: CLO1 | D11: Explain the concept, differences and similarities between management accounting and financial accounting, identify the types of costs and classify the costs. (C3, PLO1) | U11: =D11 -> Explain the concept, differences and similarities between management accounting and financial accounting, identify the types of costs and classify the costs. (C3, PLO1) | AK11: 10
C12: CLO2 | D12: Applying the Cost-Volume-Profit concept for budget preparation and company profit planning (P2, PLO3) | U12: Applying the Cost-Volume-Profit concept for budget preparation and company profit planning (P2, PLO3) | AK12: 11
C13: CLO3 | D13: Identify concepts and uses of standard cost and variances to make company's performance analysis and decision making (CTPS2, PLO7)
AK14: 12
B15: 8 | C15: Mapping of the Course Learning Outcomes to the Programme Learning Outcomes, Teaching Methods and Assessment:
C16: Course Learning Outcomes (CLO) | D16: Programme Learning Outcomes (PLO) | P16: Teaching Methods | S16: Assessment
D17: PLO1 | E17: PLO2 | F17: PLO3 | G17: PLO4 | H17: PLO5 | I17: PLO6 | J17: PLO7 | K17: PLO8 | L17: PLO9 | M17: PLO10 | N17: PLO11 | O17: PLO12
C18: CLO1 | D18: √ | P18: Lecture | Discussion | S18: Quiz | U18: =S18 -> Quiz
C19: CLO2 | F19: √ | P19: Lecture | Discussion | S19: Test / Final Examination
C20: CLO3 | J20: √ | P20: Lecture | Discussion | S20: Assignment / Quiz / Final Examination
C22: (The description must be read together with standards 2.1.2, 2.2.1 and 2.2.2 in Area 2 - pages 16 & 18)
B23: 9 | C23: Transferable skills (if applicable) | G23: 1 | H23: Knowledge and Understanding
C24: (Skills learned in the course of study which can be useful and utilised in other settings) | G24: 2 | H24: Practical Skills
G25: 3 | H25: Numeracy Skills
B26: 10 | C26: Distribution of Students Learning Time (SLT)
C27: Course Content Outline | G27: CLO | I27: Teaching and Learning Activities | T27: SLT
I28: Guided learning (F2F) | Q28: Guided Learning (NF2F) eg: e-learning | S28: Independent learning (NF2F)
I29: L | K29: T | M29: P | O29: O
C30: 1.0 Comparison of Financial and Management 1.1 The Concept of Management Costs 1.2 Manufacturing Costs in the Financial Statements | G30: CLO 1 | I30: 2 | K30: 1 | M30: 0 | S30: 3 | T30: =SUM(I30:S30) -> 6
C31: 2.0 Labor and Material Costing 2.1 Labor Costing 2.2 Material Costing | G31: CLO 1 | I31: 2 | K31: 1 | O31: 0 | S31: 3 | T31: 6 | U31: =C31 -> 2.0 Labor and Material Costing 2.1 Labor Costing 2.2 Material Costing
C32: 3.0 Manufacturing Overhead 3.1 ABC Analysis | G32: CLO 2 | I32: 2 | K32: 1 | S32: 4 | T32: 7 | U32: 3.0 Manufacturing Overhead 3.1 ABC Analysis
C33: 4.0 Process Costing Systems 4.1 Weighted-Average Method 4.2 FIFO Method | G33: CLO 2 | I33: 4 | K33: 2 | S33: 7 | T33: 13 | U33: 4.0 Process Costing Systems 4.1 Weighted-Average Method 4.2 FIFO Method
C34: 5.0 Cost-Volume-Profit 5.1 Cost Behavior Analysis 5.2 Cost-Profit-Analysis | G34: CLO 2 | I34: 4 | K34: 2 | S34: 7 | T34: 13 | U34: 5.0 Cost-Volume-Profit 5.1 Cost Behavior Analysis 5.2 Cost-Profit-Analysis
C35: 6.0 Budget 6.1 Fundamentals of Budget 6.2 Provision of Operational Budget 6.3 Preparation of Financial Budget 6.4 Non-production Company budgets | G35: CLO 2 | I35: 4 | K35: 2 | S35: 7 | T35: 13 | U35: 6.0 Budget 6.1 Fundamentals of Budget 6.2 Provision of Operational Budget 6.3 Preparation of Financial Budget 6.4 Non-production Company budgets
C36: 7.0 Standard Cost and Variance Analysis 7.1 Standard Cost Concept 7.2 Variance Analysis | G36: CLO 2 | I36: 4 | K36: 2 | S36: 7 | T36: 13 | U36: 7.0 Standard Cost and Variance Analysis 7.1 Standard Cost Concept 7.2 Variance Analysis
C37: 8.0 Decision Making Analysis 8.1 Accept or Reject Special Order 8.2 Make or Buy 8.3 Sell at Split-off Point or Further Process 8.4 Remain or Replace the Equipment 8.5 Continuing or Discontinuing Operations | G37: CLO 3 | I37: 6 | K37: 3 | S37: 10 | T37: 19 | U37: 8.0 Decision Making Analysis 8.1 Accept or Reject Special Order 8.2 Make or Buy 8.3 Sell at Split-off Point or Further Process 8.4 Remain or Replace the Equipment 8.5 Continuing or Discontinuing Operations
I38: =SUM(I30:J37) -> 28 | K38: =SUM(K30:L37) -> 14
C39: Total | T39: =SUM(T30:T38) -> 90 | U39: Total
C41: Continuous Assessment | L41: Percentage (%) | N41: F2F | Q41: NF2F | T41: SLT
C42: 1 | D42: Assignment | L42: 10 | Q42: 10 | T42: =SUM(N42:S42) -> 10
C43: 2 | D43: Quiz | L43: 10 | N43: 1 | Q43: 4 | T43: 5 | U43: =D43 -> Quiz
C44: 3 | D44: Test | L44: 30 | N44: 2 | Q44: 6 | T44: 8 | U44: Test
C45: 4 | T45: 0
C46: 5 | T46: 0
C47: Total | T47: =SUM(T42:T46) -> 23
C49: Final Assessment | L49: Percentage (%) | N49: F2F | Q49: NF2F | T49: SLT
C50: 1 | D50: Final Examination | L50: 50 | N50: 2.5 | Q50: 4.5 | T50: =SUM(N50:S50) -> 7
C51: 2 | T51: 0 | U51: =D51 -> 
C52: 3 | T52: 0
C53: 4 | T53: 0
C54: 5 | T54: 0
T55: =SUM(T50:T54) -> 7 | U55: =D55 -> 
C57: **Please tick (ü) in this course is Latihan Industri / Clinical Placement / Practicum / WBL using 2 weeks; 1 credit formula | T57: =+T39+T47+T55 -> 120
C58: L= Lecture, T=Tutorial, P=Practical, O=Others, F2F=Face to Face, NF2F=None Face to Face
C59: *Indicate the CLO based on the CLO's numbering in item 8
B60: 11 | C60: Identify special requirement to deliver the course (e.g: software, nursery, computer lab, simulation room, etc) | H60: None
U61: =H61 -> 
B62: 12 | C62: References: | H62: 1. Garrison, R.H. Noreen, E.W. Brewer, P.C. (2017). Managerial Accounting, 16th Edition, McGraw-Hill, Irwin
C63: (include required and further readings, and should be the most current) | H63: 2. Drury, Colin (2011) Cost and Management Accounting, 7th Edition, Cengage Learning International 3. Alan Upchurch (2002). Cost Accounting Principles and Practice, Pearson Education 4. Siti Zaleha Abdul Rasid (2001) Modul Pengajaran Perakaunan Kos. UTM 5. Lucey, T., Costing (2002), 6th edition, Continuum, London 6. Horngren, Datar and Foster (2003). Cost Accounting: A Managerial Emphasis, Prentice Hall | U63: =H63 -> 2. Drury, Colin (2011) Cost and Management Accounting, 7th Edition, Cengage Learning International 3. Alan Upchurch (2002). Cost Accounting Principles and Practice, Pearson Education 4. Siti Zaleha Abdul Rasid (2001) Modul Pengajaran Perakaunan Kos. UTM 5. Lucey, T., Costing (2002), 6th edition, Continuum, London 6. Horngren, Datar and Foster (2003). Cost Accounting: A Managerial Emphasis, Prentice Hall
B64: 13 | C64: Other additional Information | H64: Last updated : 24th November 2019 | U64: Last updated : 24th November 2019

Sheet DPP 3233 O.M
B2: Back | C2: Name of Course | D2: Operation Management | AK2: 1 | AL2: 1
C3: Course Code | D3: DPP 3233 | AJ3: √ | AK3: 2 | AL3: 2
B4: 2 | C4: Synopsis | D4: This course is designed to explain the role of operations, and their interaction with the other activities of a firm. It will focus on the operations of management organization, quality management, principles of efficient location, layout strategy, inventory management, job design and work measurement for various types of manufacturing and service-oriented business and technology used in industry. students are required to make a visit to a firm or factory as their project and provide a report upon the visit. | U4: =D4 -> This course is designed to explain the role of operations, and their interaction with the other activities of a firm. It will focus on the operations of management organization, quality management, principles of efficient location, layout strategy, inventory management, job design and work measurement for various types of manufacturing and service-oriented business and technology used in industry. students are required to make a visit to a firm or factory as their project and provide a report upon the visit. | AK4: 3 | AL4: 3
B5: 3 | C5: Name (s) of Academic Staff | D5: Nur Asyura Binti Muhamad | AK5: 4 | AL5: 4
B6: 4 | C6: Semester | D6: Semester | E6: 4 | F6: Year | G6: 2 | AK6: 5
B7: 5 | C7: Credit Value | D7: =IF(T55=40,1,(IF(T55=80,2,(IF(T55=120,3,(IF(T55=160,4,IF(T55=200,5,IF(T55=240,6,""))))))))) -> 3 | AK7: 6
B8: 6 | C8: Pre-requisite / Co-requisite (if any) | AK8: 7
B9: 7 | C9: Course Learning Outcomes (CLO): At the end of the course the students will be able to: | AK9: 8
C10: (example) - explain the basic principles of immunisation (C2, PLO1) | AK10: 9
C11: CLO1 | D11: Explain approach adopted by an organization towards its operations. (C3, PLO1) | U11: =D11 -> Explain approach adopted by an organization towards its operations. (C3, PLO1) | AK11: 10
C12: CLO2 | D12: Prepare a report regarding successful strategies adopted by members of the manufacturing or service sector in order to establish improved service delivery (C3, CTPS2, PLO2) | U12: Prepare a report regarding successful strategies adopted by members of the manufacturing or service sector in order to establish improved service delivery (C3, CTPS2, PLO2) | AK12: 11
C13: CLO3 | D13: Work collaboratively as part of team (C3, A3, PLO8)
B14: 8 | C14: Mapping of the Course Learning Outcomes to the Programme Learning Outcomes, Teaching Methods and Assessment:
C15: Course Learning Outcomes (CLO) | D15: Programme Learning Outcomes (PLO) | P15: Teaching Methods | S15: Assessment
D16: PLO1 | E16: PLO2 | F16: PLO3 | G16: PLO4 | H16: PLO5 | I16: PLO6 | J16: PLO7 | K16: PLO8 | L16: PLO9 | M16: PLO10 | N16: PLO11 | O16: PLO12
C17: CLO1 | D17: √ | P17: Lecture | S17: Test | Final Examination | U17: =S17 -> Test | Final Examination
C18: CLO2 | E18: √ | P18: Lecture | S18: Test | Final Examinition |Assignment
C19: CLO3 | K19: √ | P19: Lecture | Discussion | S19: Assigment
C20: (The description must be read together with standards 2.1.2, 2.2.1 and 2.2.2 in Area 2 - pages 16 & 18)
B21: 9 | C21: Transferable skills (if applicable) | G21: 1 | H21: Kowledge and understandingn
C22: (Skills learned in the course of study which can be useful and utilised in other settings) | G22: 2 | H22: Critical thinking and problem solving
G23: 3 | H23: Leadership, Autonomy and responsibility
B24: 10 | C24: Distribution of Students Learning Time (SLT)
C25: Course Content Outline | G25: CLO | I25: Teaching and Learning Activities | T25: SLT
I26: Guided learning (F2F) | Q26: Guided Learning (NF2F) eg: e-learning | S26: Independent learning (NF2F)
I27: L | K27: T | M27: P | O27: O
C28: 1.0 Introduction to Operation Management a. Definition of operation management b. Organizing to produce goods and services c. Why study OM? d. What operation managers do? e. Productivity | G28: CLO1 | I28: 2 | K28: 2 | S28: 4 | T28: =SUM(I28:S28) -> 8
C29: 2.0 Operations Strategy a. Developing missions and strategy b. Achieving competitive advantage through operations c. issues in operation strategy d. strategy developement and implementation e. Global strategy options f. Decisions making tools | G29: CLO1 | I29: 2 | K29: 2 | S29: 4 | T29: 8 | U29: =C29 -> 2.0 Operations Strategy a. Developing missions and strategy b. Achieving competitive advantage through operations c. issues in operation strategy d. strategy developement and implementation e. Global strategy options f. Decisions making tools
C30: 3.0 Quality Management a. Quality and strategy b. Defining quality c. Total Quality Management d. Tools of TQM | G30: CLO1 CLO2 CLO3 | I30: 2 | K30: 2 | S30: 4 | T30: 8 | U30: 3.0 Quality Management a. Quality and strategy b. Defining quality c. Total Quality Management d. Tools of TQM
C31: 4.0 Design of Goods and Services a. Goods and service selection b. Generating new product c. Product developement d. Issues for product design e.Product development continuum f. Services design | G31: CLO1 CLO2 CLO3 | I31: 4 | K31: 4 | S31: 6 | T31: 14 | U31: 4.0 Design of Goods and Services a. Goods and service selection b. Generating new product c. Product developement d. Issues for product design e.Product development continuum f. Services design
C32: 5.0 Process Strategy a. Four process strategies b. process analysis and design c. Technology in services d. Process Redesign | G32: CLO1 CLO2 CLO3 | I32: 2 | K32: 2 | S32: 4 | T32: 8 | U32: 5.0 Process Strategy a. Four process strategies b. process analysis and design c. Technology in services d. Process Redesign
C33: 6.0 Location Strategy a. The strategic importance of location b. Factor that affect location decisions c. Methods of evaluating location alternatives d. Transportation model | G33: CLO1 CLO2 | I33: 4 | K33: 2 | S33: 4 | T33: 10 | U33: 6.0 Location Strategy a. The strategic importance of location b. Factor that affect location decisions c. Methods of evaluating location alternatives d. Transportation model
C34: 7.0 Layout Strategy a. The strategic importance of layout decision b. Types of layout c. Assembly line balancing | G34: CLO1 CLO2 | I34: 4 | K34: 2 | S34: 6 | T34: 12
C35: 8.0 Job Design and Work Measurement a. Human resource strategy for competitive advantage b. Labor planning c. Job design d. Labor standard | G35: CLO1 | I35: 4 | K35: 2 | S35: 6 | T35: 12 | U35: =C35 -> 8.0 Job Design and Work Measurement a. Human resource strategy for competitive advantage b. Labor planning c. Job design d. Labor standard
C36: 9.0 Inventory Management a. The importance of inventory b. Managing Inventory c. Inventory Model | G36: CLO1 CLO3 | I36: 2 | K36: 2 | S36: 4 | T36: 8 | U36: 9.0 Inventory Management a. The importance of inventory b. Managing Inventory c. Inventory Model
C37: Total | T37: =SUM(T28:T36) -> 88 | U37: Total
C39: Continuous Assessment | L39: Percentage (%) | N39: F2F | Q39: NF2F | T39: SLT
C40: 1 | D40: Test 1 | L40: 10 | N40: 1.5 | Q40: 4 | T40: =SUM(N40:S40) -> 5.5
C41: 2 | D41: Test 2 | L41: 10 | N41: 1.5 | Q41: 4 | T41: 5.5 | U41: =D41 -> Test 2
C42: 3 | D42: Quiz | L42: 10 | Q42: 3 | T42: 3 | U42: Quiz
C43: 4 | D43: Assignment/project | L43: 10 | N43: 1 | Q43: 3 | T43: 4 | U43: Assignment/project
C44: 5 | D44: Tutorial | L44: 10 | Q44: 4 | T44: 4 | U44: Tutorial
C45: Total | T45: =SUM(T40:T44) -> 22
C47: Final Assessment | L47: Percentage (%) | N47: F2F | Q47: NF2F | T47: SLT
C48: 1 | D48: Final Examination | L48: 50 | N48: 2.5 | Q48: 7.5 | T48: =SUM(N48:S48) -> 10
T49: 0 | U49: =D49 -> 
T50: 0
T51: 0
T52: 0
T53: =SUM(T48:T52) -> 10 | U53: =D53 -> 
C55: **Please tick (ü) in this course is Latihan Industri / Clinical Placement / Practicum / WBL using 2 weeks; 1 credit formula | T55: =+T37+T45+T53 -> 120
C56: L= Lecture, T=Tutorial, P=Practical, O=Others, F2F=Face to Face, NF2F=None Face to Face
C57: *Indicate the CLO based on the CLO's numbering in item 8
B58: 11 | C58: Identify special requirement to deliver the course (e.g: software, nursery, computer lab, simulation room, etc) | H58: None
U59: =H59 -> 
B60: 12 | C60: References: | H60: Jay Heizer, Barry Render & Chuck Munson (2016), Operation Management, Prentice Hall International Inc. 12th Edition
C61: (include required and further readings, and should be the most current) | H61: 1. Jay Heizer & Barry Render (2014), Operation Management, Prentice Hall International Inc. Eleventh Edition . 2. Stevenson, William J (2009), Operation Management, Prentice Hall 3. Suraya Ahmad, (1998), Pengenalan Pengurusan Operasi, Universiti Teknologi Malaysia | U61: =H61 -> 1. Jay Heizer & Barry Render (2014), Operation Management, Prentice Hall International Inc. Eleventh Edition . 2. Stevenson, William J (2009), Operation Management, Prentice Hall 3. Suraya Ahmad, (1998), Pengenalan Pengurusan Operasi, Universiti Teknologi Malaysia
B62: 13 | C62: Other additional Information | H62: Last updated : 16th April 2019

Sheet DPP 2163 ENT
B2: Back | C2: Name of Course | D2: Entreprenuership | AK2: 1 | AL2: 1
C3: Course Code | D3: DPP 2163 | AJ3: √ | AK3: 2 | AL3: 2
B4: 2 | C4: Synopsis | D4: This course discusses the basic needs that need to be involved in entrepreneurship. This course will emphasize the importance of knowing and analyzing new business opportunities. Students will undergo training to provide complete business documents as well as present a group-based business planning process. | U4: =D4 -> This course discusses the basic needs that need to be involved in entrepreneurship. This course will emphasize the importance of knowing and analyzing new business opportunities. Students will undergo training to provide complete business documents as well as present a group-based business planning process. | AK4: 3 | AL4: 3
B5: 3 | C5: Name (s) of Academic Staff | D5: Wan Nur Liyana Binti Wan Mohd Fauzi | AK5: 4 | AL5: 4
B6: 4 | C6: Semester | D6: Semester | E6: 4 | F6: Year | G6: 2 | AK6: 5
B7: 5 | C7: Credit Value | D7: =IF(T59=40,1,(IF(T59=80,2,(IF(T59=120,3,(IF(T59=160,4,IF(T59=200,5,IF(T59=240,6,""))))))))) -> 3 | AK7: 6
B8: 6 | C8: Pre-requisite / Co-requisite (if any) | AK8: 7
B9: 7 | C9: Course Learning Outcomes (CLO): At the end of the course the students will be able to: | AK9: 8
C10: (example) - explain the basic principles of immunisation (C2, PLO1) | AK10: 9
C11: CLO1 | D11: Apply the basic concept , characteristics of entrepreneur, types of creativity and innovation, and business development. (C3, PLO1) | U11: =D11 -> Apply the basic concept , characteristics of entrepreneur, types of creativity and innovation, and business development. (C3, PLO1) | AK11: 10
C12: CLO2 | D12: Work collaboratively in groups and assigned task within a given time frame. (P3, TS3, PLO3) | U12: Work collaboratively in groups and assigned task within a given time frame. (P3, TS3, PLO3) | AK12: 11
C13: CLO3 | D13: Create a business plan using business plan standard. (P3, CTPS2, PLO10)
AK14: 12
B15: 8 | C15: Mapping of the Course Learning Outcomes to the Programme Learning Outcomes, Teaching Methods and Assessment:
C16: Course Learning Outcomes (CLO) | D16: Programme Learning Outcomes (PLO) | P16: Teaching Methods | S16: Assessment
D17: PLO1 | E17: PLO2 | F17: PLO3 | G17: PLO4 | H17: PLO5 | I17: PLO6 | J17: PLO7 | K17: PLO8 | L17: PLO9 | M17: PLO10 | N17: PLO11 | O17: PLO12
C18: CLO1 | D18: √ | P18: Lecture | Discussion | Presentation | S18: Test | Quiz | U18: =S18 -> Test | Quiz
C19: CLO2 | F19: √ | P19: Lecture | Discussion | Presentation | S19: Assignment
C20: CLO3 | M20: √ | P20: Lecture | Discussion | Presentation | S20: Group Project
C22: (The description must be read together with standards 2.1.2, 2.2.1 and 2.2.2 in Area 2 - pages 16 & 18)
B23: 9 | C23: Transferable skills (if applicable) | G23: 1 | H23: knowledge and understanding
C24: (Skills learned in the course of study which can be useful and utilised in other settings) | G24: 2 | H24: ptactical skills
G25: 3 | H25: entrepreneur skills
B26: 10 | C26: Distribution of Students Learning Time (SLT)
